Workbook

Sheet Introducción
D2: Proxy: "HERRAMIENTA DE CÁLCULO PARA DETERMINAR EL POTENCIAL ENERGÉTICO DE BIODIGESTORES IN SITU EN LAS PLAZAS DE MERCADO DE COLOMBIA"
B3: Esta herramienta constituye un ejercicio práctico de los planteamientos teóricos basados en ciencia que componen las buenas prácticas e inversiones para la transición hacia la agricultura ecológica, contempladas dentro de la Taxonomía Verde de Colombia (TVC). Este ejercicio responde a la continuación del proceso de priorización de proxies desarrollado en la Nota conceptual, con especial enfoque en la dimensión ambiental de Residuos. A continuación se describe brevemente su contenido:
B4: NOMENCLATURA DE PÁGINA | D4: NOMBRE DE LA PESTAÑA | E4: CONTENIDO DE LA PESTAÑA
D5: Prácticas elegibles y Dimensiones Ambientales (DA) | E5: Esta pestaña incluye la información de las tablas 3.5 a la 3.9 de la TVC, las cuales se relacionan con las buenas prácticas para la agricultura ecológica generales y para los cultivos priorizados por la taxonomía (café, arroz, cultivos frutales y cacao). Adicionalmente, se incluyen las columnas relacionadas al alcance de las buenas prácticas con relación al tipo de productor y a la(s) dimensión(es) ambientales con las que se relacionan. Dicho análisis fue parte del desarrollo metodológico de priorización presentado en la Nota Conceptual para focalización de desarrollos para la implementación de la TVC por el sector Agricultura con enfoque en los pequeños y medianos productores. | J5: Intelligent IoT-multiagent precision irrigation approach for improving water use efficiency in irrigation systems at farm and district scales,
D6: Referencias | E6: Esta pestaña contiene el enlace a todas las fuentes y referencias bibliográficas utilizadas para el planteamiento metodológico y desarrollo de la herramienta proxy presentada dentro de este desarrollo.
D7: HC_RO_Valoración_Ambiental | E7: Esta pestaña corresponde a la herramienta de cálculo (HC) para estimar el potencial de valorización de residuos orgánicos provenientes de la operación de las plazas de mercado en el país. Está diseñada para apoyar proyectos in situ enfocados en tecnologías del tratamiento biológico de la digestión anaeróbica de los residuos orgánicos sobrantes de la operación de las plazas de mercado.
D8: RO_Análisis financiero | E8: Esta pestaña presenta una herramienta de cálculo para la valorización económica por gestión de residuos orgánicos a través de biodigestores in situ para plazas de mercado.
B10: ACCESO A LA HERRAMIENTA PROXY DESARROLLADA | J10: 2022
B11: De clic en el botón de la herramienta a la que desea acceder a continuación:
B13: Desarrollado por: | I13: Arroz | J13: http://www.scielo.org.co/pdf/nova/v14n26/v14n26a07.pdf
B19: Acuse de responsabilidad: La información contenida en esta comunicación no constituye asesoramiento de inversión de ningún tipo y Climate Bonds Iniciative ni Ambire Global (el consorcio) son asesores de inversión. Cualquier referencia a una organización financiera o a un instrumento de deuda o producto de inversión se hace únicamente con fines informativos. Los enlaces a sitios web externos son sólo para fines informativos. El consorcio no acepta ninguna responsabilidad por el contenido de sitios web externos. El consorcio no respalda, recomienda o asesora sobre los méritos financieros o de otro tipo de cualquier instrumento de deuda o producto de inversión y ninguna información contenida en esta comunicación debe ser tomada como tal, ni debe confiarse en cualquier información contenida en esta comunicación para tomar cualquier decisión de inversión. La certificación según el Estándar de Climate Bonds sólo refleja los atributos climáticos del uso de los ingresos de un instrumento de deuda designado. No refleja la solvencia del instrumento de deuda designado, ni su conformidad con las leyes nacionales o internacionales. La decisión de invertir en algo es exclusivamente suya. El consorcio no acepta responsabilidad de ningún tipo, por cualquier inversión que un individuo u organización realice, ni por cualquier inversión realizada por terceros en nombre de un individuo u organización, basada total o parcialmente en cualquier información contenida en esta o cualquier otra comunicación pública de Climate Bonds Initiative.
B21: Última actualización: 05/02/2025

Sheet Prácticas elegibles y DA
D2: PRÁCTICAS ELEGIBLES DENTRO DEL SECTOR USO DEL SUELO (AFOLU) DE LA TVC APLICABLES A LA HERRAMIENTA PROXY PARA EL SECTOR AGRICULTURA
B3: INVERSIONES Y PRÁCTICAS PARA LA TRANSICIÓN A LA AGRÍCULTURA ECOLÓGICA
B4: SECTOR | C4: ACTIVIDAD | D4: PRÁCTICAS ELEGIBLES
B5: AFOLU: Uso del suelo | C5: Inversiones y prácticas para la transición hacia la agricultura ecológica.
E6: Tabla 3.5 de la TVC INVERSIONES Y PRÁCTICAS PARA LA TRANSICIÓN A LA AGRÍCULTURA ECOLÓGICA | G6: Análisis con enfasís en alcance de la práctica y tipo de productor
E7: Título | F7: Insumos elegibles | G7: Alcance del tipo de productor | H7: Dimensiones Ambientales (DA)
E8: Prácticas básicas
E9: Rotación de cultivos (en cultivos transitorios o de ciclo corto) | F9: Semillas, plántulas, equipamiento y mano de obra que permita la rotación de cultivos. | G9: Pequeños, medianos y grandes productores | H9: Uso del suelo
E10: Gestión de fertilizantes | F10: Equipamiento y materiales de aplicación de fertilizantes, que permitan una dosificación oportuna (cuando el cultivo lo requiera en base al análisis de suelos) y eficiente. Fertirrigación (técnica que permite la aplicación simultanea de agua y fertilizantes a través del sistema de riego). | G10: Pequeños, medianos y grandes productores | H10: Calidad el aire, Recurso hídrico, Residuos, Uso del suelo
E11: Control de plagas y enfermedades | F11: Insumos para el control biológico y físico de plagas y enfermedades; p. ej., semillas de plantas repelentes, trampas o redes. | G11: Pequeños, medianos y grandes productores | H11: Residuos, Uso del suelo
E12: Conservación del suelo | F12: Semillas, abonos, equipamiento ligero para obras de protección del suelo. | G12: Pequeños, medianos y grandes productores | H12: Uso del suelo
E13: Gestión de recursos hídricos | F13: Seguir el plan de mejora de la finca según documento de Planificación Predial o similar. | G13: Pequeños, medianos y grandes productores | H13: Recurso hídrico, Residuos, Uso del suelo
E14: Prácticas intermedias
E15: Gestión de residuos y tratamiento del agua contaminada con desechos orgánicos | F15: Equipo, herramientas, insumos y mano de obra. | G15: Pequeños, medianos y grandes productores | H15: Recurso hídrico, Residuos
E16: Abonos orgánicos o verdes (uso de coberturas vegetales) | F16: Equipo material, herramientas e insumos (p. ej., composteras, plántulas, mano de obra, lombricompuestos). | G16: Pequeños, medianos y grandes productores | H16: Residuos, Uso del suelo
E17: Prácticas avanzadas o transformativas
E18: Paso de cultivos transitorios o pasturas a sistemas agroforestales (p. ej., a cacao, frutales o forestería) y agrosilvopastoriles | F18: Semillas, plántulas, material, incluyendo el necesario para el desarrollo de viveros, y otros insumos (equipamiento y mano de obra). | G18: Pequeños, medianos y grandes productores | H18: Recurso hídrico, Uso del suelo
E19: Introducción de policultivos o cultivos asociados en cultivos permanentes | F19: Semillas, plántulas, material, también para el desarrollo de viveros, y otros insumos (equipamiento y mano de obra). | G19: Pequeños, medianos y grandes productores | H19: Biotecnología, Uso del suelo
E20: Mejoramiento del material genético en semillas y material reproductivo. Biotecnología en cadenas productivas agrícolas | F20: Insumos de estos materiales y asistencia técnica. | G20: Grandes productores | H20: Biotecnología, Uso del suelo
E21: Adopciones tecnológicas complementarias
E22: Biodigestores | F22: Biodigestores, equipamiento e instalación. | G22: Pequeños, medianos y grandes productores | H22: Residuos, Uso del suelo
E23: Ahorro energético y energias limpias | F23: Compra e instalación de sistemas fotovoltaicos. Servicios de mantenimiento de los equipos para mejorar la eficiencia. | G23: Pequeños, medianos y grandes productores | H23: Eficiencia energética
E25: Tabla 3.6 de la TVC RECONVERSIÓN DE CULTIVOS DE CAFÉ | G25: Análisis con enfasís en alcance de la práctica y tipo de productor
E26: Título | F26: Insumos elegibles | G26: Alcance del tipo de productor | H26: Dimensiones Ambientales (DA)
E27: Prácticas básicas
E28: Conservación del suelo | F28: Matraca, sembradoras de tracción mecánica o animal y palo plantador. | G28: Pequeños, medianos y grandes productores | H28: Uso del suelo
E29: Gestión de fertilizantes | F29: Fertiirrigación (técnica que permite la aplicación simultanea de agua y fertilizantes a través del sistema de riego Equipamiento y materiales de aplicación de fertilizantes, que permitan una dosificación oportuna y eficiente (Hardware y sofware). | G29: Pequeños, medianos y grandes productores | H29: Uso del suelo
E30: Control de plagas y enfermedades | F30: Material vegetal, plántulas nativas y semillas registradas en el ICA. | G30: Pequeños, medianos y grandes productores | H30: Uso del suelo
E31: Prácticas intermedias
E32: Gestión de residuos y tratamiento del agua contaminada con desechos orgánicos | F32: Sistemas aprovechamiento sustratos -abono orgánico, sistemas para canalización aguas mieles a para Fertiirrigación. Canalización para biodigestores, plantas descontaminantes (Osmosis Inversa), tecnologías de tratamiento de aguas residuales producidas por el beneficio húmedo del café. | G32: Pequeños, medianos y grandes productores | H32: Uso del suelo, Recurso hídrico, Residuos
E33: Abonos orgánicos o verdes (uso de coberturas vegetales) | F33: Camas de compostaje, lombriz californiana, tanques y equipos para preparación. | G33: Pequeños, medianos y grandes productores | H33: Uso del suelo
E34: Prácticas avanzadas o transformativas
E35: Introducción de policultivos o cultivos asociados en cultivos permanentes | F35: Plántulas y semillas de especies maderables nativas. | G35: Pequeños, medianos y grandes productores | H35: Uso del suelo
E36: Mejoramiento del material genético en semillas y material reproductivo. Biotecnología en cadenas productivas agrícolas | F36: Semillas de variedades mejoradas, resilientes a la variabilidad climática y a plagas. Que sean semillas certificadas por el ICA y por la Federación de Cafeteros. | G36: Pequeños, medianos y grandes productores | H36: Biotecnología, Uso del suelo
E37: Biodigestores | F37: Equipos para biodigestor, geomembranas, tanques, canaletas, generadores eléctricos de metano. | G37: Medianos y grandes productores | H37: Uso del suelo, Residuos
E38: Ahorro energético y energías limpias | F38: Generador de energía de metano, equipos complementarios e instalaciones, paneles solares, baterías e instalaciones, equipos eólicos, hidro generación eléctrica, equipos complementarios e instalaciones de bajo consumo energético. | G38: Medianos y grandes productores | H38: Eficiencia energética
E40: Tabla 3.7 de la TVC RECONVERSIÓN DE CULTIVOS DE ARROZ | G40: Análisis con enfasís en alcance de la práctica y tipo de productor
E41: Título | F41: Insumos elegibles | G41: Alcance del tipo de productor | H41: Dimensiones Ambientales (DA)
E42: Prácticas básicas
E43: Conservación del suelo | F43: Herramientas para siembra y cosecha manual o animal. | G43: Pequeños, medianos y grandes productores | H43: Uso del suelo
E44: Gestión del recurso hídrico | F44: Membranas cobertura canales, medidores caudales, equipos de sistematización control y calidad del agua. | G44: Pequeños, medianos y grandes productores | H44: Recurso hídrico
E45: Prácticas intermedias
E46: Control de plagas y enfermedades | F46: Material vegetal, semillas, plántulas nativas, semillas ICA | G46: Pequeños, medianos y grandes productores | H46: Uso del suelo
E47: Mejoramiento del material genético en semillas y material reproductivo. | F47: Material vegetal certificado por el ICA y Fedearroz. | G47: Pequeños, medianos y grandes productores | H47: Biotecnología, Uso del suelo
E48: Protección de cuerpos de agua, reducción estrés hídrico | F48: Repositorios, pocetas necesarias para el cultivo del arroz secano y para la adecuación de terrenos. | G48: Pequeños, medianos y grandes productores | H48: Recurso hídrico
E49: Prácticas avanzadas o transformativas
E50: Abonos orgánicos o verdes | F50: Equipos para la adecuación de los suelos con abono orgánico: camas de lumbricultura, fertirriegos. | G50: Pequeños, medianos y grandes productores | H50: Uso del suelo, Residuos
E51: Control Biológico | F51: Materiales para procesos biológicos requeridos en el control natural (vectores, peces, patos, etc.). P. ej., 150 patos por hectárea. | G51: Pequeños, medianos y grandes productores | H51: Uso del suelo
E52: Biodigestores | F52: Equipos para biodigestor, geomembranas, tanques, canaletas, generadores eléctricos de metano. | G52: Pequeños, medianos y grandes productores | H52: Residuos, Uso del suelo
E53: Ahorro energético y energías limpias | F53: Generador de energía de metano, equipos complementarios e instalaciones, paneles solares, baterías e instalaciones, equipos eólicos, hidro generación eléctrica, equipos complementarios e instalaciones de bajo consumo energético. | G53: Medianos y grandes productores | H53: Eficiencia energética
E55: Tabla 3.8 de la TVC RECONVERSIÓN DE CULTIVOS DE CULTIVOS FRUTALES | G55: Análisis con enfasís en alcance de la práctica y tipo de productor
E56: Título | F56: Insumos elegibles | G56: Alcance del tipo de productor | H56: Dimensiones Ambientales (DA)
E57: Prácticas básicas
E58: Conservación del suelo | F58: Matraca, sembradoras de tracción mecánica o animal y palo plantador. | G58: Pequeños, medianos y grandes productores | H58: Uso del suelo
E59: Gestión del recurso hídrico | F59: Sistemas de riego eficiente: aspersión, goteo, software irrigación controlada | G59: Pequeños, medianos y grandes productores | H59: Recurso hídrico, Residuos, Uso del suelo
E60: Control de plagas y enfermedades | F60: Material vegetal, semillas, plántulas nativas, semillas ICA. | G60: Pequeños, medianos y grandes productores | H60: Uso del suelo
E61: Prácticas intermedias
E62: Mejoramiento del material genético en semillas y material reproductivo. Biotecnología en cadenas productivas agrícolas | F62: Semillas de variedades mejoradas, resilientes a la variabilidad climática y a plagas. Semillas certificadas por el ICA. | G62: Grandes productores | H62: Biotecnología, Uso del suelo
E63: Introducción de policultivos o cultivos asociados en cultivos permanentes | F63: Frutales: Material vegetal, plántulas y semillas ICA. Maderables: Plántulas, semillas de especies maderables nativas. Los insumos necesarios para implementar un sistema en rectángulo: 3 metros entre hileras y 2 metros entre plantas. | G63: Medianos y grandes productores | H63: Biotecnología, Uso del suelo
E64: Prácticas avanzadas o transformativas
E65: Abonos orgánicos o verdes | F65: Camas de compostaje, lombriz californiana, tanques, equipos para preparación. | G65: Pequeños, medianos y grandes productores | H65: Uso del suelo, Residuos
E66: Protección de cuerpos de agua, reducción estrés hídrico | F66: Material necesario para la adecuación del terreno e insumos para pocetas, tanques y sistema hídrico aguas. | G66: Pequeños, medianos y grandes productores | H66: Recurso hídrico
E67: Biodigestores | F67: Equipos e insumos como biodigestor, tanques, geomembranas, canaletas, etc. Generadores eléctricos de biogás. | G67: Pequeños, medianos y grandes productores | H67: Residuos, Eficiencia energética
E68: Ahorro energético y energías limpias | F68: Generador de energía de metano, equipos complementarios e instalaciones , paneles solares ,baterías e instalaciones, equipos eólicos, hidro generación eléctrica, equipos complementarios e instalaciones de bajo consumo energético. | G68: Medianos y grandes productores | H68: Eficiencia energética
E70: Tabla 3.9 de la TVC RECONVERSIÓN DE CULTIVOS DE CACAO | G70: Análisis con enfasís en alcance de la práctica y tipo de productor
E71: Título | F71: Insumos elegibles | G71: Alcance del tipo de productor | H71: Dimensiones Ambientales (DA)
E72: Prácticas básicas
E73: Conservación del suelo | F73: Matraca, sembradoras de tracción mecánica o animal y palo plantador. | G73: Pequeños, medianos y grandes productores | H73: Uso del suelo
E74: Gestión de fertilizantes | F74: fertiirrigación (técnica que permite la aplicación simultanea de agua y fertilizantes a través del sistema de riego Equipamiento y materiales de aplicación de fertilizantes, que permitan una dosificación oportuna y eficiente (Hardware y Software). | G74: Pequeños, medianos y grandes productores | H74: Uso del suelo, Residuos
E75: Control de plagas y enfermedades | F75: Material vegetal como semillas y plántulas nativas. Semillas deben estar registradas en el ICA. | G75: Pequeños, medianos y grandes productores | H75: Uso del suelo
E76: Prácticas intermedias
E77: Gestión de residuos y tratamiento del agua contaminada con desechos orgánicos | F77: Sistemas aprovechamiento sustratos -abono orgánico, sistemas para canalización aguas residuales para Fertiirrigación. Canalización para biodigestores, plantas descontaminantes (Osmosis Inversa), Sistema de tratamiento de aguas residuales. | G77: Pequeños, medianos y grandes productores | H77: Residuos, Uso del suelo, Recurso hídrico
E78: Introducción de policultivos o cultivos asociados en cultivos permanentes | F78: Plántulas y semillas de especies maderables nativas. Material vegetal, plántulas y semillas ICA. | G78: Pequeños, medianos y grandes productores | H78: Biotecnología, Uso del suelo
E79: Prácticas avanzadas o transformativas
E80: Abonos Orgánicos | F80: Camas de compostaje, lombriz californiana, tanques y equipos para preparación. | G80: Pequeños, medianos y grandes productores | H80: Uso del suelo
E81: Protección de cuerpos de agua, reducción estrés hídrico | F81: Materiales para la adecuación del terreno para pocetas, tanques y sistema hídrico. | G81: Pequeños, medianos y grandes productores | H81: Recurso hídrico
E82: Biodigestores | F82: Equipos para biodigestor, geomembranas, tanques, canaletas, etc., también generadores eléctricos de biogás. | G82: Pequeños, medianos y grandes productores | H82: Uso del suelo, Residuos, Eficiencia energética
E83: Ahorro energético y energías limpias | F83: Generador de energía de metano, equipos complementarios e instalaciones , paneles solares ,baterías e instalaciones, equipos eólicos, hidro generación eléctrica, equipos complementarios e instalaciones de bajo consumo energético. | G83: Medianos y grandes productores | H83: Eficiencia energética
K85: Volume 192,
B86: Desarrollado por: | J86: Arroz | K86: http://www.scielo.org.co/pdf/nova/v14n26/v14n26a07.pdf
B92: Acuse de responsabilidad: La información contenida en esta comunicación no constituye asesoramiento de inversión de ningún tipo y Climate Bonds Iniciative ni Ambire Global (el consorcio) son asesores de inversión. Cualquier referencia a una organización financiera o a un instrumento de deuda o producto de inversión se hace únicamente con fines informativos. Los enlaces a sitios web externos son sólo para fines informativos. El consorcio no acepta ninguna responsabilidad por el contenido de sitios web externos. El consorcio no respalda, recomienda o asesora sobre los méritos financieros o de otro tipo de cualquier instrumento de deuda o producto de inversión y ninguna información contenida en esta comunicación debe ser tomada como tal, ni debe confiarse en cualquier información contenida en esta comunicación para tomar cualquier decisión de inversión. La certificación según el Estándar de Climate Bonds sólo refleja los atributos climáticos del uso de los ingresos de un instrumento de deuda designado. No refleja la solvencia del instrumento de deuda designado, ni su conformidad con las leyes nacionales o internacionales. La decisión de invertir en algo es exclusivamente suya. El consorcio no acepta responsabilidad de ningún tipo, por cualquier inversión que un individuo u organización realice, ni por cualquier inversión realizada por terceros en nombre de un individuo u organización, basada total o parcialmente en cualquier información contenida en esta o cualquier otra comunicación pública de Climate Bonds Initiative.

Sheet Referencias
C2: FUENTES RELEVANTES PARA EL DESARROLLO DEL PROXY DE IMPLEMENTACIÓN DE LA TVC
B3: Gobierno de Colombia, 2024. Segundo desarrollo de proxies para la implementación de la TVC - Subsector Agricultura | C3: Manual del usuario anexo a la presente herramienta para contextualización de la navegabilidad y uso de la segunda herramienta de proxies presentada en formato Excel.
B4: Gobierno de Colombia, 2024. Proxies de Implementación de la TVC para los sectores Agua, Transporte y AFOLU | C4: Herramienta Excel desarrollada para las actividades A4 (Inversiones para el uso eficiente del agua ), T4 (Transporte interurbano de carga y pasajeros), T5 (Transporte particular) y para las buenas prácticas para la agrícultura ecológica y la ganadería/forestería sostenible (tablas 3.4, 3.5 y 3.10) de la TVC.
B5: Gobierno de Colombia, 2024. Primera versión del desarrollo de proxies para la implementación de la Taxonomía Verde de Colombia | C5: Manual del usuario anexo a la presente herramienta para contextualización de la navegabilidad y uso de la primera herramienta de proxies presentada en formato Excel.
B6: CBI-Ambire Global, 2024. Nota Conceptual | C6: Documento técnico de uso institucional dirigido a la Mesa de Taxonomía de Colombia y partes interesadas donde se evaluó el estado de las necesidades de desarrollo de herramientas para la priorización de medidas para la implementación de la TVC en el subsector Agricultura, con enfoque en los pequeños y medianos productores.
B7: Gobierno de Colombia, 2023. Guía general de implementación de la Taxonomía Verde de Colombia | C7: Insumo complementario que hace parte del Toolkit de la Taxonomía Verde de Colombia e incluye instrumentos de aplicación e implementación de la Taxonomía.
B8: Gobierno de Colombia, 2022. Taxonomía Verde de Colombia | C8: Insumo principal para el cual se realizó el desarrollo de los proxies para implementación de cuatro de sus actividades en tres sectores económicos priorizados.
B9: IPCC, 2019. Reajuste de los lineamientos para formulación de Inventarios de emisiones de gases de efecto invernadero del IPCC | C9: El Reajuste de las Directrices del IPCC de 2019 no tiene por objeto revisar las Directrices del IPCC de 2006, sino actualizar, complementar y/o profundizar sus orientaciones en los casos en que se hayan detectado brechas o datos científicos obsoletos. No sustituirá a las Directrices del IPCC de 2006. Debe utilizarse junto con las Directrices del IPCC de 2006. Para la presente herramienta se usaron los Capítulos 10 y 11 del volumen 4 del reporte.
B10: FAO, 2019. Guía teórico-práctica sobre el biogás y los biodigestores. Colección Documentos Técnicos N° 12. Buenos Aires. | C10: Guía teórico-práctica sobre el biogás y los biodigestores. En este manual se contienen recomendaciones, así como ejemplos de teconologías de biodigestores.
B11: MinVivienda, 2012. Reglamento técnico del Sector de Agua Potable y Saneamiento Básico - RAS (titulo F) | C11: El titulo F (Sistemas de Aseo Urbano) establece los criterios básicos, los requisitos mínimos y las buenas prácticas técnicas de ingeniería que deben reunir los diferentes procesos involucrados en la conceptualización, el diseño, la implementación y construcción, la supervisión técnica, la puesta en marcha, la operación, el mantenimiento, el cierre, la clausura y la postclausura y las actividades de salvamento de infraestructura de los diferentes componentes y subcomponentes del sistema de aseo urbano que se desarrollen en el país, con el fin de garantizar la seguridad, durabilidad, funcionalidad, calidad, efectividad, sostenibilidad, redundancia e integralidad dentro del nivel de complejidad determinado para el proyecto.
B12: Gobierno de Colombia, 2000. RAS 2000, Titulo F. | C12: El RAS 2000, en su Título F, hace referencia al Reglamento Técnico para el Diseño y Construcción de Sistemas de Acueducto y Alcantarillado en Colombia. Este documento es emitido por el Ministerio de Vivienda, Ciudad y Territorio de Colombia y establece las normas y directrices para el diseño, construcción, operación y mantenimiento de los sistemas de acueducto y alcantarillado en el país. El Título F del RAS 2000 se centra particularmente en las especificaciones y normas técnicas relacionadas con los sistemas de alcantarillado.
B13: https://wa-reportsui.azurewebsites.net//home/report/6e05bb70-f345-4c0e-9ac2-e394883617f1 | C13: Tarifa del servicio publico de Agua de el reporte de la Superservicios del sistema único de información de servicios públicos domiciliarios (SUI)
B14: https://www.superservicios.gov.co/sites/default/files/inline-files/Boletin-tarifario-de-energia-primer-trimestre-de-2024.pdf | C14: Tarifa del servicio publico de Energía de el reporte de la Superservicios - Boletín tarifario (Primer trimestre 2024)
B15: https://www.superservicios.gov.co/sites/default/files/inline-files/Informacion-tarifaria-empresas-gas-natural-por-redes-de-tuberia-enero-2024.xlsx | C15: Tarifa del servicio publico de Gas - Información tarifaria empresas gas natural por redes de tubería
B17: Desarrollado por: | H17: Arroz | I17: http://www.scielo.org.co/pdf/nova/v14n26/v14n26a07.pdf
B23: Acuse de responsabilidad: La información contenida en esta comunicación no constituye asesoramiento de inversión de ningún tipo y Climate Bonds Iniciative ni Ambire Global (el consorcio) son asesores de inversión. Cualquier referencia a una organización financiera o a un instrumento de deuda o producto de inversión se hace únicamente con fines informativos. Los enlaces a sitios web externos son sólo para fines informativos. El consorcio no acepta ninguna responsabilidad por el contenido de sitios web externos. El consorcio no respalda, recomienda o asesora sobre los méritos financieros o de otro tipo de cualquier instrumento de deuda o producto de inversión y ninguna información contenida en esta comunicación debe ser tomada como tal, ni debe confiarse en cualquier información contenida en esta comunicación para tomar cualquier decisión de inversión. La certificación según el Estándar de Climate Bonds sólo refleja los atributos climáticos del uso de los ingresos de un instrumento de deuda designado. No refleja la solvencia del instrumento de deuda designado, ni su conformidad con las leyes nacionales o internacionales. La decisión de invertir en algo es exclusivamente suya. El consorcio no acepta responsabilidad de ningún tipo, por cualquier inversión que un individuo u organización realice, ni por cualquier inversión realizada por terceros en nombre de un individuo u organización, basada total o parcialmente en cualquier información contenida en esta o cualquier otra comunicación pública de Climate Bonds Initiative.

Sheet Calculos_Biogás (hidden)
D2: RESULTADOS DEL ANÁLISIS DE EMISIONES DE GEI POR TRANSPORTE, TRATAMIENTO O DISPOSICIÓN FINAL DE RESIDUOS ORGÁNICOS GENERADOS EN LAS PLAZAS DE MERCADO DE COLOMBIA A TRAVÉS DE BIODIGESTORES
B4: 1. Datos de generación de residuos sólidos orgánicos
B5: Tipo de residuo | C5: Cantidad orgánicos (kg/año) | D5: Mezcla (l/año) | E5: Producción de biogás (m3/año)
B6: Residuos de orgánicos mixtos | C6: =IF('HC_RO_Valorización Ambiental'!$F$26="Si",IF('HC_RO_Valorización Ambiental'!$E$39=$B$15,'HC_RO_Valorización Ambiental'!$D$39*330,IF('HC_RO_Valorización Ambiental'!$E$39=$B$16,'HC_RO_Valorización Ambiental'!$D$39*'FE y conversiones'!$H$9,IF('HC_RO_Valorización Ambiental'!$E$39=$B$17,'HC_RO_Valorización Ambiental'!$D$39*'FE y conversiones'!$H$10,IF('HC_RO_Valorización Ambiental'!$E$39=$B$18,'HC_RO_Valorización Ambiental'!$D$39,IF('HC_RO_Valorización Ambiental'!$E$39=$B$19,'HC_RO_Valorización Ambiental'!$D$39*(1000*330),IF('HC_RO_Valorización Ambiental'!$E$39=$B$20,'HC_RO_Valorización Ambiental'!$D$39*(1000*'FE y conversiones'!$H$9),IF('HC_RO_Valorización Ambiental'!$E$39=$B$21,'HC_RO_Valorización Ambiental'!$D$39*(1000*'FE y conversiones'!$H$10),IF('HC_RO_Valorización Ambiental'!$E$39=$B$22,'HC_RO_Valorización Ambiental'!$D$39*1000)))))))),'HC_RO_Valorización Ambiental'!$D$40*'HC_RO_Valorización Ambiental'!$D$41*0.4*'HC_RO_Valorización Ambiental'!$F$42*330) ->  | D6: =+C6+(C6*'FE y conversiones'!$C$67) ->  | E6: =+C6*'FE y conversiones'!C44%*'FE y conversiones'!D44%*'FE y conversiones'!E44 -> 
B7: Residuos de verduras | C7: =+IF('HC_RO_Valorización Ambiental'!$E$35=$B$15,'HC_RO_Valorización Ambiental'!$D$35*330,IF('HC_RO_Valorización Ambiental'!$E$35=$B$16,'HC_RO_Valorización Ambiental'!$D$35*'FE y conversiones'!$H$9,IF('HC_RO_Valorización Ambiental'!$E$35=$B$17,'HC_RO_Valorización Ambiental'!$D$35*'FE y conversiones'!$H$10,IF('HC_RO_Valorización Ambiental'!$E$35=$B$18,'HC_RO_Valorización Ambiental'!$D$35,IF('HC_RO_Valorización Ambiental'!$E$35=$B$19,'HC_RO_Valorización Ambiental'!$D$35*(1000*330),IF('HC_RO_Valorización Ambiental'!$E$35=$B$20,'HC_RO_Valorización Ambiental'!$D$35*(1000*'FE y conversiones'!$H$9),IF('HC_RO_Valorización Ambiental'!$E$35=$B$21,'HC_RO_Valorización Ambiental'!$D$35*(1000*'FE y conversiones'!$H$10),IF('HC_RO_Valorización Ambiental'!$E$35=$B$22,'HC_RO_Valorización Ambiental'!$D$35*1000)))))))) -> FALSE | D7: =+C7+(C7*'FE y conversiones'!$C$67) -> 0 | E7: =+C7*AVERAGE('FE y conversiones'!C40,'FE y conversiones'!C42)%*AVERAGE('FE y conversiones'!D40,'FE y conversiones'!D42)%*AVERAGE('FE y conversiones'!E40,'FE y conversiones'!E42) -> 0
B8: Residuos de hortalizas | C8: =+IF('HC_RO_Valorización Ambiental'!$E$36=$B$15,'HC_RO_Valorización Ambiental'!$D$36*330,IF('HC_RO_Valorización Ambiental'!$E$36=$B$16,'HC_RO_Valorización Ambiental'!$D$36*'FE y conversiones'!$H$9,IF('HC_RO_Valorización Ambiental'!$E$36=$B$17,'HC_RO_Valorización Ambiental'!$D$36*'FE y conversiones'!$H$10,IF('HC_RO_Valorización Ambiental'!$E$36=$B$18,'HC_RO_Valorización Ambiental'!$D$36,IF('HC_RO_Valorización Ambiental'!$E$36=$B$19,'HC_RO_Valorización Ambiental'!$D$36*(1000*330),IF('HC_RO_Valorización Ambiental'!$E$36=$B$20,'HC_RO_Valorización Ambiental'!$D$36*(1000*'FE y conversiones'!$H$9),IF('HC_RO_Valorización Ambiental'!$E$36=$B$21,'HC_RO_Valorización Ambiental'!$D$36*(1000*'FE y conversiones'!$H$10),IF('HC_RO_Valorización Ambiental'!$E$36=$B$22,'HC_RO_Valorización Ambiental'!$D$36*1000)))))))) -> FALSE | D8: =+C8+(C8*'FE y conversiones'!$C$67) -> 0 | E8: =+C8*AVERAGE('FE y conversiones'!C41,'FE y conversiones'!C45,'FE y conversiones'!C46)%*AVERAGE('FE y conversiones'!D41,'FE y conversiones'!D45,'FE y conversiones'!D46)%*AVERAGE('FE y conversiones'!E41,'FE y conversiones'!E45,'FE y conversiones'!E46) -> 0
B9: Residuos de frutas | C9: =+IF('HC_RO_Valorización Ambiental'!$E$37=$B$15,'HC_RO_Valorización Ambiental'!$D$37*330,IF('HC_RO_Valorización Ambiental'!$E$37=$B$16,'HC_RO_Valorización Ambiental'!$D$37*'FE y conversiones'!$H$9,IF('HC_RO_Valorización Ambiental'!$E$37=$B$17,'HC_RO_Valorización Ambiental'!$D$37*'FE y conversiones'!$H$10,IF('HC_RO_Valorización Ambiental'!$E$37=$B$18,'HC_RO_Valorización Ambiental'!$D$37,IF('HC_RO_Valorización Ambiental'!$E$37=$B$19,'HC_RO_Valorización Ambiental'!$D$37*(1000*330),IF('HC_RO_Valorización Ambiental'!$E$37=$B$20,'HC_RO_Valorización Ambiental'!$D$37*(1000*'FE y conversiones'!$H$9),IF('HC_RO_Valorización Ambiental'!$E$37=$B$21,'HC_RO_Valorización Ambiental'!$D$37*(1000*'FE y conversiones'!$H$10),IF('HC_RO_Valorización Ambiental'!$E$37=$B$22,'HC_RO_Valorización Ambiental'!$D$37*1000)))))))) -> FALSE | D9: =+C9+(C9*'FE y conversiones'!$C$67) -> 0 | E9: =+C9*'FE y conversiones'!C43%*'FE y conversiones'!D43%*'FE y conversiones'!E43 -> 0
B10: Residuos cárnicos | C10: =+IF('HC_RO_Valorización Ambiental'!$E$38=$B$15,'HC_RO_Valorización Ambiental'!$D$38*330,IF('HC_RO_Valorización Ambiental'!$E$38=$B$16,'HC_RO_Valorización Ambiental'!$D$38*'FE y conversiones'!$H$9,IF('HC_RO_Valorización Ambiental'!$E$38=$B$17,'HC_RO_Valorización Ambiental'!$D$38*'FE y conversiones'!$H$10,IF('HC_RO_Valorización Ambiental'!$E$38=$B$18,'HC_RO_Valorización Ambiental'!$D$38,IF('HC_RO_Valorización Ambiental'!$E$38=$B$19,'HC_RO_Valorización Ambiental'!$D$38*(1000*330),IF('HC_RO_Valorización Ambiental'!$E$38=$B$20,'HC_RO_Valorización Ambiental'!$D$38*(1000*'FE y conversiones'!$H$9),IF('HC_RO_Valorización Ambiental'!$E$38=$B$21,'HC_RO_Valorización Ambiental'!$D$38*(1000*'FE y conversiones'!$H$10),IF('HC_RO_Valorización Ambiental'!$E$38=$B$22,'HC_RO_Valorización Ambiental'!$D$38*1000)))))))) -> FALSE | D10: =+C10+(C10*'FE y conversiones'!$C$67) -> 0 | E10: =+C10*'FE y conversiones'!C38%*'FE y conversiones'!D38%*'FE y conversiones'!E38 -> 0
B11: Total | C11: =+SUM(C6:C10) ->  | D11: =+SUM(D6:D10) ->  | E11: =+SUM(E6:E10) -> 
B13: X. Datos de verificación
B14: Unidad de peso/tiempo
B15: kg/día
B16: kg/semana
B17: kg/mes
B18: kg/año
B19: t/día
B20: t/semana
B21: t/mes
B22: t/año

Sheet HC_RO_Valorización Ambiental
C2: HERRAMIENTA DE CÁLCULO PARA DETERMINAR EL POTENCIAL ENERGÉTICO DE BIODIGESTORES IN SITU EN LAS PLAZAS DE MERCADO DE COLOMBIA
B4: Instrucciones de diligenciamiento Bienvenido a la herramienta de cálculo para estimar el potencial de valorización ambiental y económico de la implementación de biodigestores in situ para el tratamiento de los residuos orgánicos producto del descarte en plazas de mercado. Las celdas en color AZUL corresponden a celdas con listas despleglables donde el usuario debe seleccionar una opción según el tipo de proyecto de su interés. El usuario debe ingresar manualmente los datos del proyecto en cada celda que se encuentre resaltada en color AMARILLO. Estos datos serán usados para la estimación del potencial de biogás de los residuos valorizados así como la estimación de la reducción de los GEI por el tratamiento biológico de los residuos a través de las tecnologías de digestión anaeróbica o compostaje. Los resultados de los cálculos serán visibles en las celdas resaltadas en color VERDE. NOTA: Recuerde habilitar la ejecución de macros para el funcionamiento de la herramienta de cálculo de emisiones, sin estas la calculadora NO funcionará. | F4: Botones para el funcionamiento de la herramienta
B6: 1. Ingreso de información general
A7: 1.1. | B7: Información general Ubicación de la plaza de mercado | C7: Seleccione el departamento donde se ubica la plaza de mercado: | D7: Seleccione un departamento | F7: =+$D$7 -> Seleccione un departamento
A8: 1.2. | C8: Seleccione el municipio donde se ubica la plaza de mercado:
A9: 1.3. | C9: Ingrese el nombre de la plaza de mercado:
A10: 1.4 | C10: Seleccione el área donde se ubica la plaza de mercado: | D10: Indique la zona donde se ubica la plaza de mercado
C11: Seleccione de que manera quiere usar el biogas generado en el biodigestor: | D11: Seleccione un uso | F11: =+D11 -> Seleccione un uso
A12: 1.5 | C12: Seleccione la zona donde se ubica la plaza de mercado: | D12: Indique el sector donde se ubica la plaza de mercado | F12: =+D12 -> Indique el sector donde se ubica la plaza de mercado
B14: 2. Ingreso de información - Costos y consumo de servicios
A15: 2.1. | B15: Información general Costos y consumo de servicios | C15: ¿Conoce el costo de gestionar sus residuos orgánicos? | D15: Indique una respuesta
A16: 2.2. | C16: Indique la tarifa por la gestión de los residuos orgánicos: | E16: $/t
A17: 2.3. | C17: ¿Conoce el costo del consumo de gas natural? | D17: Indique una respuesta
A18: 2.4. | C18: Indique cuanto consume mensualmente en promedio de gas natural: | E18: m3/mes
A19: 2.5. | C19: Indique la tarifa correspondiente a su consumo de gas natural: | E19: $/m3
A20: 2.6. | C20: ¿Conoce el costo del consumo de energía electrica en la plaza de mercado? | D20: Indique una respuesta
A21: 2.7. | C21: Indique cuanto consume mensualmente en promedio de energía eléctrica: | E21: kWh/mes | F21: =+D21/12 -> 0
A22: 2.8. | C22: Indique la tarifa correspondiente a su consumo de energía eléctrica: | E22: $/kWh
B24: 3. Ingreso de información - Generación de residuos orgánicos
B25: DATOS DE LA GENERACIÓN DE LOS RESIDUOS SÓLIDOS ORGÁNICOS
A26: 3.1 | B26: Información general Características de los Residuos orgánicos | C26: ¿Conoce el peso promedio de los residuos orgánicos generados en la plaza de mercado? | D26: Indique una respuesta | F26: =+D26 -> Indique una respuesta
A27: 3.2 | C27: ¿Clasifica los residuos orgánicos por tipos específicos? | D27: Indique una respuesta
A28: 3.3 | C28: ¿Cuántos tipos de residuos orgánicos genera regularmente en su operación? | D28: Seleccione la cantidad de tipos de residuos orgánicos existentes
C29: Seleccione el tipo de residuo orgánico No. 1 que genera en su establecimiento | D29: Seleccione el tipo de residuos orgánico
C30: Seleccione el tipo de residuo orgánico No. 2 que genera en su establecimiento | D30: Seleccione el tipo de residuos orgánico
C31: Seleccione el tipo de residuo orgánico No. 3 que genera en su establecimiento | D31: Seleccione el tipo de residuos orgánico
C32: Seleccione el tipo de residuo orgánico No. 4 que genera en su establecimiento | D32: Seleccione el tipo de residuos orgánico
C33: Seleccione el tipo de residuo orgánico No. 5 que genera en su establecimiento | D33: Seleccione el tipo de residuos orgánico
A34: 3.4 | B34: Información general Generación de residuos orgánicos | C34: ¿Cual es la cantidad de residuos por unidad de tiempo que se genera de residuos orgánicos? | D34: Indique las unidades
A35: 3.5 | C35: Ingrese la cantidad de verduras generadas en su instalación: | E35: =+$D$34 -> Indique las unidades
A36: 3.6 | C36: Ingrese la cantidad de hortalizas generadas en su instalación: | E36: =+$D$34 -> Indique las unidades
A37: 3.7 | C37: Ingrese la cantidad de frutas generadas en su instalación: | E37: =+$D$34 -> Indique las unidades
A38: 3.8 | C38: Ingrese la cantidad de cárnicos generados en su instalación: | E38: =+$D$34 -> Indique las unidades
A39: 3.9 | C39: Ingrese la cantidad de residuos orgánicos mixtos generados en su instalación | E39: =+$D$34 -> Indique las unidades
A40: 3.10 | B40: Información general Volumen de residuos orgánicos depositados | C40: ¿Cuál es el volumen diario del tipo de caneca/bolsa empleada para depositar sus residuos orgánicos? | D40: Indique el volumen correspondiente | E40: l
C41: Ingrese el número de canecas o bolsas donde deposita todos sus residuos orgánicos diariamente | E41: #
A42: 3.11 | C42: Indique el porcentaje de llenado diario de los contenedores/bolsas utilizados donde recolecta los residuos orgánicos: | D42: Indique el porcentaje de llenado | F42: =+IF($D$42=$G$42,25%,IF($D$42=$H$42,50%,IF($D$42=$I$42,75%,100%))) -> 1 | G42: 25% de llenado | H42: 50% de llenado | I42: 75% de llenado | J42: 100% de llenado
B44: 4. Ingreso de información - Transporte para el tratamiento residuos orgánicos
B45: DATOS DEL TRANSPORTE DE RESIDUOS ORGÁNICOS A SU SITIO DE TRATAMIENTO/DISPOSICIÓN FINAL
A46: 4.1 | B46: Información general Recolección de residuos | C46: ¿Qué tipo de disposición final y/o tratamiento le dan actualmente a los residuos orgánicos generados? | D46: Indique el tipo de disposición final y/o tratamiento
A47: 4.2 | C47: ¿La disposición final/tratamiento de residuos se realiza en un lugar distinto a la plaza de mercado? | D47: Indique una respuesta
A48: 4.3 | C48: ¿Con qué frecuencia se recolectan los residuos orgánicos en la plaza de mercado? | D48: Indique la frecuencia con la que se recolectan los residuos | E48: veces a la semana
A49: 4.4 | C49: ¿Conoce el tipo de combustible que emplea el vehículo encargado de la recolección de residuos orgánicos? | D49: Indique una respuesta
A50: 4.5 | C50: ¿Qué tipo de combustible utiliza el vehículo encargado de la recolección de residuos orgánicos? | D50: Indique el tipo de combustible empleado
A51: 4.6 | C51: ¿Conoce la cantidad de combustible que consume el vehículo por cada viaje? | D51: Indique una respuesta
A52: 4.7 | C52: ¿Cuánto combustible consume el vehículo por cada viaje? | E52: =VLOOKUP(D50,Dropdown_digestores!S2:T6,2,FALSE) -> 
A53: 4.8 | C53: ¿Cuál es la distancia aproximada desde la plaza de mercado hasta el sitio de tratamiento/disposición final? | E53: km
B57: 5. Resultados
A58: 5.1 | B58: RESULTADOS Generación de biogás/biometano | C58: Volumen de biogás generado | D58: =+Calculos_Biogás!E11/'FE y conversiones'!$H$8 ->  | E58: m3/día
C59: Equivalente energetico del biogás generado | D59: =+(D58*'FE y conversiones'!C59%*'FE y conversiones'!C60%*'FE y conversiones'!C62%*'FE y conversiones'!C63%*'FE y conversiones'!C64) ->  | E59: kWh/dia
C60: Equivalente a gas natural | D60: =+$D$58/(('FE y conversiones'!$C$74/'FE y conversiones'!$C$71)/'FE y conversiones'!$C$59%) ->  | E60: m3/día
C61: Cantidad de digestato (Enmienda de suelo) | D61: =+((Calculos_Biogás!$C$11)*'FE y conversiones'!$C$68)/365 ->  | E61: kg/día
C62: Escenario 1. Producción de biogás con destino a autoconsumo de biogás
C63: Volumen de biogás destinado para autoconsumo | D63: =IF($D$58*30>'HC_RO_Valorización Ambiental'!$D$18,'HC_RO_Valorización Ambiental'!$D$18/30,'HC_RO_Valorización Ambiental'!$D$58) ->  | E63: m3/día
C64: Excedente de biogás (despues de autoconsumo) | D64: =IF($D$58*30>'HC_RO_Valorización Ambiental'!$D$18,$D$58-'HC_RO_Valorización Ambiental'!$D$18/30,0) ->  | E64: m3/día
C65: Escenario 2. Producción de biogás con destino a producción de energía electrica
C66: Cantidad de energía electrica generada | D66: =(($D$58*'FE y conversiones'!$C$60%*65%*'FE y conversiones'!$C$64*'FE y conversiones'!C62%*'FE y conversiones'!C63%)) ->  | E66: kWh/día
C67: Potencial energía electrica para suplir la demanda energética de la plaza de mercado | D67: =IF($D$66>('HC_RO_Valorización Ambiental'!$D$21/30),('HC_RO_Valorización Ambiental'!$D$21/30),'HC_RO_Valorización Ambiental'!$D$66) ->  | E67: kWh/día
C68: Energía electrica destinada para inyección a la red eléctrica nacional | D68: =IF($D$66>('HC_RO_Valorización Ambiental'!$D$21/30),$D$66-('HC_RO_Valorización Ambiental'!$D$21/30),0) ->  | E68: kWh/día
B69: RESULTADOS Financieros | C69: CAPEX | D69: =+'RO_Análisis financiero'!$C$14 ->  | E69: $
C70: OPEX | D70: =+SUM('RO_Análisis financiero'!$D$16:$D$19) ->  | E70: $/Año 1
C71: =+'RO_Análisis financiero'!B21 -> Ingresos por venta de biogás | D71: =+'RO_Análisis financiero'!$D$21 ->  | E71: $
C72: Ingresos por venta de digestato | D72: =+'RO_Análisis financiero'!$D$22 ->  | E72: $
C73: Ingresos por gestión de residuos | D73: =+'RO_Análisis financiero'!$D$23 ->  | E73: $
C74: Ingresos anual esperado | D74: =+'RO_Análisis financiero'!$D$24 ->  | E74: $
C75: Ingresos mensual esperado | D75: =+'RO_Análisis financiero'!$D$25 ->  | E75: $
B76: RESULTADOS Reducción de emisiones de GEI | C76: Emisiones de GEI - Escenario base | D76: =+IF($D$49="No",'Emisiones GEI'!$D$14,IF(AND($D$49="Si",$D$51="Si"),IF($D$50='Emisiones GEI'!$B$19,'Emisiones GEI'!$D$47,IF($D$50='Emisiones GEI'!$B$25,'Emisiones GEI'!$D$53,IF($D$50='Emisiones GEI'!$B$31,'Emisiones GEI'!$D$59,'Emisiones GEI'!D62))),IF($D$49="Si",IF($D$50='Emisiones GEI'!$B$19,'Emisiones GEI'!$D$23,IF($D$50='Emisiones GEI'!$B$25,'Emisiones GEI'!$D$29,IF($D$50='Emisiones GEI'!$B$31,'Emisiones GEI'!$D$35,'Emisiones GEI'!$D$38))))))+IF($D$26="No",IF($D$46='Emisiones GEI'!$H$9,SUM('Emisiones GEI'!$J$13,'Emisiones GEI'!$J$18,'Emisiones GEI'!$J$23,'Emisiones GEI'!$J$27),IF($D$46='Emisiones GEI'!$H$29,SUM('Emisiones GEI'!$J$33,'Emisiones GEI'!$J$38,'Emisiones GEI'!$J$43,'Emisiones GEI'!$J$47),SUM('Emisiones GEI'!$J$53,'Emisiones GEI'!$J$58,'Emisiones GEI'!$J$63,'Emisiones GEI'!$J$67))),IF($D$26="Si",IF($D$46='Emisiones GEI'!$H$70,SUM('Emisiones GEI'!$J$75,'Emisiones GEI'!$J$79,'Emisiones GEI'!$J$83,'Emisiones GEI'!$J$86),IF($D$46='Emisiones GEI'!$H$88,SUM('Emisiones GEI'!$J$92,'Emisiones GEI'!$J$97,'Emisiones GEI'!$J$102,'Emisiones GEI'!$J$106),SUM('Emisiones GEI'!$J$112,'Emisiones GEI'!$J$117,'Emisiones GEI'!$J$122,'Emisiones GEI'!$J$126))))) -> 0 | E76: t CO2e/año
C77: Emisiones de GEI - Escenario proyecto | D77: =+IF($D$26="No",SUM('Emisiones GEI'!$P$13,'Emisiones GEI'!$P$18,'Emisiones GEI'!$P$23,'Emisiones GEI'!$P$27),SUM('Emisiones GEI'!$P$37,'Emisiones GEI'!$P$42,'Emisiones GEI'!$P$47,'Emisiones GEI'!$P$51)) -> 0 | E77: t CO2e/año
C78: Potencial reducción de emisiones de GEI | D78: =+D76-D77 -> 0 | E78: t CO2e/año
C79: Porcentaje de reducción de emisiones de GEI | D79: =(D78/D76)*100 ->  | E79: %

Sheet RO_Análisis financiero (hidden)
C2: RESULTADOS DEL ANÁLISIS ECONÓMICO PARA EL TRATAMIENTO DE RESIDUOS ORGÁNICOS GENERADOS EN LAS PLAZAS DE MERCADO DE COLOMBIA A TRAVÉS DE BIODIGESTORES
B4: Valorización económica por gestión de residuos orgánicos a través de biodigestores in situ para plazas de mercado
B6: Cálculo de valorización económica para el establecimiento: | D6: ='HC_RO_Valorización Ambiental'!D9 -> 0
B9: RESULTADOS DE LA VALORIZACIÓN ECONÓMICA PARA RESIDUOS ORGÁNICOS DEL ESTABLECIMIENTO COMERCIAL
B11: VALORIZACIÓN ECONOMICA ESCENARIO: Proyecto de instalación de biodigestor para producción y consumo de biogás
B13: COSTOS | C13: Año 0 | D13: Año 1 | E13: Año 2 | F13: Año 3 | G13: Año 4 | H13: Año 5 | I13: Año 6 | J13: Año 7 | K13: Año 8 | L13: Año 9 | M13: Año 10 | N13: Año 11 | O13: Año 12 | P13: Año 13 | Q13: Año 14 | R13: Año 15
B14: CAPEX | C14: =+('Modelo financiero (Biogas)'!$B$171*(Calculos_Biogás!$C$11/1000))+'Modelo financiero (Biogas)'!$C$171 -> 
B15: OPEX | D15: =+SUM(D16:D19) ->  | E15: =+SUM(E16:E19) -> 
B16: Costo por energía | D16: =ROUND((ROUND(('Modelo financiero (Biogas)'!$B$173*(Calculos_Biogás!$C$11/1000))+'Modelo financiero (Biogas)'!$C$173,0))*'Modelo financiero (Biogas)'!$F$167,4) ->  | E16: =+D16*(1+'Modelo financiero (Biogas)'!$C$13) ->  | F16: =+E16*(1+'Modelo financiero (Biogas)'!$C$13) ->  | G16: =+F16*(1+'Modelo financiero (Biogas)'!$C$13) ->  | H16: =+G16*(1+'Modelo financiero (Biogas)'!$C$13) ->  | I16: =+H16*(1+'Modelo financiero (Biogas)'!$C$13) ->  | J16: =+I16*(1+'Modelo financiero (Biogas)'!$C$13) ->  | K16: =+J16*(1+'Modelo financiero (Biogas)'!$C$13) ->  | L16: =+K16*(1+'Modelo financiero (Biogas)'!$C$13) ->  | M16: =+L16*(1+'Modelo financiero (Biogas)'!$C$13) ->  | N16: =+M16*(1+'Modelo financiero (Biogas)'!$C$13) ->  | O16: =+N16*(1+'Modelo financiero (Biogas)'!$C$13) ->  | P16: =+O16*(1+'Modelo financiero (Biogas)'!$C$13) ->  | Q16: =+P16*(1+'Modelo financiero (Biogas)'!$C$13) ->  | R16: =+Q16*(1+'Modelo financiero (Biogas)'!$C$13) -> 
B17: Costo por agua | D17: =ROUND((ROUND(('Modelo financiero (Biogas)'!$B$173*(Calculos_Biogás!$C$11/1000))+'Modelo financiero (Biogas)'!$C$173,0))*'Modelo financiero (Biogas)'!$G$167,4) ->  | E17: =+D17*(1+'Modelo financiero (Biogas)'!$C$14) ->  | F17: =+E17*(1+'Modelo financiero (Biogas)'!$C$14) ->  | G17: =+F17*(1+'Modelo financiero (Biogas)'!$C$14) ->  | H17: =+G17*(1+'Modelo financiero (Biogas)'!$C$14) ->  | I17: =+H17*(1+'Modelo financiero (Biogas)'!$C$14) ->  | J17: =+I17*(1+'Modelo financiero (Biogas)'!$C$14) ->  | K17: =+J17*(1+'Modelo financiero (Biogas)'!$C$14) ->  | L17: =+K17*(1+'Modelo financiero (Biogas)'!$C$14) ->  | M17: =+L17*(1+'Modelo financiero (Biogas)'!$C$14) ->  | N17: =+M17*(1+'Modelo financiero (Biogas)'!$C$14) ->  | O17: =+N17*(1+'Modelo financiero (Biogas)'!$C$14) ->  | P17: =+O17*(1+'Modelo financiero (Biogas)'!$C$14) ->  | Q17: =+P17*(1+'Modelo financiero (Biogas)'!$C$14) ->  | R17: =+Q17*(1+'Modelo financiero (Biogas)'!$C$14) -> 
B18: Costo por personal | D18: =ROUND((ROUND(('Modelo financiero (Biogas)'!$B$173*(Calculos_Biogás!$C$11/1000))+'Modelo financiero (Biogas)'!$C$173,0))*'Modelo financiero (Biogas)'!$H$167,4) ->  | E18: =+D18*(1+'Modelo financiero (Biogas)'!$C$11) ->  | F18: =+E18*(1+'Modelo financiero (Biogas)'!$C$11) ->  | G18: =+F18*(1+'Modelo financiero (Biogas)'!$C$11) ->  | H18: =+G18*(1+'Modelo financiero (Biogas)'!$C$11) ->  | I18: =+H18*(1+'Modelo financiero (Biogas)'!$C$11) ->  | J18: =+I18*(1+'Modelo financiero (Biogas)'!$C$11) ->  | K18: =+J18*(1+'Modelo financiero (Biogas)'!$C$11) ->  | L18: =+K18*(1+'Modelo financiero (Biogas)'!$C$11) ->  | M18: =+L18*(1+'Modelo financiero (Biogas)'!$C$11) ->  | N18: =+M18*(1+'Modelo financiero (Biogas)'!$C$11) ->  | O18: =+N18*(1+'Modelo financiero (Biogas)'!$C$11) ->  | P18: =+O18*(1+'Modelo financiero (Biogas)'!$C$11) ->  | Q18: =+P18*(1+'Modelo financiero (Biogas)'!$C$11) ->  | R18: =+Q18*(1+'Modelo financiero (Biogas)'!$C$11) -> 
B19: Costo por mantenimiento | D19: =ROUND((ROUND(('Modelo financiero (Biogas)'!$B$173*(Calculos_Biogás!$C$11/1000))+'Modelo financiero (Biogas)'!$C$173,0))*'Modelo financiero (Biogas)'!$I$167,4) ->  | E19: =+D19*(1+'Modelo financiero (Biogas)'!$C$11) ->  | F19: =+E19*(1+'Modelo financiero (Biogas)'!$C$11) ->  | G19: =+F19*(1+'Modelo financiero (Biogas)'!$C$11) ->  | H19: =+G19*(1+'Modelo financiero (Biogas)'!$C$11) ->  | I19: =+H19*(1+'Modelo financiero (Biogas)'!$C$11) ->  | J19: =+I19*(1+'Modelo financiero (Biogas)'!$C$11) ->  | K19: =+J19*(1+'Modelo financiero (Biogas)'!$C$11) ->  | L19: =+K19*(1+'Modelo financiero (Biogas)'!$C$11) ->  | M19: =+L19*(1+'Modelo financiero (Biogas)'!$C$11) ->  | N19: =+M19*(1+'Modelo financiero (Biogas)'!$C$11) ->  | O19: =+N19*(1+'Modelo financiero (Biogas)'!$C$11) ->  | P19: =+O19*(1+'Modelo financiero (Biogas)'!$C$11) ->  | Q19: =+P19*(1+'Modelo financiero (Biogas)'!$C$11) ->  | R19: =+Q19*(1+'Modelo financiero (Biogas)'!$C$11) -> 
B20: INGRESOS | C20: -
B21: =+IF('HC_RO_Valorización Ambiental'!$F$11="Uso - Energía eléctrica","Ingresos por venta de energía eléctrica","Ingresos por venta de biogás") -> Ingresos por venta de biogás | C21: - | D21: =+IF('HC_RO_Valorización Ambiental'!$F$11="Uso - Energía eléctrica",ROUND(('Modelo financiero (Energía)'!$B$179*(Calculos_Biogás!$C$11/1000))+'Modelo financiero (Energía)'!$C$179,0)*'Modelo financiero (Energía)'!$J$171,ROUND(('Modelo financiero (Biogas)'!$B$175*(Calculos_Biogás!$C$11/1000))+'Modelo financiero (Biogas)'!$C$175,0)*'Modelo financiero (Biogas)'!$J$167) ->  | E21: =+D21*(1+'Modelo financiero (Biogas)'!$C$12) ->  | F21: =+E21*(1+'Modelo financiero (Biogas)'!$C$12) ->  | G21: =+F21*(1+'Modelo financiero (Biogas)'!$C$12) ->  | H21: =+G21*(1+'Modelo financiero (Biogas)'!$C$12) ->  | I21: =+H21*(1+'Modelo financiero (Biogas)'!$C$12) ->  | J21: =+I21*(1+'Modelo financiero (Biogas)'!$C$12) ->  | K21: =+J21*(1+'Modelo financiero (Biogas)'!$C$12) ->  | L21: =+K21*(1+'Modelo financiero (Biogas)'!$C$12) ->  | M21: =+L21*(1+'Modelo financiero (Biogas)'!$C$12) ->  | N21: =+M21*(1+'Modelo financiero (Biogas)'!$C$12) ->  | O21: =+N21*(1+'Modelo financiero (Biogas)'!$C$12) ->  | P21: =+O21*(1+'Modelo financiero (Biogas)'!$C$12) ->  | Q21: =+P21*(1+'Modelo financiero (Biogas)'!$C$12) ->  | R21: =+Q21*(1+'Modelo financiero (Biogas)'!$C$12) -> 
B22: Ingresos por venta de digestato | C22: - | D22: =ROUND(('Modelo financiero (Biogas)'!$B$175*(Calculos_Biogás!$C$11/1000))+'Modelo financiero (Biogas)'!$C$175,0)*'Modelo financiero (Biogas)'!$K$167 ->  | E22: =+D22*(1+'Modelo financiero (Biogas)'!$C$11) ->  | F22: =+E22*(1+'Modelo financiero (Biogas)'!$C$11) ->  | G22: =+F22*(1+'Modelo financiero (Biogas)'!$C$11) ->  | H22: =+G22*(1+'Modelo financiero (Biogas)'!$C$11) ->  | I22: =+H22*(1+'Modelo financiero (Biogas)'!$C$11) ->  | J22: =+I22*(1+'Modelo financiero (Biogas)'!$C$11) ->  | K22: =+J22*(1+'Modelo financiero (Biogas)'!$C$11) ->  | L22: =+K22*(1+'Modelo financiero (Biogas)'!$C$11) ->  | M22: =+L22*(1+'Modelo financiero (Biogas)'!$C$11) ->  | N22: =+M22*(1+'Modelo financiero (Biogas)'!$C$11) ->  | O22: =+N22*(1+'Modelo financiero (Biogas)'!$C$11) ->  | P22: =+O22*(1+'Modelo financiero (Biogas)'!$C$11) ->  | Q22: =+P22*(1+'Modelo financiero (Biogas)'!$C$11) ->  | R22: =+Q22*(1+'Modelo financiero (Biogas)'!$C$11) -> 
B23: Ingresos por gestión de residuos | C23: - | D23: =ROUND(('Modelo financiero (Biogas)'!$B$175*(Calculos_Biogás!$C$11/1000))+'Modelo financiero (Biogas)'!$C$175,0)*'Modelo financiero (Biogas)'!$L$167 ->  | E23: =+D23*(1+'Modelo financiero (Biogas)'!$C$11) ->  | F23: =+E23*(1+'Modelo financiero (Biogas)'!$C$11) ->  | G23: =+F23*(1+'Modelo financiero (Biogas)'!$C$11) ->  | H23: =+G23*(1+'Modelo financiero (Biogas)'!$C$11) ->  | I23: =+H23*(1+'Modelo financiero (Biogas)'!$C$11) ->  | J23: =+I23*(1+'Modelo financiero (Biogas)'!$C$11) ->  | K23: =+J23*(1+'Modelo financiero (Biogas)'!$C$11) ->  | L23: =+K23*(1+'Modelo financiero (Biogas)'!$C$11) ->  | M23: =+L23*(1+'Modelo financiero (Biogas)'!$C$11) ->  | N23: =+M23*(1+'Modelo financiero (Biogas)'!$C$11) ->  | O23: =+N23*(1+'Modelo financiero (Biogas)'!$C$11) ->  | P23: =+O23*(1+'Modelo financiero (Biogas)'!$C$11) ->  | Q23: =+P23*(1+'Modelo financiero (Biogas)'!$C$11) ->  | R23: =+Q23*(1+'Modelo financiero (Biogas)'!$C$11) -> 
B24: Ingresos anual esperado | C24: - | D24: =+D22+D23+D21 ->  | E24: =+E22+E23+E21 ->  | F24: =+F22+F23+F21 -> 
B25: Ingresos mensual esperado | C25: - | D25: =+D24/12 -> 
B26: Utilidad | D26: =+D24-D20 ->  | E26: =+E24-E20 ->  | F26: =+F24-F20 -> 
A75: Acuse de responsabilidad: La información contenida en esta comunicación no constituye una herramienta oficial de cálculo de emisiones de GEI reportable como estándar de ningún tipo; Climate Bonds Iniciative y Ambire Global (el consorcio) actuan como consultores/desarrolladores de la herramienta, respectivamente. Los enlaces a sitios web externos son sólo para fines informativos. El consorcio no acepta ninguna responsabilidad por el contenido de sitios web externos. El consorcio no acepta responsabilidad de ningún tipo, por cualquier decisión de: modificación de operación, rutas de disposición final o recorversión de procesos que un individuo u organización realice, ni por cualquier inversión realizada por terceros en nombre de un individuo u organización, basada total o parcialmente en cualquier información contenida en esta o cualquier otra comunicación pública relacionada de la Mesa de Taxonomía Verde de Colombia o cualquiera de las instituciones que la integran.

Sheet Emisiones GEI (hidden)
D2: ANÁLISIS DE EMISIONES DE GEI POR TRANSPORTE, TRATAMIENTO O DISPOSICIÓN FINAL DE RESIDUOS ORGÁNICOS GENERADOS EN LAS PLAZAS DE MERCADO DE COLOMBIA A TRAVÉS DE BIODIGESTORES
C4: Sección I. Emisiones de GEI Linea base: transporte | I4: Sección II. Emisiones de GEI Linea base: tratamiento/disposición final externo | O4: Sección III. Emisiones de GEI proyecto: Biodigestor in situ
B6: CÁLCULO DE EMISIONES EQUIVALENTES DE GEI DEL TRANSPORTE DE RESIDUOS ORGÁNICOS EN EL ESCENARIO DE LINEA BASE | H6: CÁLCULO DE EMISIONES EQUIVALENTES DE GEI DEL TRATAMIENTO/DISPOSICIÓN FINAL EN LINEA BASE | N6: CÁLCULO DE EMISIONES EQUIVALENTES DE GEI DEL TRATAMIENTO CON BIODIGESTOR IN SITU (ESCENARIO PROYECTO)
C8: ESCENARIO I. Emisiones equivalentes de GEI relacionadas al transporte de residuos al sitio de tratamiento/disposición final (LINEA BASE) a partir de supuestos de cálculo (el usuario no conoce los datos de consumo del vehículo) se asume tipo y vólumen de combustible diésel B2 para vehículo de carga pesada de 2 ejes con tránsito por terreno ondulado: | H8: ESCENARIO I. RESIDUOS ORGÁNICOS MIXTOS GENERALES, SIN SEPARACIÓN EN LA FUENTE POR TIPO DE ORGÁNICO | J8: FUENTE: EPA (2024), IPCC (2006) | N8: ESCENARIO I. RESIDUOS ORGÁNICOS MIXTOS GENERALES, SIN SEPARACIÓN EN LA FUENTE POR TIPO DE ORGÁNICO | P8: FUENTE: IPCC (2006)
C9: A. DIÉSEL B2 | D9: FUENTE: UPME (2016); EPA (2024), UPME (2020) | H9: Disposición final en relleno sanitario | I9: RELLENO SANITARIO | N9: Tratamiento via digestión anaerobica | O9: DIGESTIÓN ANAERÓBICA
I10: A1. Emisiones relacionadas al escenario base: disposición de residuos orgánicos en relleno sanitario con dato de residuos dado por día y frecuencia de recolección | O10: A1. Emisiones relacionadas al escenario base: tratamiento biológico de residuos orgánicos a través de DA con dato de residuos dado por día y frecuencia de recolección
C11: Por día: | D11: =((('FE y conversiones'!H24)*(('HC_RO_Valorización Ambiental'!D53*'FE y conversiones'!C9)/('FE y conversiones'!H18)))+(('FE y conversiones'!H25)*(('HC_RO_Valorización Ambiental'!D53*'FE y conversiones'!C10)/('FE y conversiones'!H18)))+(('FE y conversiones'!H26)*(('HC_RO_Valorización Ambiental'!D53*'FE y conversiones'!C11)/('FE y conversiones'!H18)))) -> 0 | E11: kg CO2e/día | I11: Cada dia: | J11: =IF(OR('HC_RO_Valorización Ambiental'!E39="kg/día",'HC_RO_Valorización Ambiental'!E39="t/día"),'HC_RO_Valorización Ambiental'!D39*'FE y conversiones'!C22,0) -> 0 | K11: =IF('HC_RO_Valorización Ambiental'!E39="kg/día","kg CO2e/día","t CO2e/día") -> t CO2e/día | O11: Cada dia: | P11: =IF(OR('HC_RO_Valorización Ambiental'!E39="kg/día",'HC_RO_Valorización Ambiental'!E39="t/día"),(('HC_RO_Valorización Ambiental'!D39*('FE y conversiones'!C27/'FE y conversiones'!H12))+('HC_RO_Valorización Ambiental'!D39*('FE y conversiones'!C29/'FE y conversiones'!H12))),0) -> 0 | Q11: =IF('HC_RO_Valorización Ambiental'!E39="kg/día","kg CO2e/día","t CO2e/día") -> t CO2e/día
C12: Cada semana: | D12: =D11*('HC_RO_Valorización Ambiental'!D48) ->  | E12: kg CO2e/semana | I12: Cada año: | J12: =J11*'FE y conversiones'!H8 -> 0 | K12: =IF('HC_RO_Valorización Ambiental'!E39="kg/día","kg CO2e/año","t CO2e/año") -> t CO2e/año | O12: Cada año: | P12: =J51*'FE y conversiones'!H8 -> 0 | Q12: =IF('HC_RO_Valorización Ambiental'!E39="kg/día","kg CO2e/año","t CO2e/año") -> t CO2e/año
C13: Cada año: | D13: =D12*('FE y conversiones'!H9) ->  | E13: kg CO2e/año | I13: Emisiones equivalentes anuales de residuos orgánicos en relleno sanitario | J13: =IF('HC_RO_Valorización Ambiental'!E39="kg/día",J12*'FE y conversiones'!H11,J12) -> 0 | K13: t CO2e/año | O13: Emisiones equivalentes anuales de residuos orgánicos a través de digestión anaeróbica | P13: =IF('HC_RO_Valorización Ambiental'!E39="kg/día",J52*'FE y conversiones'!H11,J52) -> 0 | Q13: t CO2e/año
C14: Emisiones equivalentes anuales de GEI de transporte de residuos a tratamiento/disposición final con vehículo de 2 ejes de diésel B2 | D14: =D13*'FE y conversiones'!H11 ->  | E14: t CO2e/año
I15: A2. Emisiones relacionadas al escenario base: disposición de residuos orgánicos en relleno sanitario con dato de residuos dado por semana | O15: A2. Emisiones relacionadas al escenario base: tratamiento biológico de residuos orgánicos a través de DA con dato de residuos dado por semana
C16: ESCENARIO II. Emisiones equivalentes de GEI relacionadas al transporte de residuos al sitio de tratamiento/disposición final (LINEA BASE) a partir de supuestos de cálculo (el usuario conoce el tipo de combustible pero no el volumen de consumo del vehículo de transporte) con supuesto de cálculo de vehículo de carga pesada de 2 ejes, con tránsito por terreno ondulado: | I16: Cada semana: | J16: =IF(OR('HC_RO_Valorización Ambiental'!E39="kg/semana",'HC_RO_Valorización Ambiental'!E39="t/semana"),'HC_RO_Valorización Ambiental'!D39*'FE y conversiones'!C22,0) -> 0 | K16: =IF('HC_RO_Valorización Ambiental'!E39="kg/semana","kg CO2e/semana","t CO2e/semana") -> t CO2e/semana | O16: Cada semana: | P16: =IF(OR('HC_RO_Valorización Ambiental'!E39="kg/semana",'HC_RO_Valorización Ambiental'!E39="t/semana"),(('HC_RO_Valorización Ambiental'!D39*('FE y conversiones'!C27/'FE y conversiones'!H12))+('HC_RO_Valorización Ambiental'!D39*('FE y conversiones'!C29/'FE y conversiones'!H12))),0) -> 0 | Q16: =IF('HC_RO_Valorización Ambiental'!E39="kg/semana","kg CO2e/semana","t CO2e/semana") -> t CO2e/semana
I17: Cada año: | J17: ='Emisiones GEI'!J16*'FE y conversiones'!H9 -> 0 | K17: =IF('HC_RO_Valorización Ambiental'!E39="kg/semana","kg CO2e/año","t CO2e/año") -> t CO2e/año | O17: Cada año: | P17: ='Emisiones GEI'!J56*'FE y conversiones'!H9 -> 0 | Q17: =IF('HC_RO_Valorización Ambiental'!E39="kg/semana","kg CO2e/año","t CO2e/año") -> t CO2e/año
I18: Emisiones equivalentes anuales de residuos orgánicos en relleno sanitario | J18: =IF('HC_RO_Valorización Ambiental'!E39="kg/semana",J17*'FE y conversiones'!H11,J17) -> 0 | K18: t CO2e/año | O18: Emisiones equivalentes anuales de residuos orgánicos a través de digestión anaeróbica | P18: =IF('HC_RO_Valorización Ambiental'!E39="kg/semana",J57*'FE y conversiones'!H11,J57) -> 0 | Q18: t CO2e/año
B19: Diésel B2 | C19: A. DIÉSEL B2 | D19: FUENTE: UPME (2016), UPME (2020), EPA (2024)
C20: Por día: | D20: =((('FE y conversiones'!H24)*(('HC_RO_Valorización Ambiental'!D53*'FE y conversiones'!C9)/('FE y conversiones'!H18)))+(('FE y conversiones'!H25)*(('HC_RO_Valorización Ambiental'!D53*'FE y conversiones'!C10)/('FE y conversiones'!H18)))+(('FE y conversiones'!H26)*(('HC_RO_Valorización Ambiental'!D53*'FE y conversiones'!C11)/('FE y conversiones'!H18)))) -> 0 | E20: kg CO2e/día | I20: A3. Emisiones relacionadas al escenario base: disposición de residuos orgánicos en relleno sanitario con dato de residuos dado por mes | O20: A3. Emisiones relacionadas al escenario base: tratamiento biológico de residuos orgánicos a través de DA con dato de residuos dado por mes
C21: Cada semana: | D21: =D11*('HC_RO_Valorización Ambiental'!D48) ->  | E21: kg CO2e/semana | I21: Cada mes: | J21: =IF(OR('HC_RO_Valorización Ambiental'!E39="kg/mes",'HC_RO_Valorización Ambiental'!E39="t/mes"),'HC_RO_Valorización Ambiental'!D39*'FE y conversiones'!C22,0) -> 0 | K21: =IF('HC_RO_Valorización Ambiental'!E39="kg/mes","kg CO2e/mes","t CO2e/mes") -> t CO2e/mes | O21: Cada mes: | P21: =IF(OR('HC_RO_Valorización Ambiental'!E39="kg/mes",'HC_RO_Valorización Ambiental'!E39="t/mes"),(('HC_RO_Valorización Ambiental'!D39*('FE y conversiones'!C27/'FE y conversiones'!H12))+('HC_RO_Valorización Ambiental'!D39*('FE y conversiones'!C29/'FE y conversiones'!H12))),0) -> 0 | Q21: =IF('HC_RO_Valorización Ambiental'!E39="kg/mes","kg CO2e/mes","t CO2e/mes") -> t CO2e/mes
C22: Cada año: | D22: =D12*('FE y conversiones'!H9) ->  | E22: kg CO2e/año | I22: Cada año: | J22: ='Emisiones GEI'!J21*'FE y conversiones'!H10 -> 0 | K22: =IF('HC_RO_Valorización Ambiental'!E39="kg/mes","kg CO2e/año","t CO2e/año") -> t CO2e/año | O22: Cada año: | P22: ='Emisiones GEI'!J61*'FE y conversiones'!H10 -> 0 | Q22: =IF('HC_RO_Valorización Ambiental'!E39="kg/mes","kg CO2e/año","t CO2e/año") -> t CO2e/año
C23: Emisiones equivalentes anuales de GEI de transporte de residuos a tratamiento/disposición final con vehículo de 2 ejes de diésel B2 | D23: =D13*'FE y conversiones'!H11 ->  | E23: t CO2e/año | I23: Emisiones equivalentes anuales de residuos orgánicos en relleno sanitario | J23: =IF('HC_RO_Valorización Ambiental'!E39="kg/mes",J22*'FE y conversiones'!H11,J22) -> 0 | K23: t CO2e/año | O23: Emisiones equivalentes anuales de residuos orgánicos a través de digestión anaeróbica | P23: =IF('HC_RO_Valorización Ambiental'!E39="kg/mes",J62*'FE y conversiones'!H11,J62) -> 0 | Q23: t CO2e/año
B25: Gasolina E10 | C25: B. GASOLINA E10 | D25: FUENTE: UPME (2016), UPME (2020), EPA (2024) | I25: A4. Emisiones relacionadas al escenario base: disposición de residuos orgánicos en relleno sanitario con dato de residuos dado por año | O25: A4. Emisiones relacionadas al escenario base: tratamiento biológico de residuos orgánicos a través de DA con dato de residuos dado por año
C26: Por día: | D26: =((('FE y conversiones'!H24)*(('HC_RO_Valorización Ambiental'!D53*'FE y conversiones'!C6)/('FE y conversiones'!H18)))+(('FE y conversiones'!H25)*(('HC_RO_Valorización Ambiental'!D53*'FE y conversiones'!C7)/('FE y conversiones'!H18)))+(('FE y conversiones'!H26)*(('HC_RO_Valorización Ambiental'!D53*'FE y conversiones'!C8)/('FE y conversiones'!H18)))) -> 0 | E26: kg CO2e/día | I26: Cada año: | J26: =IF(OR('HC_RO_Valorización Ambiental'!E39="kg/año",'HC_RO_Valorización Ambiental'!E39="t/año"),'HC_RO_Valorización Ambiental'!D39*'FE y conversiones'!C22,0) -> 0 | K26: =IF('HC_RO_Valorización Ambiental'!E39="kg/año","kg CO2e/año","t CO2e/año") -> t CO2e/año | O26: Cada año: | P26: =IF(OR('HC_RO_Valorización Ambiental'!E39="kg/año",'HC_RO_Valorización Ambiental'!E39="t/año"),(('HC_RO_Valorización Ambiental'!D39*('FE y conversiones'!C27/'FE y conversiones'!H12))+('HC_RO_Valorización Ambiental'!D39*('FE y conversiones'!C29/'FE y conversiones'!H12))),0) -> 0 | Q26: =IF('HC_RO_Valorización Ambiental'!E39="kg/año","kg CO2e/año","t CO2e/año") -> t CO2e/año
C27: Cada semana: | D27: =D26*('HC_RO_Valorización Ambiental'!D48) ->  | E27: kg CO2e/semana | I27: Emisiones equivalentes anuales de residuos orgánicos en relleno sanitario | J27: =IF('HC_RO_Valorización Ambiental'!E39="kg/año",J26*'FE y conversiones'!H11,J26) -> 0 | K27: t CO2e/año | O27: Emisiones equivalentes anuales de residuos orgánicos a través de digestión anaeróbica | P27: =IF('HC_RO_Valorización Ambiental'!E39="kg/año",J66*'FE y conversiones'!H11,J66) -> 0 | Q27: t CO2e/año
C28: Cada año: | D28: =D27*('FE y conversiones'!H9) ->  | E28: kg CO2e/año
C29: Emisiones equivalentes anuales de GEI de transporte de residuos a tratamiento/disposición final con vehículo de 2 ejes de gasolina E10 | D29: =D28*'FE y conversiones'!H11 ->  | E29: t CO2e/año | H29: Tratamiento via compostaje | I29: COMPOSTAJE | N29: ESCENARIO II. RESIDUOS ORGÁNICOS CON SEPARACIÓN EN LA FUENTE POR TIPO DE ORGÁNICO | P29: FUENTE: IPCC (2006)
I30: B1. Emisiones relacionadas al escenario base: tratamiento biológico de residuos orgánicos a través de compostaje con dato de residuos dado por día y frecuencia de recolección
B31: Gas natural comprimido (GNC) | C31: C. GAS NATURAL COMPRIMIDO (GNC) | D31: FUENTE: UPME (2016), UPME (2019), EPA (2023) | I31: Cada dia: | J31: =IF(OR('HC_RO_Valorización Ambiental'!$E$39="kg/día",'HC_RO_Valorización Ambiental'!$E$39="t/día"),(('HC_RO_Valorización Ambiental'!$D$39*('FE y conversiones'!$C$26/'FE y conversiones'!$H$12))+('HC_RO_Valorización Ambiental'!$D$39*('FE y conversiones'!$C$28/'FE y conversiones'!$H$12))),0) -> 0 | K31: =IF('HC_RO_Valorización Ambiental'!E39="kg/día","kg CO2e/día","t CO2e/día") -> t CO2e/día
C32: Por día: | D32: =((('FE y conversiones'!H24)*('HC_RO_Valorización Ambiental'!D53*'FE y conversiones'!H20*'FE y conversiones'!C12))+(('FE y conversiones'!H25)*('HC_RO_Valorización Ambiental'!D53*'FE y conversiones'!H20*'FE y conversiones'!C13))+(('FE y conversiones'!H26)*('HC_RO_Valorización Ambiental'!D53*'FE y conversiones'!H20*'FE y conversiones'!C14))) -> 0 | E32: kg CO2e/día | I32: Cada año: | J32: =$J31*'FE y conversiones'!$H$8 -> 0 | K32: =IF('HC_RO_Valorización Ambiental'!E39="kg/día","kg CO2e/año","t CO2e/año") -> t CO2e/año
C33: Cada semana: | D33: =D32*('HC_RO_Valorización Ambiental'!D48) ->  | E33: kg CO2e/semana | I33: Emisiones equivalentes anuales de residuos orgánicos a través de compostaje | J33: =IF('HC_RO_Valorización Ambiental'!$E39="kg/día",$J32*'FE y conversiones'!$H$11,$J32) -> 0 | K33: t CO2e/año | N33: Tratamiento via digestión anaerobica | O33: DIGESTIÓN ANAERÓBICA
C34: Cada año: | D34: =D33*('FE y conversiones'!H9) ->  | E34: kg CO2e/año | O34: C1. Emisiones relacionadas al escenario base: tratamiento biológico de residuos orgánicos a través de DA con dato de residuos dado por día y frecuencia de recolección
C35: Emisiones equivalentes anuales de GEI de transporte de residuos a tratamiento/disposición final con vehículo de carga pesada con GNC | D35: =D34*'FE y conversiones'!H11 ->  | E35: t CO2e/año | I35: B2. Emisiones relacionadas al escenario base: tratamiento biológico de residuos orgánicos a través de compostaje con dato de residuos dado por semana | O35: Cada dia: | P35: =IF(OR('HC_RO_Valorización Ambiental'!$D$34="kg/día",'HC_RO_Valorización Ambiental'!$D$34="t/día"),((('HC_RO_Valorización Ambiental'!$D$35*('FE y conversiones'!$C$27/'FE y conversiones'!$H$12))+('HC_RO_Valorización Ambiental'!$D$35*('FE y conversiones'!$C$29/'FE y conversiones'!$H$12)))+(('HC_RO_Valorización Ambiental'!$D$36*('FE y conversiones'!$C$27/'FE y conversiones'!$H$12))+('HC_RO_Valorización Ambiental'!$D$36*('FE y conversiones'!$C$29/'FE y conversiones'!$H$12)))+(('HC_RO_Valorización Ambiental'!$D$37*('FE y conversiones'!$C$27/'FE y conversiones'!$H$12))+('HC_RO_Valorización Ambiental'!$D$37*('FE y conversiones'!$C$29/'FE y conversiones'!$H$12)))+(('HC_RO_Valorización Ambiental'!$D$38*('FE y conversiones'!$C$27/'FE y conversiones'!$H$12))+('HC_RO_Valorización Ambiental'!$D$38*('FE y conversiones'!$C$29/'FE y conversiones'!$H$12)))+(('HC_RO_Valorización Ambiental'!$D$39*('FE y conversiones'!$C$27/'FE y conversiones'!$H$12))+('HC_RO_Valorización Ambiental'!$D$39*('FE y conversiones'!$C$29/'FE y conversiones'!$H$12)))),0) -> 0 | Q35: =IF('HC_RO_Valorización Ambiental'!$E$35="kg/día","kg CO2e/día","t CO2e/día") -> t CO2e/día
I36: Cada semana: | J36: =IF(OR('HC_RO_Valorización Ambiental'!$E39="kg/semana",'HC_RO_Valorización Ambiental'!$E39="t/semana"),(('HC_RO_Valorización Ambiental'!$D39*('FE y conversiones'!$C$26/'FE y conversiones'!$H$12))+('HC_RO_Valorización Ambiental'!$D39*('FE y conversiones'!$C$28/'FE y conversiones'!$H$12))),0) -> 0 | K36: =IF('HC_RO_Valorización Ambiental'!E39="kg/semana","kg CO2e/semana","t CO2e/semana") -> t CO2e/semana | O36: Cada año: | P36: =$P35*'FE y conversiones'!$H$8 -> 0 | Q36: =IF('HC_RO_Valorización Ambiental'!$E$35="kg/día","kg CO2e/año","t CO2e/año") -> t CO2e/año
B37: Eléctrico | C37: D. ELÉCTRICO | D37: FUENTE: UPME (2016) | I37: Cada año: | J37: ='Emisiones GEI'!$J36*'FE y conversiones'!$H$9 -> 0 | K37: =IF('HC_RO_Valorización Ambiental'!E39="kg/semana","kg CO2e/año","t CO2e/año") -> t CO2e/año | O37: Emisiones equivalentes anuales de residuos orgánicos a través de digestión anaeróbica | P37: =IF('HC_RO_Valorización Ambiental'!$D$34="kg/día",$P36*'FE y conversiones'!$H$11,$P36) -> 0 | Q37: t CO2e/año
C38: Emisiones equivalentes totales de GEI de transporte de residuos a tratamiento/disposición final con vehículo eléctrico | D38: 0 | E38: t CO2e/año | I38: Emisiones equivalentes anuales de residuos orgánicos a través de compostaje | J38: =IF('HC_RO_Valorización Ambiental'!E39="kg/semana",J37*'FE y conversiones'!H11,J37) -> 0 | K38: t CO2e/año
O39: C2. Emisiones relacionadas al escenario base: tratamiento biológico de residuos orgánicos a través de DA con dato de residuos dado por semana
C40: ESCENARIO III. Emisiones equivalentes de GEI relacionadas al transporte de residuos al sitio de tratamiento/disposición final (LINEA BASE) a partir de los datos ingresados por el usuario (el usuario conoce el tipo de combustible y el volumen de consumo del vehículo de transporte) con supuesto de cálculo de vehículo de carga pesada de 2 ejes: | I40: B3. Emisiones relacionadas al escenario base: tratamiento biológico de residuos orgánicos a través de compostaje con dato de residuos dado por mes | O40: Cada semana: | P40: =IF(OR('HC_RO_Valorización Ambiental'!$D$34="kg/semana",'HC_RO_Valorización Ambiental'!$D$34="t/semana"),((('HC_RO_Valorización Ambiental'!$D$35*('FE y conversiones'!$C$27/'FE y conversiones'!$H$12))+('HC_RO_Valorización Ambiental'!$D$35*('FE y conversiones'!$C$29/'FE y conversiones'!$H$12)))+(('HC_RO_Valorización Ambiental'!$D$36*('FE y conversiones'!$C$27/'FE y conversiones'!$H$12))+('HC_RO_Valorización Ambiental'!$D$36*('FE y conversiones'!$C$29/'FE y conversiones'!$H$12)))+(('HC_RO_Valorización Ambiental'!$D$37*('FE y conversiones'!$C$27/'FE y conversiones'!$H$12))+('HC_RO_Valorización Ambiental'!$D$37*('FE y conversiones'!$C$29/'FE y conversiones'!$H$12)))+(('HC_RO_Valorización Ambiental'!$D$38*('FE y conversiones'!$C$27/'FE y conversiones'!$H$12))+('HC_RO_Valorización Ambiental'!$D$38*('FE y conversiones'!$C$29/'FE y conversiones'!$H$12)))+(('HC_RO_Valorización Ambiental'!$D$39*('FE y conversiones'!$C$27/'FE y conversiones'!$H$12))+('HC_RO_Valorización Ambiental'!$D$39*('FE y conversiones'!$C$29/'FE y conversiones'!$H$12)))),0) -> 0 | Q40: =IF('HC_RO_Valorización Ambiental'!$E$35="kg/semana","kg CO2e/semana","t CO2e/semana") -> t CO2e/semana
I41: Cada mes: | J41: =IF(OR('HC_RO_Valorización Ambiental'!$E39="kg/mes",'HC_RO_Valorización Ambiental'!$E39="t/mes"),(('HC_RO_Valorización Ambiental'!$D39*('FE y conversiones'!$C$26/'FE y conversiones'!$H$12))+('HC_RO_Valorización Ambiental'!$D39*('FE y conversiones'!$C$28/'FE y conversiones'!$H$12))),0) -> 0 | K41: =IF('HC_RO_Valorización Ambiental'!E39="kg/mes","kg CO2e/mes","t CO2e/mes") -> t CO2e/mes | O41: Cada año: | P41: ='Emisiones GEI'!$P40*'FE y conversiones'!$H$9 -> 0 | Q41: =IF('HC_RO_Valorización Ambiental'!$E$35="kg/semana","kg CO2e/año","t CO2e/año") -> t CO2e/año
I42: Cada año: | J42: ='Emisiones GEI'!$J41*'FE y conversiones'!$H$10 -> 0 | K42: =IF('HC_RO_Valorización Ambiental'!E39="kg/mes","kg CO2e/año","t CO2e/año") -> t CO2e/año | O42: Emisiones equivalentes anuales de residuos orgánicos a través de digestión anaeróbica | P42: =IF('HC_RO_Valorización Ambiental'!$D$34="kg/semana",$P41*'FE y conversiones'!$H$11,$P41) -> 0 | Q42: t CO2e/año
C43: A. DIÉSEL B2 | D43: FUENTE: UPME (2016); EPA (2024) | I43: Emisiones equivalentes anuales de residuos orgánicos a través de compostaje | J43: =IF('HC_RO_Valorización Ambiental'!$E39="kg/mes",$J42*'FE y conversiones'!$H$11,$J42) -> 0 | K43: t CO2e/año
C44: Por día: | D44: =(('FE y conversiones'!H24)*('HC_RO_Valorización Ambiental'!D52*'FE y conversiones'!C9))+(('FE y conversiones'!H25)*('HC_RO_Valorización Ambiental'!D52*'FE y conversiones'!C10))+(('FE y conversiones'!H26)*('HC_RO_Valorización Ambiental'!D52*'FE y conversiones'!C11)) -> 0 | E44: kg CO2e/día | O44: C3. Emisiones relacionadas al escenario base: tratamiento biológico de residuos orgánicos a través de DA con dato de residuos dado por mes
C45: Cada semana: | D45: =D44*('HC_RO_Valorización Ambiental'!D48) ->  | E45: kg CO2e/semana | I45: B4. Emisiones relacionadas al escenario base: tratamiento biológico de residuos orgánicos a través de compostaje con dato de residuos dado por año | O45: Cada mes: | P45: =IF(OR('HC_RO_Valorización Ambiental'!$D$34="kg/mes",'HC_RO_Valorización Ambiental'!$D$34="t/mes"),((('HC_RO_Valorización Ambiental'!$D$35*('FE y conversiones'!$C$27/'FE y conversiones'!$H$12))+('HC_RO_Valorización Ambiental'!$D$35*('FE y conversiones'!$C$29/'FE y conversiones'!$H$12)))+(('HC_RO_Valorización Ambiental'!$D$36*('FE y conversiones'!$C$27/'FE y conversiones'!$H$12))+('HC_RO_Valorización Ambiental'!$D$36*('FE y conversiones'!$C$29/'FE y conversiones'!$H$12)))+(('HC_RO_Valorización Ambiental'!$D$37*('FE y conversiones'!$C$27/'FE y conversiones'!$H$12))+('HC_RO_Valorización Ambiental'!$D$37*('FE y conversiones'!$C$29/'FE y conversiones'!$H$12)))+(('HC_RO_Valorización Ambiental'!$D$38*('FE y conversiones'!$C$27/'FE y conversiones'!$H$12))+('HC_RO_Valorización Ambiental'!$D$38*('FE y conversiones'!$C$29/'FE y conversiones'!$H$12)))+(('HC_RO_Valorización Ambiental'!$D$39*('FE y conversiones'!$C$27/'FE y conversiones'!$H$12))+('HC_RO_Valorización Ambiental'!$D$39*('FE y conversiones'!$C$29/'FE y conversiones'!$H$12)))),0) -> 0 | Q45: =IF('HC_RO_Valorización Ambiental'!$E$35="kg/mes","kg CO2e/mes","t CO2e/mes") -> t CO2e/mes
C46: Cada año: | D46: =D45*('FE y conversiones'!H9) ->  | E46: kg CO2e/año | I46: Cada año: | J46: =IF(OR('HC_RO_Valorización Ambiental'!$E39="kg/año",'HC_RO_Valorización Ambiental'!$E39="t/año"),(('HC_RO_Valorización Ambiental'!$D39*('FE y conversiones'!$C$26/'FE y conversiones'!$H$12))+('HC_RO_Valorización Ambiental'!$D39*('FE y conversiones'!$C$28/'FE y conversiones'!$H$12))),0) -> 0 | K46: =IF('HC_RO_Valorización Ambiental'!E39="kg/año","kg CO2e/año","t CO2e/año") -> t CO2e/año | O46: Cada año: | P46: ='Emisiones GEI'!$P45*'FE y conversiones'!$H$10 -> 0 | Q46: =IF('HC_RO_Valorización Ambiental'!$E$35="kg/mes","kg CO2e/año","t CO2e/año") -> t CO2e/año
C47: Emisiones equivalentes anuales de GEI de transporte de residuos a tratamiento/disposición final con vehículo de 2 ejes de diésel B2 | D47: =D46*'FE y conversiones'!H11 ->  | E47: t CO2e/año | I47: Emisiones equivalentes anuales de residuos orgánicos a través de compostaje | J47: =IF('HC_RO_Valorización Ambiental'!$E39="kg/año",$J46*'FE y conversiones'!$H$11,$J46) -> 0 | K47: t CO2e/año | O47: Emisiones equivalentes anuales de residuos orgánicos a través de digestión anaeróbica | P47: =IF('HC_RO_Valorización Ambiental'!$D$34="kg/mes",$P46*'FE y conversiones'!$H$11,$P46) -> 0 | Q47: t CO2e/año
C49: B. GASOLINA E10 | D49: FUENTE: UPME (2016); EPA (2024) | H49: Tratamiento via digestión anaerobica | I49: DIGESTIÓN ANAERÓBICA | O49: C4. Emisiones relacionadas al escenario base: tratamiento biológico de residuos orgánicos a través de DA con dato de residuos dado por año
C50: Por día: | D50: =(('FE y conversiones'!H24)*('HC_RO_Valorización Ambiental'!D52*'FE y conversiones'!C6))+(('FE y conversiones'!H25)*('HC_RO_Valorización Ambiental'!D52*'FE y conversiones'!C7))+(('FE y conversiones'!H26)*('HC_RO_Valorización Ambiental'!D52*'FE y conversiones'!C8)) -> 0 | E50: kg CO2e/día | I50: C1. Emisiones relacionadas al escenario base: tratamiento biológico de residuos orgánicos a través de DA con dato de residuos dado por día y frecuencia de recolección | O50: Cada año: | P50: =IF(OR('HC_RO_Valorización Ambiental'!$D$34="kg/año",'HC_RO_Valorización Ambiental'!$D$34="t/año"),((('HC_RO_Valorización Ambiental'!$D$35*('FE y conversiones'!$C$27/'FE y conversiones'!$H$12))+('HC_RO_Valorización Ambiental'!$D$35*('FE y conversiones'!$C$29/'FE y conversiones'!$H$12)))+(('HC_RO_Valorización Ambiental'!$D$36*('FE y conversiones'!$C$27/'FE y conversiones'!$H$12))+('HC_RO_Valorización Ambiental'!$D$36*('FE y conversiones'!$C$29/'FE y conversiones'!$H$12)))+(('HC_RO_Valorización Ambiental'!$D$37*('FE y conversiones'!$C$27/'FE y conversiones'!$H$12))+('HC_RO_Valorización Ambiental'!$D$37*('FE y conversiones'!$C$29/'FE y conversiones'!$H$12)))+(('HC_RO_Valorización Ambiental'!$D$38*('FE y conversiones'!$C$27/'FE y conversiones'!$H$12))+('HC_RO_Valorización Ambiental'!$D$38*('FE y conversiones'!$C$29/'FE y conversiones'!$H$12)))+(('HC_RO_Valorización Ambiental'!$D$39*('FE y conversiones'!$C$27/'FE y conversiones'!$H$12))+('HC_RO_Valorización Ambiental'!$D$39*('FE y conversiones'!$C$29/'FE y conversiones'!$H$12)))),0) -> 0 | Q50: =IF('HC_RO_Valorización Ambiental'!$E$35="kg/año","kg CO2e/año","t CO2e/año") -> t CO2e/año
C51: Cada semana: | D51: =D50*('HC_RO_Valorización Ambiental'!D48) ->  | E51: kg CO2e/semana | I51: Cada dia: | J51: =IF(OR('HC_RO_Valorización Ambiental'!E39="kg/día",'HC_RO_Valorización Ambiental'!E39="t/día"),(('HC_RO_Valorización Ambiental'!D39*('FE y conversiones'!C27/'FE y conversiones'!H12))+('HC_RO_Valorización Ambiental'!D39*('FE y conversiones'!C29/'FE y conversiones'!H12))),0) -> 0 | K51: =IF('HC_RO_Valorización Ambiental'!E39="kg/día","kg CO2e/día","t CO2e/día") -> t CO2e/día | O51: Emisiones equivalentes anuales de residuos orgánicos a través de digestión anaeróbica | P51: =IF('HC_RO_Valorización Ambiental'!$D$34="kg/año",$P50*'FE y conversiones'!$H$11,$P50) -> 0 | Q51: t CO2e/año
C52: Cada año: | D52: =D51*('FE y conversiones'!H9) ->  | E52: kg CO2e/año | I52: Cada año: | J52: =J51*'FE y conversiones'!H8 -> 0 | K52: =IF('HC_RO_Valorización Ambiental'!E39="kg/día","kg CO2e/año","t CO2e/año") -> t CO2e/año
C53: Emisiones equivalentes anuales de GEI de transporte de residuos a tratamiento/disposición final con vehículo de 2 ejes de gasolina E10 | D53: =D52*'FE y conversiones'!H11 ->  | E53: t CO2e/año | I53: Emisiones equivalentes anuales de residuos orgánicos a través de digestión anaeróbica | J53: =IF('HC_RO_Valorización Ambiental'!E39="kg/día",J52*'FE y conversiones'!H11,J52) -> 0 | K53: t CO2e/año
C55: C. GAS NATURAL COMPRIMIDO (GNC) | D55: FUENTE: UPME (2016), EPA (2023) | I55: C2. Emisiones relacionadas al escenario base: tratamiento biológico de residuos orgánicos a través de DA con dato de residuos dado por semana
C56: Por día: | D56: =((('FE y conversiones'!H24)*('HC_RO_Valorización Ambiental'!D52*'FE y conversiones'!C12))+(('FE y conversiones'!H25)*('HC_RO_Valorización Ambiental'!D53*'FE y conversiones'!C13))+(('FE y conversiones'!H26)*('HC_RO_Valorización Ambiental'!D53*'FE y conversiones'!C14))) -> 0 | E56: kg CO2e/día | I56: Cada semana: | J56: =IF(OR('HC_RO_Valorización Ambiental'!E39="kg/semana",'HC_RO_Valorización Ambiental'!E39="t/semana"),(('HC_RO_Valorización Ambiental'!D39*('FE y conversiones'!C27/'FE y conversiones'!H12))+('HC_RO_Valorización Ambiental'!D39*('FE y conversiones'!C29/'FE y conversiones'!H12))),0) -> 0 | K56: =IF('HC_RO_Valorización Ambiental'!E39="kg/semana","kg CO2e/semana","t CO2e/semana") -> t CO2e/semana
C57: Cada semana: | D57: =D56*('HC_RO_Valorización Ambiental'!D48) ->  | E57: kg CO2e/semana | I57: Cada año: | J57: ='Emisiones GEI'!J56*'FE y conversiones'!H9 -> 0 | K57: =IF('HC_RO_Valorización Ambiental'!E39="kg/semana","kg CO2e/año","t CO2e/año") -> t CO2e/año
C58: Cada año: | D58: =D57*('FE y conversiones'!H9) ->  | E58: kg CO2e/año | I58: Emisiones equivalentes anuales de residuos orgánicos a través de digestión anaeróbica | J58: =IF('HC_RO_Valorización Ambiental'!E39="kg/semana",J57*'FE y conversiones'!H11,J57) -> 0 | K58: t CO2e/año
C59: Emisiones equivalentes anuales de GEI de transporte de residuos a tratamiento/disposición final con vehículo de carga pesada con GNC | D59: =D58*'FE y conversiones'!H11 ->  | E59: t CO2e/año
I60: C3. Emisiones relacionadas al escenario base: tratamiento biológico de residuos orgánicos a través de DA con dato de residuos dado por mes
C61: D. ELÉCTRICO | D61: FUENTE: UPME (2016) | I61: Cada mes: | J61: =IF(OR('HC_RO_Valorización Ambiental'!E39="kg/mes",'HC_RO_Valorización Ambiental'!E39="t/mes"),(('HC_RO_Valorización Ambiental'!D39*('FE y conversiones'!C27/'FE y conversiones'!H12))+('HC_RO_Valorización Ambiental'!D39*('FE y conversiones'!C29/'FE y conversiones'!H12))),0) -> 0 | K61: =IF('HC_RO_Valorización Ambiental'!E39="kg/mes","kg CO2e/mes","t CO2e/mes") -> t CO2e/mes
C62: Emisiones equivalentes totales de GEI de transporte de residuos a tratamiento/disposición final con vehículo eléctrico | D62: 0 | E62: t CO2e/año | I62: Cada año: | J62: ='Emisiones GEI'!J61*'FE y conversiones'!H10 -> 0 | K62: =IF('HC_RO_Valorización Ambiental'!E39="kg/mes","kg CO2e/año","t CO2e/año") -> t CO2e/año
I63: Emisiones equivalentes anuales de residuos orgánicos a través de digestión anaeróbica | J63: =IF('HC_RO_Valorización Ambiental'!E39="kg/mes",J62*'FE y conversiones'!H11,J62) -> 0 | K63: t CO2e/año
I65: C4. Emisiones relacionadas al escenario base: tratamiento biológico de residuos orgánicos a través de DA con dato de residuos dado por año
I66: Cada año: | J66: =IF(OR('HC_RO_Valorización Ambiental'!E39="kg/año",'HC_RO_Valorización Ambiental'!E39="t/año"),(('HC_RO_Valorización Ambiental'!D39*('FE y conversiones'!C27/'FE y conversiones'!H12))+('HC_RO_Valorización Ambiental'!D39*('FE y conversiones'!C29/'FE y conversiones'!H12))),0) -> 0 | K66: =IF('HC_RO_Valorización Ambiental'!E39="kg/año","kg CO2e/año","t CO2e/año") -> t CO2e/año
I67: Emisiones equivalentes anuales de residuos orgánicos a través de digestión anaeróbica | J67: =IF('HC_RO_Valorización Ambiental'!E39="kg/año",J66*'FE y conversiones'!H11,J66) -> 0 | K67: t CO2e/año
H69: ESCENARIO II. RESIDUOS ORGÁNICOS CON SEPARACIÓN EN LA FUENTE POR TIPO DE ORGÁNICO | J69: FUENTE: EPA (2024)
H70: Disposición final en relleno sanitario | I70: RELLENO SANITARIO
I71: A. Emisiones relacionadas al escenario base: disposición final de residuos orgánicos en relleno sanitario con dato de residuos dado por día y frecuencia de recolección
I73: Cada dia: | J73: =IF(OR('HC_RO_Valorización Ambiental'!D34="kg/día",'HC_RO_Valorización Ambiental'!D34="t/día"),(('HC_RO_Valorización Ambiental'!D35*'FE y conversiones'!C19)+('HC_RO_Valorización Ambiental'!D36*'FE y conversiones'!C20)+('HC_RO_Valorización Ambiental'!D37*'FE y conversiones'!C19)+('HC_RO_Valorización Ambiental'!D38*'FE y conversiones'!C21)+('HC_RO_Valorización Ambiental'!D39*'FE y conversiones'!C22)),0) -> 0 | K73: =IF('HC_RO_Valorización Ambiental'!$E35="kg/día","kg CO2e/día","t CO2e/día") -> t CO2e/día
I74: Cada año: | J74: =$J73*'FE y conversiones'!H8 -> 0 | K74: =IF('HC_RO_Valorización Ambiental'!E35="kg/día","kg CO2e/año","t CO2e/año") -> t CO2e/año
I75: Emisiones equivalentes anuales de residuos orgánicos en relleno sanitario | J75: =IF('HC_RO_Valorización Ambiental'!D34="kg/día",J74*'FE y conversiones'!H11,J74) -> 0 | K75: t CO2e/año
I77: Cada semana: | J77: =IF(OR('HC_RO_Valorización Ambiental'!D34="kg/semana",'HC_RO_Valorización Ambiental'!D34="t/semana"),(('HC_RO_Valorización Ambiental'!D35*'FE y conversiones'!C19)+('HC_RO_Valorización Ambiental'!D36*'FE y conversiones'!C20)+('HC_RO_Valorización Ambiental'!D37*'FE y conversiones'!C19)+('HC_RO_Valorización Ambiental'!D38*'FE y conversiones'!C21)+('HC_RO_Valorización Ambiental'!D39*'FE y conversiones'!C22)),0) -> 0 | K77: =IF('HC_RO_Valorización Ambiental'!E35="kg/semana","kg CO2e/semana","t CO2e/semana") -> t CO2e/semana
I78: Cada año: | J78: =J77*'FE y conversiones'!H9 -> 0 | K78: =IF('HC_RO_Valorización Ambiental'!E35="kg/semana","kg CO2e/año","t CO2e/año") -> t CO2e/año
I79: Emisiones equivalentes anuales de residuos orgánicos en relleno sanitario | J79: =IF('HC_RO_Valorización Ambiental'!D34="kg/semana",J78*'FE y conversiones'!H11,J78) -> 0 | K79: t CO2e/año
I81: Cada mes: | J81: =IF(OR('HC_RO_Valorización Ambiental'!D34="kg/mes",'HC_RO_Valorización Ambiental'!D34="t/mes"),(('HC_RO_Valorización Ambiental'!D35*'FE y conversiones'!C19)+('HC_RO_Valorización Ambiental'!D36*'FE y conversiones'!C20)+('HC_RO_Valorización Ambiental'!D37*'FE y conversiones'!C19)+('HC_RO_Valorización Ambiental'!D38*'FE y conversiones'!C21)+('HC_RO_Valorización Ambiental'!D39*'FE y conversiones'!C22)),0) -> 0 | K81: =IF('HC_RO_Valorización Ambiental'!E35="kg/mes","kg CO2e/mes","t CO2e/mes") -> t CO2e/mes
I82: Cada año: | J82: =J81*'FE y conversiones'!H10 -> 0 | K82: =IF('HC_RO_Valorización Ambiental'!E35="kg/mes","kg CO2e/año","t CO2e/año") -> t CO2e/año
I83: Emisiones equivalentes anuales de residuos orgánicos en relleno sanitario | J83: =IF('HC_RO_Valorización Ambiental'!D34="kg/mes",J82*'FE y conversiones'!H11,J82) -> 0 | K83: t CO2e/año
I85: Cada año: | J85: =IF(OR('HC_RO_Valorización Ambiental'!D34="kg/año",'HC_RO_Valorización Ambiental'!D34="t/año"),(('HC_RO_Valorización Ambiental'!D35*'FE y conversiones'!C19)+('HC_RO_Valorización Ambiental'!D36*'FE y conversiones'!C20)+('HC_RO_Valorización Ambiental'!D37*'FE y conversiones'!C19)+('HC_RO_Valorización Ambiental'!D38*'FE y conversiones'!C21)+('HC_RO_Valorización Ambiental'!D39*'FE y conversiones'!C22)),0) -> 0 | K85: =IF('HC_RO_Valorización Ambiental'!E35="kg/año","kg CO2e/año","t CO2e/año") -> t CO2e/año
I86: Emisiones equivalentes anuales de residuos orgánicos en relleno sanitario | J86: =IF('HC_RO_Valorización Ambiental'!D34="kg/año",J85*'FE y conversiones'!H11,J85) -> 0 | K86: t CO2e/año
H88: Tratamiento via compostaje | I88: COMPOSTAJE
I89: B1. Emisiones relacionadas al escenario base: tratamiento biológico de residuos orgánicos a través de compostaje con dato de residuos dado por día y frecuencia de recolección
I90: Cada dia: | J90: =IF(OR('HC_RO_Valorización Ambiental'!$D$34="kg/día",'HC_RO_Valorización Ambiental'!$D$34="t/día"),((('HC_RO_Valorización Ambiental'!$D$35*('FE y conversiones'!$C$26/'FE y conversiones'!$H$12))+('HC_RO_Valorización Ambiental'!$D$35*('FE y conversiones'!$C$28/'FE y conversiones'!$H$12)))+(('HC_RO_Valorización Ambiental'!$D$36*('FE y conversiones'!$C$26/'FE y conversiones'!$H$12))+('HC_RO_Valorización Ambiental'!$D$36*('FE y conversiones'!$C$28/'FE y conversiones'!$H$12)))+(('HC_RO_Valorización Ambiental'!$D$37*('FE y conversiones'!$C$26/'FE y conversiones'!$H$12))+('HC_RO_Valorización Ambiental'!$D$37*('FE y conversiones'!$C$28/'FE y conversiones'!$H$12)))+(('HC_RO_Valorización Ambiental'!$D$38*('FE y conversiones'!$C$26/'FE y conversiones'!$H$12))+('HC_RO_Valorización Ambiental'!$D$38*('FE y conversiones'!$C$28/'FE y conversiones'!$H$12)))+(('HC_RO_Valorización Ambiental'!$D$39*('FE y conversiones'!$C$26/'FE y conversiones'!$H$12))+('HC_RO_Valorización Ambiental'!$D$39*('FE y conversiones'!$C$28/'FE y conversiones'!$H$12)))),0) -> 0 | K90: =IF('HC_RO_Valorización Ambiental'!$E$35="kg/día","kg CO2e/día","t CO2e/día") -> t CO2e/día
I91: Cada año: | J91: =$J90*'FE y conversiones'!$H$8 -> 0 | K91: =IF('HC_RO_Valorización Ambiental'!$E$35="kg/día","kg CO2e/año","t CO2e/año") -> t CO2e/año
I92: Emisiones equivalentes anuales de residuos orgánicos a través de compostaje | J92: =IF('HC_RO_Valorización Ambiental'!$D$34="kg/día",$J91*'FE y conversiones'!$H$11,$J91) -> 0 | K92: t CO2e/año
I94: B2. Emisiones relacionadas al escenario base: tratamiento biológico de residuos orgánicos a través de compostaje con dato de residuos dado por semana
I95: Cada semana: | J95: =IF(OR('HC_RO_Valorización Ambiental'!$D$34="kg/semana",'HC_RO_Valorización Ambiental'!$D$34="t/semana"),((('HC_RO_Valorización Ambiental'!$D$35*('FE y conversiones'!$C$26/'FE y conversiones'!$H$12))+('HC_RO_Valorización Ambiental'!$D$35*('FE y conversiones'!$C$28/'FE y conversiones'!$H$12)))+(('HC_RO_Valorización Ambiental'!$D$36*('FE y conversiones'!$C$26/'FE y conversiones'!$H$12))+('HC_RO_Valorización Ambiental'!$D$36*('FE y conversiones'!$C$28/'FE y conversiones'!$H$12)))+(('HC_RO_Valorización Ambiental'!$D$37*('FE y conversiones'!$C$26/'FE y conversiones'!$H$12))+('HC_RO_Valorización Ambiental'!$D$37*('FE y conversiones'!$C$28/'FE y conversiones'!$H$12)))+(('HC_RO_Valorización Ambiental'!$D$38*('FE y conversiones'!$C$26/'FE y conversiones'!$H$12))+('HC_RO_Valorización Ambiental'!$D$38*('FE y conversiones'!$C$28/'FE y conversiones'!$H$12)))+(('HC_RO_Valorización Ambiental'!$D$39*('FE y conversiones'!$C$26/'FE y conversiones'!$H$12))+('HC_RO_Valorización Ambiental'!$D$39*('FE y conversiones'!$C$28/'FE y conversiones'!$H$12)))),0) -> 0 | K95: =IF('HC_RO_Valorización Ambiental'!$E$35="kg/semana","kg CO2e/semana","t CO2e/semana") -> t CO2e/semana
I96: Cada año: | J96: ='Emisiones GEI'!$J95*'FE y conversiones'!$H$9 -> 0 | K96: =IF('HC_RO_Valorización Ambiental'!$E$35="kg/semana","kg CO2e/año","t CO2e/año") -> t CO2e/año
I97: Emisiones equivalentes anuales de residuos orgánicos a través de compostaje | J97: =IF('HC_RO_Valorización Ambiental'!$D$34="kg/semana",$J96*'FE y conversiones'!$H$11,$J96) -> 0 | K97: t CO2e/año
I99: B3. Emisiones relacionadas al escenario base: tratamiento biológico de residuos orgánicos a través de compostaje con dato de residuos dado por mes
I100: Cada mes: | J100: =IF(OR('HC_RO_Valorización Ambiental'!$D$34="kg/mes",'HC_RO_Valorización Ambiental'!$D$34="t/mes"),((('HC_RO_Valorización Ambiental'!$D$35*('FE y conversiones'!$C$26/'FE y conversiones'!$H$12))+('HC_RO_Valorización Ambiental'!$D$35*('FE y conversiones'!$C$28/'FE y conversiones'!$H$12)))+(('HC_RO_Valorización Ambiental'!$D$36*('FE y conversiones'!$C$26/'FE y conversiones'!$H$12))+('HC_RO_Valorización Ambiental'!$D$36*('FE y conversiones'!$C$28/'FE y conversiones'!$H$12)))+(('HC_RO_Valorización Ambiental'!$D$37*('FE y conversiones'!$C$26/'FE y conversiones'!$H$12))+('HC_RO_Valorización Ambiental'!$D$37*('FE y conversiones'!$C$28/'FE y conversiones'!$H$12)))+(('HC_RO_Valorización Ambiental'!$D$38*('FE y conversiones'!$C$26/'FE y conversiones'!$H$12))+('HC_RO_Valorización Ambiental'!$D$38*('FE y conversiones'!$C$28/'FE y conversiones'!$H$12)))+(('HC_RO_Valorización Ambiental'!$D$39*('FE y conversiones'!$C$26/'FE y conversiones'!$H$12))+('HC_RO_Valorización Ambiental'!$D$39*('FE y conversiones'!$C$28/'FE y conversiones'!$H$12)))),0) -> 0 | K100: =IF('HC_RO_Valorización Ambiental'!$E$35="kg/mes","kg CO2e/mes","t CO2e/mes") -> t CO2e/mes
I101: Cada año: | J101: ='Emisiones GEI'!$J100*'FE y conversiones'!$H$10 -> 0 | K101: =IF('HC_RO_Valorización Ambiental'!$E$35="kg/mes","kg CO2e/año","t CO2e/año") -> t CO2e/año
I102: Emisiones equivalentes anuales de residuos orgánicos a través de compostaje | J102: =IF('HC_RO_Valorización Ambiental'!$D$34="kg/mes",$J101*'FE y conversiones'!$H$11,$J101) -> 0 | K102: t CO2e/año
I104: B4. Emisiones relacionadas al escenario base: tratamiento biológico de residuos orgánicos a través de compostaje con dato de residuos dado por año
I105: Cada año: | J105: =IF(OR('HC_RO_Valorización Ambiental'!$D$34="kg/año",'HC_RO_Valorización Ambiental'!$D$34="t/año"),((('HC_RO_Valorización Ambiental'!$D$35*('FE y conversiones'!$C$26/'FE y conversiones'!$H$12))+('HC_RO_Valorización Ambiental'!$D$35*('FE y conversiones'!$C$28/'FE y conversiones'!$H$12)))+(('HC_RO_Valorización Ambiental'!$D$36*('FE y conversiones'!$C$26/'FE y conversiones'!$H$12))+('HC_RO_Valorización Ambiental'!$D$36*('FE y conversiones'!$C$28/'FE y conversiones'!$H$12)))+(('HC_RO_Valorización Ambiental'!$D$37*('FE y conversiones'!$C$26/'FE y conversiones'!$H$12))+('HC_RO_Valorización Ambiental'!$D$37*('FE y conversiones'!$C$28/'FE y conversiones'!$H$12)))+(('HC_RO_Valorización Ambiental'!$D$38*('FE y conversiones'!$C$26/'FE y conversiones'!$H$12))+('HC_RO_Valorización Ambiental'!$D$38*('FE y conversiones'!$C$28/'FE y conversiones'!$H$12)))+(('HC_RO_Valorización Ambiental'!$D$39*('FE y conversiones'!$C$26/'FE y conversiones'!$H$12))+('HC_RO_Valorización Ambiental'!$D$39*('FE y conversiones'!$C$28/'FE y conversiones'!$H$12)))),0) -> 0 | K105: =IF('HC_RO_Valorización Ambiental'!$E$35="kg/año","kg CO2e/año","t CO2e/año") -> t CO2e/año
I106: Emisiones equivalentes anuales de residuos orgánicos a través de compostaje | J106: =IF('HC_RO_Valorización Ambiental'!$D$34="kg/año",$J105*'FE y conversiones'!$H$11,$J105) -> 0 | K106: t CO2e/año
H108: Tratamiento via digestión anaerobica | I108: DIGESTIÓN ANAERÓBICA
I109: C1. Emisiones relacionadas al escenario base: tratamiento biológico de residuos orgánicos a través de DA con dato de residuos dado por día y frecuencia de recolección
I110: Cada dia: | J110: =IF(OR('HC_RO_Valorización Ambiental'!$D$34="kg/día",'HC_RO_Valorización Ambiental'!$D$34="t/día"),((('HC_RO_Valorización Ambiental'!$D$35*('FE y conversiones'!$C$27/'FE y conversiones'!$H$12))+('HC_RO_Valorización Ambiental'!$D$35*('FE y conversiones'!$C$29/'FE y conversiones'!$H$12)))+(('HC_RO_Valorización Ambiental'!$D$36*('FE y conversiones'!$C$27/'FE y conversiones'!$H$12))+('HC_RO_Valorización Ambiental'!$D$36*('FE y conversiones'!$C$29/'FE y conversiones'!$H$12)))+(('HC_RO_Valorización Ambiental'!$D$37*('FE y conversiones'!$C$27/'FE y conversiones'!$H$12))+('HC_RO_Valorización Ambiental'!$D$37*('FE y conversiones'!$C$29/'FE y conversiones'!$H$12)))+(('HC_RO_Valorización Ambiental'!$D$38*('FE y conversiones'!$C$27/'FE y conversiones'!$H$12))+('HC_RO_Valorización Ambiental'!$D$38*('FE y conversiones'!$C$29/'FE y conversiones'!$H$12)))+(('HC_RO_Valorización Ambiental'!$D$39*('FE y conversiones'!$C$27/'FE y conversiones'!$H$12))+('HC_RO_Valorización Ambiental'!$D$39*('FE y conversiones'!$C$29/'FE y conversiones'!$H$12)))),0) -> 0 | K110: =IF('HC_RO_Valorización Ambiental'!$E$35="kg/día","kg CO2e/día","t CO2e/día") -> t CO2e/día
I111: Cada año: | J111: =$J110*'FE y conversiones'!$H$8 -> 0 | K111: =IF('HC_RO_Valorización Ambiental'!$E$35="kg/día","kg CO2e/año","t CO2e/año") -> t CO2e/año
I112: Emisiones equivalentes anuales de residuos orgánicos a través de digestión anaeróbica | J112: =IF('HC_RO_Valorización Ambiental'!$D$34="kg/día",$J111*'FE y conversiones'!$H$11,$J111) -> 0 | K112: t CO2e/año
I114: C2. Emisiones relacionadas al escenario base: tratamiento biológico de residuos orgánicos a través de DA con dato de residuos dado por semana
I115: Cada semana: | J115: =IF(OR('HC_RO_Valorización Ambiental'!$D$34="kg/semana",'HC_RO_Valorización Ambiental'!$D$34="t/semana"),((('HC_RO_Valorización Ambiental'!$D$35*('FE y conversiones'!$C$27/'FE y conversiones'!$H$12))+('HC_RO_Valorización Ambiental'!$D$35*('FE y conversiones'!$C$29/'FE y conversiones'!$H$12)))+(('HC_RO_Valorización Ambiental'!$D$36*('FE y conversiones'!$C$27/'FE y conversiones'!$H$12))+('HC_RO_Valorización Ambiental'!$D$36*('FE y conversiones'!$C$29/'FE y conversiones'!$H$12)))+(('HC_RO_Valorización Ambiental'!$D$37*('FE y conversiones'!$C$27/'FE y conversiones'!$H$12))+('HC_RO_Valorización Ambiental'!$D$37*('FE y conversiones'!$C$29/'FE y conversiones'!$H$12)))+(('HC_RO_Valorización Ambiental'!$D$38*('FE y conversiones'!$C$27/'FE y conversiones'!$H$12))+('HC_RO_Valorización Ambiental'!$D$38*('FE y conversiones'!$C$29/'FE y conversiones'!$H$12)))+(('HC_RO_Valorización Ambiental'!$D$39*('FE y conversiones'!$C$27/'FE y conversiones'!$H$12))+('HC_RO_Valorización Ambiental'!$D$39*('FE y conversiones'!$C$29/'FE y conversiones'!$H$12)))),0) -> 0 | K115: =IF('HC_RO_Valorización Ambiental'!$E$35="kg/semana","kg CO2e/semana","t CO2e/semana") -> t CO2e/semana
I116: Cada año: | J116: ='Emisiones GEI'!$J115*'FE y conversiones'!$H$9 -> 0 | K116: =IF('HC_RO_Valorización Ambiental'!$E$35="kg/semana","kg CO2e/año","t CO2e/año") -> t CO2e/año
I117: Emisiones equivalentes anuales de residuos orgánicos a través de digestión anaeróbica | J117: =IF('HC_RO_Valorización Ambiental'!$D$34="kg/semana",$J116*'FE y conversiones'!$H$11,$J116) -> 0 | K117: t CO2e/año
I119: C3. Emisiones relacionadas al escenario base: tratamiento biológico de residuos orgánicos a través de DA con dato de residuos dado por mes
I120: Cada mes: | J120: =IF(OR('HC_RO_Valorización Ambiental'!$D$34="kg/mes",'HC_RO_Valorización Ambiental'!$D$34="t/mes"),((('HC_RO_Valorización Ambiental'!$D$35*('FE y conversiones'!$C$27/'FE y conversiones'!$H$12))+('HC_RO_Valorización Ambiental'!$D$35*('FE y conversiones'!$C$29/'FE y conversiones'!$H$12)))+(('HC_RO_Valorización Ambiental'!$D$36*('FE y conversiones'!$C$27/'FE y conversiones'!$H$12))+('HC_RO_Valorización Ambiental'!$D$36*('FE y conversiones'!$C$29/'FE y conversiones'!$H$12)))+(('HC_RO_Valorización Ambiental'!$D$37*('FE y conversiones'!$C$27/'FE y conversiones'!$H$12))+('HC_RO_Valorización Ambiental'!$D$37*('FE y conversiones'!$C$29/'FE y conversiones'!$H$12)))+(('HC_RO_Valorización Ambiental'!$D$38*('FE y conversiones'!$C$27/'FE y conversiones'!$H$12))+('HC_RO_Valorización Ambiental'!$D$38*('FE y conversiones'!$C$29/'FE y conversiones'!$H$12)))+(('HC_RO_Valorización Ambiental'!$D$39*('FE y conversiones'!$C$27/'FE y conversiones'!$H$12))+('HC_RO_Valorización Ambiental'!$D$39*('FE y conversiones'!$C$29/'FE y conversiones'!$H$12)))),0) -> 0 | K120: =IF('HC_RO_Valorización Ambiental'!$E$35="kg/mes","kg CO2e/mes","t CO2e/mes") -> t CO2e/mes
I121: Cada año: | J121: ='Emisiones GEI'!$J120*'FE y conversiones'!$H$10 -> 0 | K121: =IF('HC_RO_Valorización Ambiental'!$E$35="kg/mes","kg CO2e/año","t CO2e/año") -> t CO2e/año
I122: Emisiones equivalentes anuales de residuos orgánicos a través de digestión anaeróbica | J122: =IF('HC_RO_Valorización Ambiental'!$D$34="kg/mes",$J121*'FE y conversiones'!$H$11,$J121) -> 0 | K122: t CO2e/año
I124: C4. Emisiones relacionadas al escenario base: tratamiento biológico de residuos orgánicos a través de DA con dato de residuos dado por año
I125: Cada año: | J125: =IF(OR('HC_RO_Valorización Ambiental'!$D$34="kg/año",'HC_RO_Valorización Ambiental'!$D$34="t/año"),((('HC_RO_Valorización Ambiental'!$D$35*('FE y conversiones'!$C$27/'FE y conversiones'!$H$12))+('HC_RO_Valorización Ambiental'!$D$35*('FE y conversiones'!$C$29/'FE y conversiones'!$H$12)))+(('HC_RO_Valorización Ambiental'!$D$36*('FE y conversiones'!$C$27/'FE y conversiones'!$H$12))+('HC_RO_Valorización Ambiental'!$D$36*('FE y conversiones'!$C$29/'FE y conversiones'!$H$12)))+(('HC_RO_Valorización Ambiental'!$D$37*('FE y conversiones'!$C$27/'FE y conversiones'!$H$12))+('HC_RO_Valorización Ambiental'!$D$37*('FE y conversiones'!$C$29/'FE y conversiones'!$H$12)))+(('HC_RO_Valorización Ambiental'!$D$38*('FE y conversiones'!$C$27/'FE y conversiones'!$H$12))+('HC_RO_Valorización Ambiental'!$D$38*('FE y conversiones'!$C$29/'FE y conversiones'!$H$12)))+(('HC_RO_Valorización Ambiental'!$D$39*('FE y conversiones'!$C$27/'FE y conversiones'!$H$12))+('HC_RO_Valorización Ambiental'!$D$39*('FE y conversiones'!$C$29/'FE y conversiones'!$H$12)))),0) -> 0 | K125: =IF('HC_RO_Valorización Ambiental'!$E$35="kg/año","kg CO2e/año","t CO2e/año") -> t CO2e/año
I126: Emisiones equivalentes anuales de residuos orgánicos a través de digestión anaeróbica | J126: =IF('HC_RO_Valorización Ambiental'!$D$34="kg/año",$J125*'FE y conversiones'!$H$11,$J125) -> 0 | K126: t CO2e/año

Sheet FE y conversiones (hidden)
C2: FACTORES DE EMISIÓN Y DE CONVERSIÓN PARA LA HERRAMIENTA DE CÁLCULO PARA DETERMINAR EL POTENCIAL ENERGÉTICO DE BIODIGESTORES IN SITU EN LAS PLAZAS DE MERCADO DE COLOMBIA
B4: FACTORES DE EMISIÓN PARA TRANSPORTE (COMBUSTIÓN) | G4: CONVERSIÓN DE UNIDADES
B5: COMBUSTIBLE | C5: FE | D5: UNIDADES | E5: FUENTE | G5: UNIDAD INICIAL | H5: VALOR | I5: UNIDAD DE CONVERSIÓN
B6: Gasolina E10 comercial | C6: 7.6181 | D6: kg CO2/gal | E6: UPME, 2016 | G6: Semana | H6: 7 | I6: días
B7: Gasolina vehículos de 2 ejes | C7: =7.13092481713072/H12 -> 0.007130924817 | D7: kg CH4/gal | E7: EPA, 2024 | G7: Mes | H7: 4.33 | I7: semanas
B8: Gasolina vehículos de 2 ejes | C8: =0.496792413874469/H12 -> 0.0004967924139 | D8: kg N2O/gal | E8: EPA, 2024 | G8: Año | H8: 365 | I8: días
B9: Diesel B2 | C9: 10.149 | D9: kg CO2/gal | E9: UPME, 2016 | G9: Año | H9: 52 | I9: semanas
B10: Diesel | C10: =0.421250548042225/H12 -> 0.000421250548 | D10: kg CH4/gal | E10: EPA, 2024 | G10: Año | H10: 12 | I10: meses
B11: Diesel | C11: =0.603154193787731/H12 -> 0.0006031541938 | D11: kg N2O/gal | E11: EPA, 2024 | G11: Tonelada | H11: 0.001 | I11: kilogramos
B12: Gas natural vehicular | C12: 1.9801 | D12: kg CO2/m³ | E12: UPME, 2016 | G12: Kilogramo | H12: 1000 | I12: gramos
B13: Gas natural comprimido CNG para camiones de carga pesada | C13: =0.921/(H14*H12) -> 0.0005722842905 | D13: kg CH4/km | E13: EPA, 2023 | G13: Metro cúbico | H13: 265.172 | I13: galón
B14: Gas natural comprimido CNG para camiones de carga pesada | C14: 0 | D14: kg N2O/km | E14: EPA, 2023 | G14: Milla | H14: 1.60934 | I14: kilómetros
B15: Electricidad 2021 | C15: 0.126 | D15: kg CO2/kWh | E15: UPME, 2016
G16: Eficiencias de consumo de combustibles | H16: UPME (2020), UPME (2019)
B17: FACTORES DE EMISIÓN PARA RESIDUOS POR DISPOSICIÓN FINAL EN RELLENO SANITARIO | G17: UNIDAD INICIAL | H17: VALOR | I17: UNIDAD DE CONVERSIÓN
B18: COMBUSTIBLE | C18: FE | D18: UNIDADES | E18: FUENTE | G18: Eficiencia de consumo de combustible diésel en camiones pesados de 2 ejes para terreno ondulado | H18: 10.01 | I18: km/gal
B19: Residuos de frutas y vegetales por disposición final en relleno sanitario | C19: 0.28 | D19: kg CO2e/kg residuos de frutas y verduras | E19: EPA, 2024 | G19: Eficiencia de consumo (promedio nacional) de combustible gasolina en camiones pesados | H19: 10 | I19: km/gal
B20: Residuos de comida (sin carne) por disposición final en relleno sanitario | C20: 0.67 | D20: kg CO2e/kg residuos de comida sin carne | E20: EPA, 2024 | G20: Eficiencia de consumo de gas natural vehicular | H20: 0.166667 | I20: m³/km
B21: Residuos de comida (solo carne) por disposición final en el relleno sanitario | C21: 0.69 | D21: kg CO2e/kg residuos de comida (carne) | E21: EPA, 2024
B22: Residuos de orgánicos mixtos por disposición final | C22: 0.54 | D22: kg CO2e/kg residuos orgánicos mixtos | E22: EPA, 2024 | G22: Potencial de Calentamiento Global (GWP100, por sus siglas en inglés) | H22: Valores para cálculo
G23: Caracterización de factores | H23: FUENTE: EPA, 2024
B24: FACTORES DE EMISIÓN PROCEDENTES DEL TRATAMIENTO BIOLÓGICO DE RESIDUOS | G24: CO2 | H24: =1 -> 1
B25: Tratamiento biológico | C25: FE | D25: UNIDADES | E25: FUENTE | G25: CH4 | H25: 28
B26: Compostaje | C26: 4 | D26: g CH4/kg residuo tratado | E26: IPCC, 2006 | G26: N2O | H26: 265
B27: Digestión anaerobia | C27: 1 | D27: g CH4/kg residuo tratado | E27: IPCC, 2006
B28: Compostaje | C28: 0.3 | D28: g N2O/kg residuo tratado | E28: IPCC, 2006 | G28: Verduras
B29: Digestión anaerobia | C29: 0 | D29: g N2O/kg residuo tratado | E29: IPCC, 2006 | G29: Hortalizas (tubérculo)
B30: Fuente: IPCC. 2006. Volume 5, Chapter 4: Biological treatment. 2006 IPCC Guidelines for National Greenhouse Gas Inventories. Intergovernmental Panel on Climate Change. Disponible: http://www.ipcc-nggip.iges.or.jp/public/2006gl/pdf/5_Volume5/V5_4_Ch4_Bio_Treat.pdf. Accessed 6/28/2017. | G30: Frutas
G31: Carnicos
G32: Orgánicos mixtos
B34: FACTORES DE CONVERSIÓN DE PRODUCCIÓN DE BIOGAS Y BIOMETANO A TRAVÉS DE RESIDUOS ORGÁNICOS
B35: La siguiente Tabla presenta los rendimientos máximos de gas por kilogramo de materia seca orgánica para distintos sustratos, evidenciando una variación significativa. Factores como la variedad del sustrato, el momento de la cosecha, la frecuencia anual de cortes de hierba, las condiciones climáticas, la carga del biorreactor y el tiempo de residencia influyen notablemente en el rendimiento de biogás. Para estimar el potencial de generación de biogás de un sustrato, es necesario determinar la cantidad de materia seca orgánica contenida en este. La fórmula empleada para este cálculo es la siguiente: • MSo (kg) = Cantidad de sustrato (kg) × MS (%) × MSo (%)/MS (%) Una vez calculada la materia seca orgánica, se puede estimar la cantidad de biogás producido utilizando la siguiente ecuación: • Cantidad de biogás (m3) = MSo (kg) × Potencial de biogás (m3/kg MSo) Este procedimiento permite determinar el volumen de biogás que un sustrato específico puede generar en un biorreactor bajo condiciones controladas.
B36: Sustrato para producción de biogás | C36: MS (%) | D36: MSo por MS (%) | E36: Potencial de biogás (m3 kgoDM-1) | F36: Potencial de biogás (m3/tonRO) | G36: Potencial de biometano (m3/tonRO) | H36: Tiempo de retención (d) | I36: Contenido de metano (%)*
B37: Residuos de animales
B38: Desechos de carne* | C38: 15 | D38: 76 | E38: 0.8 | F38: =(E38*C38%*D38%)*1000 -> 91.2 | G38: =+F38*I38% -> 64.752 | H38: - | I38: 71
B39: Residuos verdes, hierba, cereales, residuos vegetales
B40: Residuos vegetales | C40: 15 | D40: 76 | E40: =550/1000 -> 0.55 | F40: =(E40*C40%*D40%)*1000 -> 62.7 | G40: =+F40*I40% -> 43.263 | H40: =+AVERAGE(8,20) -> 14 | I40: 69
B41: Hojas | C41: 15 | D41: 82 | E41: 0.6 | F41: 73.8 | G41: =+F41*I41% -> 48.708 | H41: =+AVERAGE(8,20) -> 14 | I41: 66
B42: Verduras (frescas) | C42: =+AVERAGE(12,42) -> 27 | D42: =+AVERAGE(90,97) -> 93.5 | E42: =+AVERAGE(0.4,0.8) -> 0.6 | F42: 151.47 | G42: 81.7938 | H42: - | I42: 54
B43: Frutas descalificadas* | C43: 15 | D43: 80 | E43: =550/1000 -> 0.55 | F43: 66 | G43: 36.3 | H43: - | I43: 55
B44: Residuos de mercados | C44: =+AVERAGE(28,15) -> 21.5 | D44: 76 | E44: =+AVERAGE(0.4,0.6) -> 0.5 | F44: 81.7 | G44: 51.471 | H44: 30 | I44: 63
B45: Hojas de remolacha | C45: =+AVERAGE(15,18) -> 16.5 | D45: =+AVERAGE(78,80) -> 79 | E45: =+AVERAGE(0.4,0.8) -> 0.6 | F45: 78.21 | G45: 40.6692 | H45: - | I45: 52
B46: Remolacha | C46: =+AVERAGE(12,23) -> 17.5 | D46: =+AVERAGE(80,95) -> 87.5 | E46: =+AVERAGE(0.4,1) -> 0.7 | F46: 107.1875 | G46: 55.7375 | H46: - | I46: 52
B47: Fuente: Deublein, D., & Steinhauser, A. (2011). Biogas fron waste and renewable resources. WILEY-VCH. Fuente propia
B48: MS = Materia Seca
B49: MSo = Materia Seca Organica
B50: Hipotesis:
B51: • Residuos orgánicos mixtos = Residuos de mercados
B52: • Residuos de verduras = Residuos vegetales + Residuos de verduras (frescas)
B53: • Residuos de hortalizas = Residuos de hojas + Residuos de hojas de remolacha + Remolacha
B54: • Residuos de frutas = Residuos de frutas descalificadas
B55: • Residuos cárnicos = Residuos de desechos de carne
B58: Unidad | C58: Valor | D58: Unidad
B59: Contenido de metano en el biogas producido | C59: 65 | D59: %
B60: Recuperación eléctrica del biogás | C60: 60 | D60: %
B61: Recuperación termica del biogás | C61: 40 | D61: %
B62: Eficiencia del generador del motor | C62: 35 | D62: %
B63: Disponibilidad anual del generador del motor | C63: 90 | D63: %
B64: PCI (CH4) | C64: =+ROUND(9.9524,2) -> 9.95 | D64: kWh/m3
B65: Consideraciones técnicas del biodigestor | C65: Valor | D65: Unidad
B66: Tiempo de retención | C66: 35 | D66: dias
B67: Relacion agua:residuo | C67: 0.2 | D67: ton/ton
B68: Potencial de generación de digestato | C68: 0.1 | D68: ton/tonRO
B69: Factores de equivalente relevantes | C69: Valor | D69: Unidad
B70: Density (CH4) | C70: 0.716 | D70: kg/m3
B71: PCI (CH4) | C71: =+C70*C72 -> 9.9524 | D71: kWh/m3
B72: PCI (CH4) | C72: 13.9 | D72: kWh/kg
B73: Density (Natural gas) | C73: 0.777 | D73: kg/m3
B74: PCI (Natural gas) | C74: =+$C$73*$C$75 -> 10.1787 | D74: kWh/m3
B75: PCI (Natural gas) | C75: 13.1 | D75: kWh/kg
B78: =+C64*C63%*C62%*C60%*C59% -> 1.2223575

Sheet Modelo financiero (Energía) (hidden)
C2: MODELOS FINANCIEROS PARA EVALUAR LA VIABILIDAD DE LA IMPLEMENTACIÓN DE BIODIGESTORES IN SITU EN LAS PLAZAS DE MERCADO DE COLOMBIA SEGÚN EL TAMAÑO DE LA TECNOLOGÍA
B4: El modelo financiero para evaluar la viabilidad de la implementación de biodigestores tiene como objetivo proporcionar un análisis exhaustivo de los aspectos económicos involucrados, considerando tanto los ingresos como los costos anuales durante un período de 15 años. Este análisis abarca el costo de inversión inicial (CAPEX), los costos operativos recurrentes y las diversas fuentes de ingresos, tales como la venta de biogás y digestato, así como los beneficios derivados de la reducción en los costos de gestión de residuos. El estudio se desarrolla mediante cinco modelos financieros, correspondientes a biodigestores de diferentes tamaños: 1 tonelada, 2 toneladas, 5 toneladas, 15 toneladas y 30 toneladas. En cada uno de estos modelos, se detallan aspectos como el consumo anual de energía, agua y personal, así como la generación de biogás, digestato y las tarifas asociadas con la gestión de residuos. Estos valores se calculan para el primer año, y para los años siguientes se aplica el valor del IPC 2025 como variable fija, que ajusta tanto los costos como los ingresos de acuerdo con la inflación proyectada.
B6: 1 TPD | V6: 2 TPD | AP6: 5 TPD
B8: Información | C8: Valor | D8: Unidades | V8: Información | W8: Valor | X8: Unidades | AP8: Información | AQ8: Valor | AR8: Unidades
B9: Residuos orgánicos | C9: 1 | D9: ton/día | V9: Residuos orgánicos | W9: 2 | X9: ton/día | AP9: Residuos orgánicos | AQ9: 5 | AR9: ton/día
B10: Residuos orgánicos | C10: =+C9*330 -> 330 | D10: ton/año | V10: Residuos orgánicos | W10: =+W9*330 -> 660 | X10: ton/año | AP10: Residuos orgánicos | AQ10: =+AQ9*330 -> 1650 | AR10: ton/año
B11: IPC 2025 | C11: 0.052 | D11: % | V11: IPC 2025 | W11: 0.052 | X11: % | AP11: IPC 2025 | AQ11: 0.052 | AR11: %
B12: Incremento del biometano anual | C12: 0.14 | D12: % | V12: Incremento del biometano anual | W12: 0.14 | X12: % | AP12: Incremento del biometano anual | AQ12: 0.14 | AR12: %
B13: Incremento de energía electrica anual | C13: 0.05 | D13: % | V13: Incremento de energía electrica anual | W13: 0.05 | X13: % | AP13: Incremento de energía electrica anual | AQ13: 0.05 | AR13: %
B14: Incremento de agua anual | C14: 0.05 | D14: % | V14: Incremento de agua anual | W14: 0.05 | X14: % | AP14: Incremento de agua anual | AQ14: 0.05 | AR14: %
B15: Tarifas | V15: Tarifas | AP15: Tarifas
B16: Tarifa de tratamiento de residuos orgánicos | C16: =IF('HC_RO_Valorización Ambiental'!$D$16="",'Base de datos'!$P$7,IF('HC_RO_Valorización Ambiental'!$E$16="$/kg",'HC_RO_Valorización Ambiental'!$D$16*1000,'HC_RO_Valorización Ambiental'!$D$16)) -> 257372.2968 | D16: $/ton | V16: Tarifa de tratamiento de residuos orgánicos | W16: =+C16 -> 257372.2968 | X16: $/ton | AP16: Tarifa de tratamiento de residuos orgánicos | AQ16: =+$C$16 -> 257372.2968 | AR16: $/ton
B17: Tarifa del agua - consumo (tarifa variable)- Comercial | C17: =IF(OR('HC_RO_Valorización Ambiental'!$F$12=Dropdown_digestores!$Q$5,'HC_RO_Valorización Ambiental'!$F$12=Dropdown_digestores!$Q$6),IF(_xlfn.XLOOKUP('HC_RO_Valorización Ambiental'!$F$7,'Base de datos'!$B$9:$B$41,'Base de datos'!$E$9:$E$41)="",'Base de datos'!$E$13,_xlfn.XLOOKUP('HC_RO_Valorización Ambiental'!$F$7,'Base de datos'!$B$9:$B$41,'Base de datos'!$E$9:$E$41))) -> FALSE | D17: $/m3 | V17: Tarifa del agua - consumo (tarifa variable)- Comercial | W17: =+C17 -> FALSE | X17: $/m3 | AP17: Tarifa del agua - consumo (tarifa variable)- Comercial | AQ17: =+C17 -> FALSE | AR17: $/m3
B18: Tarifa del agua - consumo (tarifa fija) - Comercial | C18: =IF(OR('HC_RO_Valorización Ambiental'!$F$12=Dropdown_digestores!$Q$5,'HC_RO_Valorización Ambiental'!$F$12=Dropdown_digestores!$Q$6),IF(_xlfn.XLOOKUP('HC_RO_Valorización Ambiental'!$F$7,'Base de datos'!$B$9:$B$41,'Base de datos'!$D$9:$D$41)="",'Base de datos'!$D$13,_xlfn.XLOOKUP('HC_RO_Valorización Ambiental'!$F$7,'Base de datos'!$B$9:$B$41,'Base de datos'!$D$9:$D$41))) -> FALSE | D18: COP/mes | V18: Tarifa del agua - consumo (tarifa fija) - Comercial | W18: =+C18 -> FALSE | X18: COP/mes | AP18: Tarifa del agua - consumo (tarifa fija) - Comercial | AQ18: =+C18 -> FALSE | AR18: COP/mes
B19: Tarifa del agua - consumo (tarifa variable) - Industrial | C19: =IF('HC_RO_Valorización Ambiental'!$F$12=Dropdown_digestores!$Q$4,IF(_xlfn.XLOOKUP('HC_RO_Valorización Ambiental'!$F$7,'Base de datos'!$B$9:$B$41,'Base de datos'!$G$9:$G$41)="",'Base de datos'!$G$13,_xlfn.XLOOKUP('HC_RO_Valorización Ambiental'!$F$7,'Base de datos'!$B$9:$B$41,'Base de datos'!$G$9:$G$41))) -> FALSE | D19: COP/m3 | V19: Tarifa del agua - consumo (tarifa variable) - Industrial | W19: FALSE | X19: COP/m3 | AP19: Tarifa del agua - consumo (tarifa variable) - Industrial | AQ19: FALSE | AR19: COP/m3
B20: Tarifa del agua - consumo (tarifa fija) - Industrial | C20: =IF('HC_RO_Valorización Ambiental'!$F$12=Dropdown_digestores!$Q$4,IF(_xlfn.XLOOKUP('HC_RO_Valorización Ambiental'!$F$7,'Base de datos'!$B$9:$B$41,'Base de datos'!$F$9:$F$41)="",'Base de datos'!$F$13,_xlfn.XLOOKUP('HC_RO_Valorización Ambiental'!$F$7,'Base de datos'!$B$9:$B$41,'Base de datos'!$F$9:$F$41))) -> FALSE | D20: COP/mes | V20: Tarifa del agua - consumo (tarifafija) - Industrial | W20: FALSE | X20: COP/mes | AP20: Tarifa del agua - consumo (tarifafija) - Industrial | AQ20: FALSE | AR20: COP/mes
B21: Tarifa del agua - tratamiento | C21: - | D21: $/m3 | V21: Tarifa del agua - tratamiento | W21: - | X21: $/m3 | AP21: Tarifa del agua - tratamiento | AQ21: - | AR21: $/m3
B22: Tarifa eléctrica compra (comercial) | C22: =IF(OR('HC_RO_Valorización Ambiental'!$F$12=Dropdown_digestores!$Q$5,'HC_RO_Valorización Ambiental'!$F$12=Dropdown_digestores!$Q$6),IF(_xlfn.XLOOKUP('HC_RO_Valorización Ambiental'!$F$7,'Base de datos'!$B$9:$B$41,'Base de datos'!$H$9:$H$41)="",'Base de datos'!$H$13,_xlfn.XLOOKUP('HC_RO_Valorización Ambiental'!$F$7,'Base de datos'!$B$9:$B$41,'Base de datos'!$H$9:$H$41))) -> FALSE | D22: $/kWh | V22: Tarifa eléctrica venta (comercial) | W22: FALSE | X22: $/kWh | AP22: Tarifa eléctrica venta (comercial) | AQ22: FALSE | AR22: $/kWh
B23: Tarifa eléctrica compra (industrial) | C23: =IF('HC_RO_Valorización Ambiental'!$F$12=Dropdown_digestores!$Q$4,IF(_xlfn.XLOOKUP('HC_RO_Valorización Ambiental'!$F$7,'Base de datos'!$B$9:$B$41,'Base de datos'!$I$9:$I$41)="",'Base de datos'!$I$13,_xlfn.XLOOKUP('HC_RO_Valorización Ambiental'!$F$7,'Base de datos'!$B$9:$B$41,'Base de datos'!$I$9:$I$41))) -> FALSE | D23: $/kWh | V23: Tarifa eléctrica venta (industrial) | W23: FALSE | X23: $/kWh | AP23: Tarifa eléctrica venta (industrial) | AQ23: FALSE | AR23: $/kWh
B24: Tarifa eléctrica venta | C24: - | D24: $/kWh | V24: Tarifa eléctrica compra | W24: - | X24: $/kWh | AP24: Tarifa eléctrica compra | AQ24: - | AR24: $/kWh
B25: Tarifa de gas variable | C25: =IF(OR('HC_RO_Valorización Ambiental'!$F$12=Dropdown_digestores!$Q$4,'HC_RO_Valorización Ambiental'!$F$12=Dropdown_digestores!$Q$6,'HC_RO_Valorización Ambiental'!$F$12=Dropdown_digestores!$Q$5),IF(_xlfn.XLOOKUP('HC_RO_Valorización Ambiental'!$F$7,'Base de datos'!$B$9:$B$41,'Base de datos'!$J$9:$J$41)="",'Base de datos'!$J$13,_xlfn.XLOOKUP('HC_RO_Valorización Ambiental'!$F$7,'Base de datos'!$B$9:$B$41,'Base de datos'!$J$9:$J$41))) -> FALSE | D25: $/m3 | V25: Tarifa de gas variable | W25: FALSE | X25: $/m3 | AP25: Tarifa de gas variable | AQ25: FALSE | AR25: $/m3
B26: Tarifa de gas fijo | C26: =IF(OR('HC_RO_Valorización Ambiental'!$F$12=Dropdown_digestores!$Q$4,'HC_RO_Valorización Ambiental'!$F$12=Dropdown_digestores!$Q$6,'HC_RO_Valorización Ambiental'!$F$12=Dropdown_digestores!$Q$5),IF(_xlfn.XLOOKUP('HC_RO_Valorización Ambiental'!$F$7,'Base de datos'!$B$9:$B$41,'Base de datos'!$K$9:$K$41)="",'Base de datos'!$K$13,_xlfn.XLOOKUP('HC_RO_Valorización Ambiental'!$F$7,'Base de datos'!$B$9:$B$41,'Base de datos'!$K$9:$K$41))) -> FALSE | D26: $/factura | V26: Tarifa de gas fijo | W26: FALSE | X26: $/factura | AP26: Tarifa de gas fijo | AQ26: FALSE | AR26: $/factura
B27: Tarifa digestato | C27: 50000 | D27: $/ton | V27: Tarifa digestato | W27: 50000 | X27: $/ton | AP27: Tarifa digestato | AQ27: 50000 | AR27: $/ton
B28: Capex | V28: Capex | AP28: Capex
B29: Valor tecnología | C29: =+Biodigestores!H7 -> 497518399.1 | V29: Valor tecnología | W29: =+Biodigestores!H8 -> 619251624.4 | X29: COP | AP29: Valor tecnología | AQ29: =+Biodigestores!H9 -> 1986700508
B31: Operacional | V31: Operacional | AP31: Operacional
B32: Numero de operadores | C32: 1 | V32: Numero de operadores | W32: =+Biodigestores!M8 -> 1 | AP32: Numero de operadores
B33: Numero de profesionales | C33: 0 | V33: Numero de profesionales | W33: 0 | AP33: Numero de profesionales
B34: % mantenimiento | C34: 0.05 | D34: % | V34: % mantenimiento | W34: 0.05 | X34: % | AP34: % mantenimiento | AQ34: 0.05
B35: Consumos | V35: Consumos | AP35: Consumos
B36: Consumo de energía | C36: 50 | D36: kWh/día | V36: Consumo de energía | W36: =+Biodigestores!I8 -> 70 | X36: kWh/día | AP36: Consumo de energía | AQ36: =+Biodigestores!I9 -> 100 | AR36: kWh/día
B37: Consumo de energía | C37: =+C36*330 -> 16500 | D37: kWh/año | V37: Consumo de energía | W37: =+W36*330 -> 23100 | X37: kWh/año | AP37: Consumo de energía | AQ37: =+AQ36*330 -> 33000 | AR37: kWh/año
B38: Consumo de agua | C38: 0.2 | D38: m3/día | V38: Consumo de agua | W38: =+Biodigestores!J8 -> 0.4 | X38: m3/día | AP38: Consumo de agua | AQ38: =+Biodigestores!J9 -> 1 | AR38: m3/día
B39: Consumo de agua | C39: =+C38*330 -> 66 | D39: m3/año | V39: Consumo de agua | W39: =+W38*330 -> 132 | X39: m3/año | AP39: Consumo de agua | AQ39: =+AQ38*330 -> 330 | AR39: m3/año
B40: Generaciones | V40: Generaciones | AP40: Generaciones
B41: Potencial de biogás por residuo | C41: 70 | D41: m3/ton | V41: Biogas | W41: 70 | X41: m3/ton | AP41: Biogas | AQ41: 70 | AR41: m3/ton
B42: Producción de biogás | C42: =+C41*C10 -> 23100 | D42: m3/año | V42: Biogas | W42: =+W41*W10 -> 46200 | X42: m3/año | AP42: Biogas | AQ42: =+AQ41*AQ10 -> 115500 | AR42: m3/año
B43: Potencial energético | C43: =+'FE y conversiones'!$B$78 -> 1.2223575 | D43: kWh/m3 | V43: Potencial energético | W43: =+'FE y conversiones'!$B$78 -> 1.2223575 | X43: kWh/m3 | AP43: Potencial energético | AQ43: =+'FE y conversiones'!$B$78 -> 1.2223575 | AR43: kWh/m3
B44: Producción energia eléctrica | C44: =+C42*C43 -> 28236.45825 | D44: kWh/año | V44: Producción energia eléctrica | W44: =+W42*W43 -> 56472.9165 | X44: kWh/año | AP44: Producción energia eléctrica | AQ44: =+AQ42*AQ43 -> 141182.2912 | AR44: kWh/año
B45: Potencial de digestato por residuo orgánico | C45: 0.1 | D45: ton/tonRO | V45: Digestato | W45: 0.1 | X45: ton/tonRO | AP45: Digestato | AQ45: 0.1 | AR45: ton/tonRO
B47: Laboral | C47: Cantidad | F47: Operador | G47: Profesional | H47: Porcentaje por la empresa | V47: Laboral | W47: Cantidad | Z47: Operador | AA47: Profesional | AB47: Porcentaje por la empresa | AP47: Laboral | AQ47: Cantidad | AT47: Operador | AU47: Profesional | AV47: Porcentaje por la empresa
B48: N° de Operadores | C48: =+C32 -> 1 | E48: Salario | F48: =(1423500*1.5) -> 2135250 | G48: =+C52 -> 0 | V48: N° de Operadores | W48: 1 | Y48: Salario | Z48: =(1423500*1.5) -> 2135250 | AA48: =+W52 -> 0 | AP48: N° de Operadores | AQ48: 1 | AS48: Salario | AT48: =(1423500*1.5) -> 2135250 | AU48: =+AQ52 -> -
B49: Salario del Operador (1.5 smmlv) por mes | C49: =+F59 -> 3686649.725 | E49: Auxilio de transporte | F49: 200000 | G49: 0 | V49: Salario del Operador (1.5 smmlv) por mes | W49: =+Z59 -> 3686649.725 | Y49: Auxilio de transporte | Z49: 200000 | AA49: 0 | AP49: Salario del Operador (1.5 smmlv) por mes | AQ49: =+AT59 -> 3686649.725 | AS49: Auxilio de transporte | AT49: 200000 | AU49: 0
B50: Meses requeridos por año | C50: 12 | E50: Salud | F50: =F$48*H50 -> 181496.25 | G50: =$E$81*H50 -> 0 | H50: 0.085 | V50: Meses requeridos por año | W50: 12 | Y50: Salud | Z50: =$Z$48*AB50 -> 181496.25 | AA50: =$E$81*AB50 -> 0 | AB50: 0.085 | AP50: Meses requeridos por año | AQ50: 12 | AS50: Salud | AT50: =$AT$48*AV50 -> 181496.25 | AU50: =$E$81*AV50 -> 0 | AV50: 0.085
B51: N° de Técnicos Especializados | C51: 0 | E51: Pensión | F51: 256230 | G51: 0 | H51: 0.12 | V51: N° de Técnicos Especializados | W51: 0 | Y51: Pensión | Z51: 256230 | AA51: 0 | AB51: 0.12 | AP51: N° de Técnicos Especializados | AQ51: 0 | AS51: Pensión | AT51: 256230 | AU51: 0 | AV51: 0.12
B52: Salario de un Técnico Especializado (2.5 smmlv) | E52: ARL | F52: 148613.4 | G52: 0 | H52: 0.0696 | V52: Salario de un Técnico Especializado (2.5 smmlv) | Y52: ARL | Z52: 148613.4 | AA52: 0 | AB52: 0.0696 | AP52: Salario de un Técnico Especializado (2.5 smmlv) | AQ52: - | AS52: ARL | AT52: 148613.4 | AU52: 0 | AV52: 0.0696
B53: Meses requeridos por año | E53: Impuesto parafiscal | F53: 192172.5 | G53: 0 | H53: 0.09 | V53: Meses requeridos por año | Y53: Impuesto parafiscal | Z53: 192172.5 | AA53: 0 | AB53: 0.09 | AP53: Meses requeridos por año | AQ53: - | AS53: Impuesto parafiscal | AT53: 192172.5 | AU53: 0 | AV53: 0.09
B54: Costo total de mano de obra por año | E54: Bono | F54: 177866.325 | G54: 0 | H54: 0.0833 | V54: Costo total de mano de obra por año | Y54: Bono | Z54: 177866.325 | AA54: 0 | AB54: 0.0833 | AP54: Costo total de mano de obra por año | AQ54: - | AS54: Bono | AT54: 177866.325 | AU54: 0 | AV54: 0.0833
E55: Cesantía | F55: 177866.325 | G55: 0 | H55: 0.0833 | Y55: Cesantía | Z55: 177866.325 | AA55: 0 | AB55: 0.0833 | AS55: Cesantía | AT55: 177866.325 | AU55: 0 | AV55: 0.0833
E56: Intereses de despido | F56: 21352.5 | G56: 0 | H56: 0.01 | Y56: Intereses de despido | Z56: 21352.5 | AA56: 0 | AB56: 0.01 | AS56: Intereses de despido | AT56: 21352.5 | AU56: 0 | AV56: 0.01
E57: Vacaciones | F57: 89039.925 | G57: 0 | H57: 0.0417 | Y57: Vacaciones | Z57: 89039.925 | AA57: 0 | AB57: 0.0417 | AS57: Vacaciones | AT57: 89039.925 | AU57: 0 | AV57: 0.0417
E58: Dotación | F58: 106762.5 | G58: 0 | H58: 0.05 | Y58: Dotación | Z58: 106762.5 | AA58: 0 | AB58: 0.05 | AS58: Dotación | AT58: 106762.5 | AU58: 0 | AV58: 0.05
E59: Costo medio mensual | F59: =SUM(F48:F58) -> 3686649.725 | G59: =SUM(G48:G58) -> 0 | Y59: Costo medio mensual | Z59: =SUM(Z48:Z58) -> 3686649.725 | AA59: =SUM(AA48:AA58) -> 0 | AS59: Costo medio mensual | AT59: =SUM(AT48:AT58) -> 3686649.725 | AU59: =SUM(AU48:AU58) -> 0
B63: Ingresos (anuales) | C63: 0 | D63: 1 | E63: 2 | F63: 3 | G63: 4 | H63: 5 | I63: 6 | J63: 7 | K63: 8 | L63: 9 | M63: 10 | N63: 11 | O63: 12 | P63: 13 | Q63: 14 | R63: 15 | V63: Ingresos (anuales) | W63: 0 | X63: 1 | Y63: 2 | Z63: 3 | AA63: 4 | AB63: 5 | AC63: 6 | AD63: 7 | AE63: 8 | AF63: 9 | AG63: 10 | AH63: 11 | AI63: 12 | AJ63: 13 | AK63: 14 | AL63: 15 | AP63: Ingresos (anuales) | AQ63: 0 | AR63: 1 | AS63: 2 | AT63: 3 | AU63: 4 | AV63: 5 | AW63: 6 | AX63: 7 | AY63: 8 | AZ63: 9 | BA63: 10 | BB63: 11 | BC63: 12 | BD63: 13 | BE63: 14 | BF63: 15
A64: =ROUND(C64/$C$67,4) -> 0 | B64: Venta de energía eléctrica | C64: =ROUND(IF('HC_RO_Valorización Ambiental'!$D$22="",IF('HC_RO_Valorización Ambiental'!$F$12=Dropdown_digestores!$Q$4,'Modelo financiero (Energía)'!$C23*70%*'Modelo financiero (Energía)'!$C44,'Modelo financiero (Energía)'!$C22*70%*'Modelo financiero (Energía)'!$C44),'HC_RO_Valorización Ambiental'!$D$22*$C44*70%),0) -> 0 | D64: =+C64*(1+$C$12) -> 0 | E64: =+D64*(1+$C$12) -> 0 | F64: 0 | G64: 0 | H64: 0 | I64: 0 | J64: 0 | K64: 0 | L64: 0 | M64: 0 | N64: 0 | O64: 0 | P64: 0 | Q64: 0 | R64: 0 | U64: =ROUND(W64/$W$67,4) -> 0 | V64: =+B64 -> Venta de energía eléctrica | W64: =ROUND(IF('HC_RO_Valorización Ambiental'!$D$22="",IF('HC_RO_Valorización Ambiental'!$F$12=Dropdown_digestores!$Q$4,'Modelo financiero (Energía)'!W$23*70%*'Modelo financiero (Energía)'!W$44,'Modelo financiero (Energía)'!W$22*70%*'Modelo financiero (Energía)'!W$44),'HC_RO_Valorización Ambiental'!$D$22*W$44*70%),0) -> 0 | X64: =+W64*(1+$W$12) -> 0 | Y64: =+X64*(1+$W$12) -> 0 | Z64: 0 | AA64: 0 | AB64: 0 | AC64: 0 | AD64: 0 | AE64: 0 | AF64: 0 | AG64: 0 | AH64: 0 | AI64: 0 | AJ64: 0 | AK64: 0 | AL64: 0 | AO64: =ROUND(AQ64/$AQ$67,4) -> 0 | AP64: =+V64 -> Venta de energía eléctrica | AQ64: =ROUND(IF('HC_RO_Valorización Ambiental'!$D$22="",IF('HC_RO_Valorización Ambiental'!$F$12=Dropdown_digestores!$Q$4,'Modelo financiero (Energía)'!AQ$23*70%*'Modelo financiero (Energía)'!AQ$44,'Modelo financiero (Energía)'!AQ$22*70%*'Modelo financiero (Energía)'!AQ$44),'HC_RO_Valorización Ambiental'!$D$22*AQ$44*70%),0) -> 0 | AR64: =+AQ64*(1+$AQ$12) -> 0 | AS64: =+AR64*(1+$AQ$12) -> 0 | AT64: 0 | AU64: 0 | AV64: 0 | AW64: 0 | AX64: 0 | AY64: 0 | AZ64: 0 | BA64: 0 | BB64: 0 | BC64: 0 | BD64: 0 | BE64: 0 | BF64: 0
A65: =ROUND(C65/$C$67,4) -> 0.0191 | B65: Venta de digestato | C65: =ROUND((C10*C45)*C27,0) -> 1650000 | D65: =+C65*(1+$C$11) -> 1735800 | E65: 1826061.6 | F65: 1921016.803 | G65: 2020909.677 | H65: 2125996.98 | I65: 2236548.823 | J65: 2352849.362 | K65: 2475197.529 | L65: 2603907.8 | M65: 2739311.006 | N65: 2881755.178 | O65: 3031606.447 | P65: 3189249.983 | Q65: 3355090.982 | R65: 3529555.713 | U65: =ROUND(W65/$W$67,4) -> 0.0191 | V65: Venta de digestato | W65: =+W10*W45*W27 -> 3300000 | X65: =+W65*(1+$W$11) -> 3471600 | Y65: 3652123.2 | Z65: 3842033.606 | AA65: 4041819.354 | AB65: 4251993.96 | AC65: 4473097.646 | AD65: 4705698.724 | AE65: 4950395.058 | AF65: 5207815.601 | AG65: 5478622.012 | AH65: 5763510.356 | AI65: 6063212.895 | AJ65: 6378499.965 | AK65: 6710181.964 | AL65: 7059111.426 | AO65: =ROUND(AQ65/$AQ$67,4) -> 0.0191 | AP65: Venta de Digestato | AQ65: =+AQ10*AQ45*AQ27 -> 8250000 | AR65: =+AQ65*(1+$AQ$11) -> 8679000 | AS65: =+AR65*(1+$AQ$11) -> 9130308 | AT65: 9605084.016 | AU65: 10104548.38 | AV65: 10629984.9 | AW65: 11182744.12 | AX65: 11764246.81 | AY65: 12375987.64 | AZ65: 13019539 | BA65: 13696555.03 | BB65: 14408775.89 | BC65: 15158032.24 | BD65: 15946249.91 | BE65: 16775454.91 | BF65: 17647778.56
A66: =ROUND(C66/$C$67,4) -> 0.9809 | B66: Tarifa de gestión de residuos | C66: =ROUND(C10*C16,0) -> 84932858 | D66: 89349366.62 | E66: 93995533.68 | F66: 98883301.43 | G66: 104025233.1 | H66: 109434545.2 | I66: 115125141.6 | J66: 121111648.9 | K66: 127409454.7 | L66: 134034746.3 | M66: 141004553.1 | N66: 148336789.9 | O66: 156050303 | P66: 164164918.7 | Q66: 172701494.5 | R66: 181681972.2 | U66: =ROUND(W66/$W$67,4) -> 0.9809 | V66: Tarifa de gestión de residuos | W66: =+W10*W16 -> 169865715.9 | X66: 178698733.1 | Y66: 187991067.2 | Z66: 197766602.7 | AA66: 208050466.1 | AB66: 218869090.3 | AC66: 230250283 | AD66: 242223297.7 | AE66: 254818909.2 | AF66: 268069492.5 | AG66: 282009106.1 | AH66: 296673579.6 | AI66: 312100605.7 | AJ66: 328329837.2 | AK66: 345402988.8 | AL66: 363363944.2 | AO66: =ROUND(AQ66/$AQ$67,4) -> 0.9809 | AP66: Tarifa de gestión de residuos | AQ66: =+AQ10*AQ16 -> 424664289.7 | AR66: =+AQ66*(1+$AQ$11) -> 446746832.7 | AS66: 469977668 | AT66: 494416506.8 | AU66: 520126165.1 | AV66: 547172725.7 | AW66: 575625707.5 | AX66: 605558244.3 | AY66: 637047273 | AZ66: 670173731.1 | BA66: 705022765.2 | BB66: 741683949 | BC66: 780251514.3 | BD66: 820824593 | BE66: 863507471.9 | BF66: 908409860.4
B67: Ingresos anuales previstos | C67: =+SUM(C64:C66) -> 86582858 | D67: 91085166.62 | E67: 95821595.28 | F67: 100804318.2 | G67: 106046142.8 | H67: 111560542.2 | I67: 117361690.4 | J67: 123464498.3 | K67: 129884652.2 | L67: 136638654.1 | M67: 143743864.1 | N67: 151218545.1 | O67: 159081909.4 | P67: 167354168.7 | Q67: 176056585.5 | R67: 185211527.9 | V67: Ingresos anuales previstos | W67: =+SUM(W64:W66) -> 173165715.9 | X67: 182170333.1 | Y67: 191643190.4 | Z67: 201608636.3 | AA67: 212092285.4 | AB67: 223121084.3 | AC67: 234723380.6 | AD67: 246928996.4 | AE67: 259769304.2 | AF67: 273277308.1 | AG67: 287487728.1 | AH67: 302437089.9 | AI67: 318163818.6 | AJ67: 334708337.2 | AK67: 352113170.7 | AL67: 370423055.6 | AP67: Ingresos anuales previstos | AQ67: =+SUM(AQ64:AQ66) -> 432914289.7 | AR67: =+SUM(AR64:AR66) -> 455425832.7 | AS67: 479107976 | AT67: 504021590.8 | AU67: 530230713.5 | AV67: 557802710.6 | AW67: 586808451.6 | AX67: 617322491.1 | AY67: 649423260.6 | AZ67: 683193270.1 | BA67: 718719320.2 | BB67: 756092724.8 | BC67: 795409546.5 | BD67: 836770843 | BE67: 880282926.8 | BF67: 926057639
B70: Costo (anual) | C70: 0 | D70: 1 | E70: 2 | F70: 3 | G70: 4 | H70: 5 | I70: 6 | J70: 7 | K70: 8 | L70: 9 | M70: 10 | N70: 11 | O70: 12 | P70: 13 | Q70: 14 | R70: 15 | V70: Costo (anual) | W70: 0 | X70: 1 | Y70: 2 | Z70: 3 | AA70: 4 | AB70: 5 | AC70: 6 | AD70: 7 | AE70: 8 | AF70: 9 | AG70: 10 | AH70: 11 | AI70: 12 | AJ70: 13 | AK70: 14 | AL70: 15 | AP70: Costo (anual) | AQ70: 0 | AR70: 1 | AS70: 2 | AT70: 3 | AU70: 4 | AV70: 5 | AW70: 6 | AX70: 7 | AY70: 8 | AZ70: 9 | BA70: 10 | BB70: 11 | BC70: 12 | BD70: 13 | BE70: 14 | BF70: 15
A71: =ROUND(C71/$C$76,4) -> 0 | B71: Energía | C71: =ROUND(IF('HC_RO_Valorización Ambiental'!$D$22="",IF('HC_RO_Valorización Ambiental'!$F$12=Dropdown_digestores!$Q$4,$C37*$C23,$C37*$C22),'HC_RO_Valorización Ambiental'!$D$22*$C37),0) -> 0 | D71: =+C71*(1+$C$13) -> 0 | E71: =+D71*(1+$C$13) -> 0 | F71: 0 | G71: 0 | H71: 0 | I71: 0 | J71: 0 | K71: 0 | L71: 0 | M71: 0 | N71: 0 | O71: 0 | P71: 0 | Q71: 0 | R71: 0 | U71: =ROUND(W71/$W$76,4) -> 0 | V71: Energía | W71: =IF('HC_RO_Valorización Ambiental'!$D$22="",IF('HC_RO_Valorización Ambiental'!$F$12=Dropdown_digestores!$Q$4,$W37*$W23,$W37*$W22),'HC_RO_Valorización Ambiental'!$D$22*$W37) -> 0 | X71: =+W71*(1+$W$13) -> 0 | Y71: =+X71*(1+$W$13) -> 0 | Z71: 0 | AA71: 0 | AB71: 0 | AC71: 0 | AD71: 0 | AE71: 0 | AF71: 0 | AG71: 0 | AH71: 0 | AI71: 0 | AJ71: 0 | AK71: 0 | AL71: 0 | AO71: =ROUND(AQ71/$AQ$76,3) -> 0 | AP71: Energía | AQ71: =ROUND(IF('HC_RO_Valorización Ambiental'!$D$22="",IF('HC_RO_Valorización Ambiental'!$F$12=Dropdown_digestores!$Q$4,AQ$37*AQ$23,AQ$37*AQ$22),'HC_RO_Valorización Ambiental'!$D$22*$AQ37),0) -> 0 | AR71: =+AQ71*(1+$AQ$13) -> 0 | AS71: =+AR71*(1+$AQ$13) -> 0 | AT71: 0 | AU71: 0 | AV71: 0 | AW71: 0 | AX71: 0 | AY71: 0 | AZ71: 0 | BA71: 0 | BB71: 0 | BC71: 0 | BD71: 0 | BE71: 0 | BF71: 0
A72: =ROUND(C72/$C$76,4) -> 0 | B72: Agua | C72: =ROUND(IF('HC_RO_Valorización Ambiental'!$F$12=Dropdown_digestores!$Q$4,(12*$C20)+($C39*$C19),(12*$C18)+($C39*$C17)),0) -> 0 | D72: =+C72*(1+$C$14) -> 0 | E72: =+D72*(1+$C$14) -> 0 | F72: 0 | G72: 0 | H72: 0 | I72: 0 | J72: 0 | K72: 0 | L72: 0 | M72: 0 | N72: 0 | O72: 0 | P72: 0 | Q72: 0 | R72: 0 | U72: =ROUND(W72/$W$76,4) -> 0 | V72: Agua | W72: =IF('HC_RO_Valorización Ambiental'!$F$12=Dropdown_digestores!$Q$4,(12*$W20)+($W39*$W19),(12*$W18)+($W39*$W17)) -> 0 | X72: =+W72*(1+$W$14) -> 0 | Y72: =+X72*(1+$W$14) -> 0 | Z72: 0 | AA72: 0 | AB72: 0 | AC72: 0 | AD72: 0 | AE72: 0 | AF72: 0 | AG72: 0 | AH72: 0 | AI72: 0 | AJ72: 0 | AK72: 0 | AL72: 0 | AO72: =ROUND(AQ72/$AQ$76,3) -> 0 | AP72: Agua | AQ72: =ROUND(IF('HC_RO_Valorización Ambiental'!$F$12=Dropdown_digestores!$Q$4,(12*AQ$20)+(AQ$39*AQ$19),(12*AQ$18)+(AQ$39*AQ$17)),0) -> 0 | AR72: =+AQ72*(1+$AQ$14) -> 0 | AS72: =+AR72*(1+$AQ$14) -> 0 | AT72: 0 | AU72: 0 | AV72: 0 | AW72: 0 | AX72: 0 | AY72: 0 | AZ72: 0 | BA72: 0 | BB72: 0 | BC72: 0 | BD72: 0 | BE72: 0 | BF72: 0
A73: =ROUND(C73/$C$76,4) -> 0.6401 | B73: Personal | C73: =ROUND(C49*C50,0) -> 44239797 | D73: =+C73*(1+$C$11) -> 46540266.44 | E73: 48960360.3 | F73: 51506299.03 | G73: 54184626.58 | H73: 57002227.17 | I73: 59966342.98 | J73: 63084592.81 | K73: 66364991.64 | L73: 69815971.21 | M73: 73446401.71 | N73: 77265614.6 | O73: 81283426.56 | P73: 85510164.74 | Q73: 89956693.3 | R73: 94634441.36 | U73: =ROUND(W73/$W$76,4) -> 0.5883 | V73: Personal | W73: =+W49*W50 -> 44239796.7 | X73: =+W73*(1+$W$11) -> 46540266.13 | Y73: 48960359.97 | Z73: 51506298.69 | AA73: 54184626.22 | AB73: 57002226.78 | AC73: 59966342.57 | AD73: 63084592.39 | AE73: 66364991.19 | AF73: 69815970.73 | AG73: 73446401.21 | AH73: 77265614.07 | AI73: 81283426.01 | AJ73: 85510164.16 | AK73: 89956692.69 | AL73: 94634440.71 | AO73: =ROUND(AQ73/$AQ$76,3) -> 0.308 | AP73: Personal | AQ73: =ROUND(AQ49*AQ50,0) -> 44239797 | AR73: =+AQ73*(1+$AQ$11) -> 46540266.44 | AS73: 48960360.3 | AT73: 51506299.03 | AU73: 54184626.58 | AV73: 57002227.17 | AW73: 59966342.98 | AX73: 63084592.81 | AY73: 66364991.64 | AZ73: 69815971.21 | BA73: 73446401.71 | BB73: 77265614.6 | BC73: 81283426.56 | BD73: 85510164.74 | BE73: 89956693.3 | BF73: 94634441.36
A74: =ROUND(C74/$C$76,4) -> 0.3599 | B74: Mantenimiento | C74: =ROUND($C$29*$C$34,0) -> 24875920 | D74: =+$C$29*$C$34 -> 24875919.95 | E74: 24875919.95 | F74: 24875919.95 | G74: 24875919.95 | H74: 24875919.95 | I74: 24875919.95 | J74: 24875919.95 | K74: 24875919.95 | L74: 24875919.95 | M74: 24875919.95 | N74: 24875919.95 | O74: 24875919.95 | P74: 24875919.95 | Q74: 24875919.95 | R74: 24875919.95 | U74: =ROUND(W74/$W$76,4) -> 0.4117 | V74: Mantenimiento | W74: =+$W$29*$W$34 -> 30962581.22 | X74: 30962581.22 | Y74: 30962581.22 | Z74: 30962581.22 | AA74: 30962581.22 | AB74: 30962581.22 | AC74: 30962581.22 | AD74: 30962581.22 | AE74: 30962581.22 | AF74: 30962581.22 | AG74: 30962581.22 | AH74: 30962581.22 | AI74: 30962581.22 | AJ74: 30962581.22 | AK74: 30962581.22 | AL74: 30962581.22 | AO74: =ROUND(AQ74/$AQ$76,3) -> 0.692 | AP74: Mantenimiento | AQ74: =ROUND($AQ$29*$AQ$34,0) -> 99335025 | AR74: =+$AQ$29*$AQ$34 -> 99335025.4 | AS74: 99335025.4 | AT74: 99335025.4 | AU74: 99335025.4 | AV74: 99335025.4 | AW74: 99335025.4 | AX74: 99335025.4 | AY74: 99335025.4 | AZ74: 99335025.4 | BA74: 99335025.4 | BB74: 99335025.4 | BC74: 99335025.4 | BD74: 99335025.4 | BE74: 99335025.4 | BF74: 99335025.4
B75: Aguas residuales | C75: - | D75: - | E75: - | F75: - | G75: - | H75: - | I75: - | J75: - | K75: - | L75: - | M75: - | N75: - | O75: - | P75: - | Q75: - | R75: - | V75: Aguas residuales | AP75: Aguas residuales
B76: Costos operativos anuales | C76: =+SUM(C71:C75) -> 69115717 | D76: 71416186.4 | E76: 73836280.25 | F76: 76382218.99 | G76: 79060546.54 | H76: 81878147.12 | I76: 84842262.93 | J76: 87960512.77 | K76: 91240911.59 | L76: 94691891.16 | M76: 98322321.66 | N76: 102141534.6 | O76: 106159346.5 | P76: 110386084.7 | Q76: 114832613.3 | R76: 119510361.3 | V76: Costos operativos anuales | W76: =+SUM(W71:W75) -> 75202377.92 | X76: 77502847.35 | Y76: 79922941.19 | Z76: 82468879.9 | AA76: 85147207.44 | AB76: 87964808 | AC76: 90928923.79 | AD76: 94047173.61 | AE76: 97327572.41 | AF76: 100778552 | AG76: 104408982.4 | AH76: 108228195.3 | AI76: 112246007.2 | AJ76: 116472745.4 | AK76: 120919273.9 | AL76: 125597021.9 | AP76: Costos operativos anuales | AQ76: =+SUM(AQ71:AQ75) -> 143574822 | AR76: 145875291.8 | AS76: 148295385.7 | AT76: 150841324.4 | AU76: 153519652 | AV76: 156337252.6 | AX76: =+SUM(AX71:AX75) -> 162419618.2 | AY76: 165700017 | AZ76: 169150996.6 | BA76: 172781427.1 | BB76: 176600640 | BC76: 180618452 | BD76: 184845190.1 | BE76: 189291718.7 | BF76: 193969466.8
B77: Capex total | C77: =+C29 -> 497518399.1 | V77: Capex total | W77: =+W29 -> 619251624.4 | AP77: Capex total | AQ77: =+AQ29 -> 1986700508
B79: Año | C79: 0 | D79: 1 | E79: 2 | F79: 3 | G79: 4 | H79: 5 | J79: 6 | K79: 7 | L79: 8 | M79: 9 | N79: 10 | O79: 11 | P79: 12 | Q79: 13 | R79: 14 | V79: Año | W79: 0 | X79: 1 | Y79: 2 | Z79: 3 | AA79: 4 | AB79: 5 | AC79: 6 | AD79: 7 | AE79: 8 | AF79: 9 | AG79: 10 | AH79: 11 | AI79: 12 | AJ79: 13 | AK79: 14 | AL79: 15 | AP79: Año | AQ79: 0 | AR79: 1 | AS79: 2 | AT79: 3 | AU79: 4 | AV79: 5 | AW79: 6 | AX79: 7 | AY79: 8 | AZ79: 9 | BA79: 10 | BB79: 11 | BC79: 12 | BD79: 13 | BE79: 14 | BF79: 15
B80: Ganancias | C80: =+C67-C76 -> 17467141 | D80: 19668980.22 | E80: 21985315.03 | F80: 24422099.25 | G80: 26985596.25 | H80: 29682395.09 | I80: 32519427.47 | J80: 35503985.54 | K80: 38643740.62 | L80: 41946762.97 | M80: 45421542.48 | N80: 49077010.53 | O80: 52922562.91 | P80: 56968084.02 | Q80: 61223972.23 | R80: 65701166.62 | V80: Ganancias | W80: =+W67-W76 -> 97963337.95 | X80: 104667485.8 | Y80: 111720249.2 | Z80: 119139756.4 | AA80: 126945078 | AB80: 135156276.3 | AC80: 143794456.8 | AD80: 152881822.8 | AE80: 162441731.8 | AF80: 172498756.1 | AG80: 183078745.6 | AH80: 194208894.6 | AI80: 205917811.4 | AJ80: 218235591.8 | AK80: 231193896.8 | AL80: 244826033.7 | AP80: Ganancias | AQ80: =+AQ67-AQ76 -> 289339467.7 | AR80: 309550540.9 | AS80: 330812590.3 | AT80: 353180266.4 | AU80: 376711061.5 | AV80: 401465458.1 | AW80: 586808451.6 | AX80: 454902872.8 | AY80: 483723243.6 | AZ80: 514042273.5 | BA80: 545937893.1 | BB80: 579492084.8 | BC80: 614791094.6 | BD80: 651925652.8 | BE80: 690991208.1 | BF80: 732088172.2
B84: 30 TPD | V84: 13,6 TPD
B86: Información | C86: Valor | D86: Unidades | V86: Información | W86: Valor | X86: Unidades
B87: Residuos orgánicos | C87: 30 | D87: ton/día | V87: Residuos orgánicos | W87: 13.6 | X87: ton/día
B88: Residuos orgánicos | C88: =+C87*330 -> 9900 | D88: ton/año | V88: Residuos orgánicos | W88: =+W87*330 -> 4488 | X88: ton/año
B89: IPC 2025 | C89: 0.052 | D89: % | V89: IPC 2025 | W89: 0.052 | X89: %
B90: Incremento del biometano anual | C90: 0.14 | D90: % | V90: Incremento del biometano anual | W90: 0.14 | X90: %
B91: Incremento de energía electrica anual | C91: 0.05 | D91: % | V91: Incremento de energía electrica anual | W91: 0.05 | X91: %
B92: Incremento de agua anual | C92: 0.05 | D92: % | V92: Incremento de agua anual | W92: 0.05 | X92: %
B93: Tarifas | V93: Tarifas
B94: Tarifa de tratamiento de residuos orgánicos | C94: =+$C$16 -> 257372.2968 | D94: $/ton | V94: Tarifa de tratamiento de residuos orgánicos | W94: =+$C$16 -> 257372.2968 | X94: $/ton
B95: Tarifa del agua - consumo (tarifa variable)- Comercial | C95: =+C17 -> FALSE | D95: $/m3 | V95: Tarifa del agua - consumo (tarifa variable)- Comercial | W95: =+C95 -> FALSE | X95: $/m3
B96: Tarifa del agua - consumo (tarifa fija) - Comercial | C96: FALSE | D96: COP/mes | V96: Tarifa del agua - consumo (tarifa fija) - Comercial | W96: =+C96 -> FALSE | X96: COP/mes
B97: Tarifa del agua - consumo (tarifa variable) - Industrial | C97: FALSE | D97: COP/m3 | V97: Tarifa del agua - consumo (tarifa variable) - Industrial | W97: FALSE | X97: COP/m3
B98: Tarifa del agua - consumo (tarifa fija) - Industrial | C98: FALSE | D98: COP/mes | V98: Tarifa del agua - consumo (tarifafija) - Industrial | W98: FALSE | X98: COP/mes
B99: Tarifa del agua - tratamiento | C99: - | D99: $/m3 | V99: Tarifa del agua - tratamiento | W99: - | X99: $/m3
B100: Tarifa eléctrica venta (comercial) | C100: FALSE | D100: $/kWh | V100: Tarifa eléctrica venta (comercial) | W100: FALSE | X100: $/kWh
B101: Tarifa eléctrica venta (industrial) | C101: FALSE | D101: $/kWh | V101: Tarifa eléctrica venta (industrial) | W101: FALSE | X101: $/kWh
B102: Tarifa eléctrica compra | C102: - | D102: $/kWh | V102: Tarifa eléctrica compra | W102: - | X102: $/kWh
B103: Tarifa de gas variable | C103: FALSE | D103: $/m3 | V103: Tarifa de gas variable | W103: FALSE | X103: $/m3
B104: Tarifa de gas fijo | C104: FALSE | D104: $/factura | V104: Tarifa de gas fijo | W104: FALSE | X104: $/factura
B105: Tarifa digestato | C105: 50000 | D105: $/ton | V105: Tarifa digestato | W105: 50000 | X105: $/ton
B106: Capex | V106: Capex
B107: Valor tecnología | C107: =+Biodigestores!H11 -> 8890161658 | V107: Valor tecnología | W107: =+Biodigestores!H10 -> 3734709079 | X107: COP
B109: Operacional | V109: Operacional
B110: Numero de operadores | C110: 1 | V110: Numero de operadores | W110: 1
B111: Numero de profesionales | C111: 0 | V111: Numero de profesionales | W111: 1
B112: % mantenimiento | C112: 0.05 | D112: % | V112: % mantenimiento | W112: 0.05 | X112: %
B113: Consumos | V113: Consumos
B114: Consumo de energía | C114: =+Biodigestores!I11 -> 120 | D114: kWh/día | V114: Consumo de energía | W114: =+Biodigestores!I10 -> 120 | X114: kWh/día
B115: Consumo de energía | C115: =+C114*330 -> 39600 | D115: kWh/año | V115: Consumo de energía | W115: =+W114*330 -> 39600 | X115: kWh/año
B116: Consumo de agua | C116: =+Biodigestores!J11 -> 6 | D116: m3/día | V116: Consumo de agua | W116: =+Biodigestores!J10 -> 2.72 | X116: m3/día
B117: Consumo de agua | C117: =+C116*330 -> 1980 | D117: m3/año | V117: Consumo de agua | W117: =+W116*330 -> 897.6 | X117: m3/año
B118: Generaciones | V118: Generaciones
B119: Potencial de biogás por residuo | C119: 70 | D119: m3/ton | V119: Biogas | W119: 70 | X119: m3/ton
B120: Producción de biogás | C120: =+C119*C88 -> 693000 | D120: m3/año | V120: Biogas | W120: =+W119*W88 -> 314160 | X120: m3/año
B121: Potencial energético | C121: =+'FE y conversiones'!$B$78 -> 1.2223575 | D121: kWh/m3 | V121: Potencial energético | W121: =+'FE y conversiones'!$B$78 -> 1.2223575 | X121: kWh/m3
B122: Producción energia eléctrica | C122: =+C120*C121 -> 847093.7475 | D122: kWh/año | V122: Producción energia eléctrica | W122: =+W120*W121 -> 384015.8322 | X122: kWh/año
B123: Digestato | C123: 0.1 | D123: ton/tonRO | V123: Digestato | W123: 0.1 | X123: ton/tonRO
B125: Laboral | C125: Cantidad | F125: Operador | G125: Profesional | H125: Porcentaje por la empresa | V125: Laboral | W125: Cantidad | Z125: Operador | AA125: Profesional | AB125: Porcentaje por la empresa
B126: N° de Operadores | C126: 2 | E126: Salario | F126: =(1423500*1.5) -> 2135250 | G126: =(1423500*2.5) -> 3558750 | V126: N° de Operadores | W126: 1 | Y126: Salario | Z126: =(1423500*1.5) -> 2135250 | AA126: =(1423500*2.5) -> 3558750
B127: Salario del Operador (1.5 smmlv) por mes | C127: =+F137 -> 3686649.725 | E127: Auxilio de transporte | F127: 200000 | G127: 0 | V127: Salario del Operador (1.5 smmlv) por mes | W127: =+Z137 -> 3686649.725 | Y127: Auxilio de transporte | Z127: 200000 | AA127: 0
B128: Meses requeridos por año | C128: 12 | E128: Salud | F128: =F$48*H128 -> 181496.25 | G128: =$G$126*H128 -> 302493.75 | H128: 0.085 | V128: Meses requeridos por año | W128: 12 | Y128: Salud | Z128: =$Z$48*AB128 -> 181496.25 | AA128: =$AA$126*AB128 -> 302493.75 | AB128: 0.085
B129: N° de Técnicos Especializados | C129: 1 | E129: Pensión | F129: 256230 | G129: 427050 | H129: 0.12 | V129: N° de Técnicos Especializados | W129: 1 | Y129: Pensión | Z129: 256230 | AA129: 427050 | AB129: 0.12
B130: Salario de un Técnico Especializado (2.5 smmlv) | C130: =+G137 -> 5811082.875 | E130: ARL | F130: 148613.4 | G130: 247689 | H130: 0.0696 | V130: Salario de un Técnico Especializado (2.5 smmlv) | W130: =+AA137 -> 5811082.875 | Y130: ARL | Z130: 148613.4 | AA130: 247689 | AB130: 0.0696
B131: Meses requeridos por año | C131: 6 | E131: Impuesto parafiscal | F131: 192172.5 | G131: 320287.5 | H131: 0.09 | V131: Meses requeridos por año | W131: 6 | Y131: Impuesto parafiscal | Z131: 192172.5 | AA131: 320287.5 | AB131: 0.09
B132: Costo total de mano de obra por año | C132: =+(C127*C128)+(C130*C131) -> 79106293.95 | E132: Bono | F132: 177866.325 | G132: 296443.875 | H132: 0.0833 | V132: Costo total de mano de obra por año | W132: =+(W127*W128)+(AA137*W131) -> 79106293.95 | Y132: Bono | Z132: 177866.325 | AA132: 296443.875 | AB132: 0.0833
E133: Cesantía | F133: 177866.325 | G133: 296443.875 | H133: 0.0833 | Y133: Cesantía | Z133: 177866.325 | AA133: 296443.875 | AB133: 0.0833
E134: Intereses de despido | F134: 21352.5 | G134: 35587.5 | H134: 0.01 | Y134: Intereses de despido | Z134: 21352.5 | AA134: 35587.5 | AB134: 0.01
E135: Vacaciones | F135: 89039.925 | G135: 148399.875 | H135: 0.0417 | Y135: Vacaciones | Z135: 89039.925 | AA135: 148399.875 | AB135: 0.0417
E136: Dotación | F136: 106762.5 | G136: 177937.5 | H136: 0.05 | Y136: Dotación | Z136: 106762.5 | AA136: 177937.5 | AB136: 0.05
E137: Costo medio mensual | F137: =SUM(F126:F136) -> 3686649.725 | G137: =SUM(G126:G136) -> 5811082.875 | Y137: Costo medio mensual | Z137: =SUM(Z126:Z136) -> 3686649.725 | AA137: =SUM(AA126:AA136) -> 5811082.875
B141: Ingresos (anuales) | C141: 0 | D141: 1 | E141: 2 | F141: 3 | G141: 4 | H141: 5 | J141: 6 | K141: 7 | L141: 8 | M141: 9 | N141: 10 | O141: 11 | P141: 12 | Q141: 13 | R141: 14 | V141: Ingresos (anuales) | W141: 0 | X141: 1 | Y141: 2 | Z141: 3 | AA141: 4 | AB141: 5 | AD141: 6 | AE141: 7 | AF141: 8 | AG141: 9 | AH141: 10 | AI141: 11 | AJ141: 12 | AK141: 13 | AL141: 14
A142: =ROUND(C142/$C$145,4) -> 0 | B142: =+B64 -> Venta de energía eléctrica | C142: =ROUND(IF('HC_RO_Valorización Ambiental'!$D$22="",IF('HC_RO_Valorización Ambiental'!$F$12=Dropdown_digestores!$Q$4,'Modelo financiero (Energía)'!C$101*70%*'Modelo financiero (Energía)'!C$122,'Modelo financiero (Energía)'!C$100*70%*'Modelo financiero (Energía)'!C$122),'HC_RO_Valorización Ambiental'!$D$22*C$122*70%),0) -> 0 | D142: =+C142*(1+$C$90) -> 0 | E142: =+D142*(1+$C$90) -> 0 | F142: 0 | G142: 0 | H142: 0 | I142: 0 | J142: 0 | K142: 0 | L142: 0 | M142: 0 | N142: 0 | O142: 0 | P142: 0 | Q142: 0 | R142: 0 | U142: =ROUND(W142/$W$145,4) -> 0 | V142: =+B142 -> Venta de energía eléctrica | W142: =ROUND(IF('HC_RO_Valorización Ambiental'!$D$22="",IF('HC_RO_Valorización Ambiental'!$F$12=Dropdown_digestores!$Q$4,'Modelo financiero (Energía)'!W$101*70%*'Modelo financiero (Energía)'!W$122,'Modelo financiero (Energía)'!W$100*70%*'Modelo financiero (Energía)'!W$122),'HC_RO_Valorización Ambiental'!$D$22*W$122*70%),0) -> 0 | X142: =+W142*(1+$W$90) -> 0 | Y142: =+X142*(1+$W$90) -> 0 | Z142: 0 | AA142: 0 | AB142: 0 | AC142: 0 | AD142: 0 | AE142: 0 | AF142: 0 | AG142: 0 | AH142: 0 | AI142: 0 | AJ142: 0 | AK142: 0 | AL142: 0
A143: =ROUND(C143/$C$145,4) -> 0.0191 | B143: Venta de Digestato | C143: =+C88*C123*C105 -> 49500000 | D143: =+C143*(1+$C$89) -> 52074000 | E143: 54781848 | F143: 57630504.1 | G143: 60627290.31 | H143: 63779909.41 | I143: 67096464.69 | J143: 70585480.86 | K143: 74255925.86 | L143: 78117234.01 | M143: 82179330.18 | N143: 86452655.35 | O143: 90948193.42 | P143: 95677499.48 | Q143: 100652729.5 | R143: 105886671.4 | U143: =ROUND(W143/$W$145,4) -> 0.0191 | V143: Venta de Digestato | W143: =+W88*W123*W105 -> 22440000 | X143: =+W143*(1+$W$89) -> 23606880 | Y143: 24834437.76 | Z143: 26125828.52 | AA143: 27484371.61 | AB143: 28913558.93 | AC143: 30417063.99 | AD143: 31998751.32 | AE143: 33662686.39 | AF143: 35413146.08 | AG143: 37254629.68 | AH143: 39191870.42 | AI143: 41229847.69 | AJ143: 43373799.76 | AK143: 45629237.35 | AL143: 48001957.69
A144: =ROUND(C144/$C$145,4) -> 0.9809 | B144: Tarifa de gestión de residuos | C144: =+C88*C94 -> 2547985738 | D144: 2680480996 | E144: 2819866008 | F144: 2966499041 | G144: 3120756991 | H144: 3283036354 | I144: 3453754245 | J144: 3633349466 | K144: 3822283638 | L144: 4021042387 | M144: 4230136591 | N144: 4450103694 | O144: 4681509086 | P144: 4924947558 | Q144: 5181044831 | R144: 5450459163 | U144: =ROUND(W144/$W$145,4) -> 0.9809 | V144: Tarifa de gestión de residuos | W144: =+W88*W94 -> 1155086868 | X144: 1215151385 | Y144: 1278339257 | Z144: 1344812898 | AA144: 1414743169 | AB144: 1488309814 | AC144: 1565701924 | AD144: 1647118424 | AE144: 1732768582 | AF144: 1822872549 | AG144: 1917661921 | AH144: 2017380341 | AI144: 2122284119 | AJ144: 2232642893 | AK144: 2348740324 | AL144: 2470874820
B145: Ingresos anuales previstos | C145: =+SUM(C142:C144) -> 2597485738 | D145: 2732554996 | E145: 2874647856 | F145: 3024129545 | G145: 3181384281 | H145: 3346816264 | I145: 3520850709 | J145: 3703934946 | K145: 3896539564 | L145: 4099159621 | M145: 4312315921 | N145: 4536556349 | O145: 4772457279 | P145: 5020625058 | Q145: 5281697561 | R145: 5556345834 | V145: Ingresos anuales previstos | W145: =+SUM(W142:W144) -> 1177526868 | X145: 1238758265 | Y145: 1303173695 | Z145: 1370938727 | AA145: 1442227541 | AB145: 1517223373 | AC145: 1596118988 | AD145: 1679117176 | AE145: 1766431269 | AF145: 1858285695 | AG145: 1954916551 | AH145: 2056572212 | AI145: 2163513967 | AJ145: 2276016693 | AK145: 2394369561 | AL145: 2518876778
B148: Costo (anual) | C148: 0 | D148: 1 | E148: 2 | F148: 3 | G148: 4 | H148: 5 | J148: 6 | K148: 7 | L148: 8 | M148: 9 | N148: 10 | O148: 11 | P148: 12 | Q148: 13 | R148: 14 | V148: Costo (anual) | W148: 0 | X148: 1 | Y148: 2 | Z148: 3 | AA148: 4 | AB148: 5 | AD148: 6 | AE148: 7 | AF148: 8 | AG148: 9 | AH148: 10 | AI148: 11 | AJ148: 12 | AK148: 13 | AL148: 14
A149: =ROUND(C149/$C$154,4) -> 0 | B149: Energía | C149: =IF('HC_RO_Valorización Ambiental'!$D$22="",IF('HC_RO_Valorización Ambiental'!$F$12=Dropdown_digestores!$Q$4,$C115*$C101,$C115*$C100),'HC_RO_Valorización Ambiental'!$D$22*$C115) -> 0 | D149: =+C149*(1+$C$91) -> 0 | E149: =+D149*(1+$C$91) -> 0 | F149: 0 | G149: 0 | H149: 0 | I149: 0 | J149: 0 | K149: 0 | L149: 0 | M149: 0 | N149: 0 | O149: 0 | P149: 0 | Q149: 0 | R149: 0 | U149: =ROUND(W149/$W$154,3) -> 0 | V149: Energía | W149: =IF('HC_RO_Valorización Ambiental'!$D$22="",IF('HC_RO_Valorización Ambiental'!$F$12=Dropdown_digestores!$Q$4,$W115*$W101,$W115*$W100),'HC_RO_Valorización Ambiental'!$D$22*$W115) -> 0 | X149: =+W149*(1+$W$91) -> 0 | Y149: =+X149*(1+$W$91) -> 0 | Z149: 0 | AA149: 0 | AB149: 0 | AC149: 0 | AD149: 0 | AE149: 0 | AF149: 0 | AG149: 0 | AH149: 0 | AI149: 0 | AJ149: 0 | AK149: 0 | AL149: 0
A150: =ROUND(C150/$C$154,4) -> 0 | B150: Agua | C150: =IF('HC_RO_Valorización Ambiental'!$F$12=Dropdown_digestores!$Q$4,(12*$C98)+($C117*$C97),(12*$C96)+($C117*$C95)) -> 0 | D150: =+C150*(1+$C$92) -> 0 | E150: =+D150*(1+$C$92) -> 0 | F150: 0 | G150: 0 | H150: 0 | I150: 0 | J150: 0 | K150: 0 | L150: 0 | M150: 0 | N150: 0 | O150: 0 | P150: 0 | Q150: 0 | R150: 0 | U150: =ROUND(W150/$W$154,3) -> 0 | V150: Agua | W150: =IF('HC_RO_Valorización Ambiental'!$F$12=Dropdown_digestores!$Q$4,(12*$W98)+($W117*$W97),(12*$W96)+($W117*$W95)) -> 0 | X150: =+W150*(1+$W$92) -> 0 | Y150: =+X150*(1+$W$92) -> 0 | Z150: 0 | AA150: 0 | AB150: 0 | AC150: 0 | AD150: 0 | AE150: 0 | AF150: 0 | AG150: 0 | AH150: 0 | AI150: 0 | AJ150: 0 | AK150: 0 | AL150: 0
A151: =ROUND(C151/$C$154,4) -> 0.1511 | B151: Personal | C151: =+C132 -> 79106293.95 | D151: =+C151*(1+$C$89) -> 83219821.24 | E151: 87547251.94 | F151: 92099709.04 | G151: 96888893.91 | H151: 101927116.4 | I151: 107227326.4 | J151: 112803147.4 | K151: 118668911.1 | L151: 124839694.5 | M151: 131331358.6 | N151: 138160589.2 | O151: 145344939.9 | P151: 152902876.7 | Q151: 160853826.3 | R151: 169218225.3 | U151: =ROUND(W151/$W$154,3) -> 0.298 | V151: Personal | W151: =+W132 -> 79106293.95 | X151: =+W151*(1+$W$89) -> 83219821.24 | Y151: 87547251.94 | Z151: 92099709.04 | AA151: 96888893.91 | AB151: 101927116.4 | AC151: 107227326.4 | AD151: 112803147.4 | AE151: 118668911.1 | AF151: 124839694.5 | AG151: 131331358.6 | AH151: 138160589.2 | AI151: 145344939.9 | AJ151: 152902876.7 | AK151: 160853826.3 | AL151: 169218225.3
A152: =ROUND(C152/$C$154,4) -> 0.8489 | B152: Mantenimiento | C152: =+$C$107*$C$112 -> 444508082.9 | D152: 444508082.9 | E152: 444508082.9 | F152: 444508082.9 | G152: 444508082.9 | H152: 444508082.9 | I152: 444508082.9 | J152: 444508082.9 | K152: 444508082.9 | L152: 444508082.9 | M152: 444508082.9 | N152: 444508082.9 | O152: 444508082.9 | P152: 444508082.9 | Q152: 444508082.9 | R152: 444508082.9 | U152: =ROUND(W152/$W$154,3) -> 0.702 | V152: Mantenimiento | W152: =+$W$107*$W$112 -> 186735453.9 | X152: 196445697.6 | Y152: 206660873.8 | Z152: 217407239.3 | AA152: 228712415.7 | AB152: 240605461.3 | AC152: 253116945.3 | AD152: 266279026.5 | AE152: 280125535.8 | AF152: 294692063.7 | AG152: 310016051 | AH152: 326136885.7 | AI152: 343096003.7 | AJ152: 360936995.9 | AK152: 379705719.7 | AL152: 399450417.1
B153: Aguas residuales | V153: Aguas residuales
B154: Costos operativos anuales | C154: =+SUM(C149:C153) -> 523614376.9 | D154: 527727904.2 | E154: 532055334.9 | F154: 536607792 | G154: 541396976.8 | H154: 546435199.3 | I154: 551735409.4 | J154: 557311230.3 | K154: 563176994 | L154: 569347777.4 | M154: 575839441.5 | N154: 582668672.1 | O154: 589853022.8 | P154: 597410959.7 | Q154: 605361909.2 | R154: 613726308.2 | V154: Costos operativos anuales | W154: =+SUM(W149:W153) -> 265841747.9 | X154: 279665518.8 | Y154: 294208125.8 | Z154: 309506948.3 | AA154: 325601309.6 | AB154: 342532577.7 | AC154: 360344271.8 | AD154: 379082173.9 | AE154: 398794446.9 | AF154: 419531758.2 | AG154: 441347409.6 | AH154: 464297474.9 | AI154: 488440943.6 | AJ154: 513839872.7 | AK154: 540559546 | AL154: 568668642.4
B155: Capex total | C155: =+C107 -> 8890161658 | V155: Capex total | W155: =+W107 -> 3734709079
B157: Año | C157: 0 | D157: 1 | E157: 2 | F157: 3 | G157: 4 | H157: 5 | J157: 6 | K157: 7 | L157: 8 | M157: 9 | N157: 10 | O157: 11 | P157: 12 | Q157: 13 | R157: 14 | V157: Año | W157: 0 | X157: 1 | Y157: 2 | Z157: 3 | AA157: 4 | AB157: 5 | AD157: 6 | AE157: 7 | AF157: 8 | AG157: 9 | AH157: 10 | AI157: 11 | AJ157: 12 | AK157: 13 | AL157: 14
B158: Ganancias | C158: =+C145-C154 -> 2073871361 | D158: 2204827092 | E158: 2342592521 | F158: 2487521753 | G158: 2639987304 | H158: 2800381064 | I158: 2969115300 | J158: 3146623716 | K158: 3333362570 | L158: 3529811844 | M158: 3736476480 | N158: 3953887677 | O158: 4182604256 | P158: 4423214098 | Q158: 4676335652 | R158: 4942619526 | V158: Ganancias | W158: =+W145-W154 -> 911685120 | X158: 959092746.3 | Y158: 1008965569 | Z158: 1061431779 | AA158: 1116626231 | AB158: 1174690795 | AC158: 1235774717 | AD158: 1300035002 | AE158: 1367636822 | AF158: 1438753937 | AG158: 1513569141 | AH158: 1592274737 | AI158: 1675073023 | AJ158: 1762176820 | AK158: 1853810015 | AL158: 1950208136
F164: Costos operativos - Año 0 | J164: Ingresos - Año 0
A165: Capacidad planta (ton/día) | B165: Capacidad planta (ton/año) | C165: CAPEX (COP) | D165: OPEX (COP) - Año 0 | E165: Ingreso anual (COP) - Año 0 | F165: Energia (%) | G165: Agua (%) | H165: Personal (%) | I165: Mantenimiento (%) | J165: Venta de energia (%) | K165: Venta de digestato (%) | L165: Tarifa de gestión de residuos (%)
A166: =+B166/330 -> 1 | B166: =+C10 -> 330 | C166: =+C77 -> 497518399.1 | D166: =+C76 -> 69115717 | E166: =+C67 -> 86582858 | F166: =+A71 -> 0 | G166: =+A72 -> 0 | H166: =+A73 -> 0.6401 | I166: =+A74 -> 0.3599 | J166: =+$A$64 -> 0 | K166: =+A65 -> 0.0191 | L166: =+A66 -> 0.9809
A167: =+B167/330 -> 2 | B167: =+W10 -> 660 | C167: =+W77 -> 619251624.4 | D167: =+W76 -> 75202377.92 | E167: =+W67 -> 173165715.9 | F167: =+U71 -> 0 | G167: =+U72 -> 0 | H167: =+U73 -> 0.5883 | I167: =+U74 -> 0.4117 | J167: =+U64 -> 0 | K167: =+U65 -> 0.0191 | L167: =+U66 -> 0.9809
A168: 5 | B168: =+AQ10 -> 1650 | C168: =+AQ77 -> 1986700508 | D168: =+AQ76 -> 143574822 | E168: =+AQ67 -> 432914289.7 | F168: =+AO71 -> 0 | G168: =+AO72 -> 0 | H168: =+AO73 -> 0.308 | I168: =+AO74 -> 0.692 | J168: =+AO64 -> 0 | K168: =+AO65 -> 0.0191 | L168: =+AO66 -> 0.9809
A169: =+B169/330 -> 13.6 | B169: =+W88 -> 4488 | C169: =+W155 -> 3734709079 | D169: =+W154 -> 265841747.9 | E169: =+W145 -> 1177526868 | F169: =+U149 -> 0 | G169: =+U150 -> 0 | H169: =+U151 -> 0.298 | I169: =+U152 -> 0.702 | J169: =+U142 -> 0 | K169: =+U143 -> 0.0191 | L169: =+U144 -> 0.9809
A170: 30 | B170: =+C88 -> 9900 | C170: =+C155 -> 8890161658 | D170: =+C154 -> 523614376.9 | E170: =+C145 -> 2597485738 | F170: =+A149 -> 0 | G170: =+A150 -> 0 | H170: =+A151 -> 0.1511 | I170: =+A152 -> 0.8489 | J170: =+A142 -> 0 | K170: =+A143 -> 0.0191 | L170: =+A144 -> 0.9809
E171: Promedio ponderado | F171: =ROUND(SUMPRODUCT(F166*B166+F167*B167+F168*B168+F169*B169+F170*B170)/SUM($B$166:$B$167,$B$168,$B$169:$B$170),5) -> 0 | G171: =ROUND(SUMPRODUCT(G166*B166+G167*B167+G168*B168+G169*B169+G170*B170)/SUM($B$166:$B$167,$B$168,$B$169:$B$170),5) -> 0 | H171: =ROUND(SUMPRODUCT(H166*B166+H167*B167+H168*B168+H169*B169+H170*B170)/SUM($B$166:$B$167,$B$168,$B$169:$B$170),5) -> 0.23144 | I171: =ROUND(SUMPRODUCT(I166*B166+I167*B167+I168*B168+I169*B169+I170*B170)/SUM($B$166:$B$167,$B$168,$B$169:$B$170),5) -> 0.76856 | J171: =ROUND(SUMPRODUCT(J166*B166+J167*B167+J168*B168+J169*B169+J170*B170)/SUM($B$166:$B$167,$B$168,$B$169:$B$170),3) -> 0 | K171: =ROUND(SUMPRODUCT(K166*B166+K167*B167+K168*B168+K169*B169+K170*B170)/SUM($B$166:$B$167,$B$168,$B$169:$B$170),3) -> 0.019 | L171: =ROUND(SUMPRODUCT(L166*B166+L167*B167+L168*B168+L169*B169+L170*B170)/SUM($B$166:$B$167,$B$168,$B$169:$B$170),3) -> 0.981
A173: =+(C166-($B$175*B166+$C$175))/C166 -> 0.04359125425 | B173: Coeficientes de regresión lineal (CAPEX) | D173: =+B166 -> 330 | E173: 497518399.1 | F173: 69115717 | G173: 86582858
A174: =+(C167-($B$175*B167+$C$175))/C167 -> -0.230992618 | B174: m | C174: b | D174: 660 | E174: 619251624.4 | F174: 75202377.92 | G174: 173165715.9
A175: =+(C168-($B$175*B168+$C$175))/C168 -> 0.1837300779 | B175: =+LINEST(E173:E177,D173:D177) -> 868070.3946 | C175: 189367717.8 | D175: 1650 | E175: 1986700508 | F175: 143574822 | G175: 432914289.7
A176: =+(C169-($B$175*B169+$C$175))/C169 -> -0.09386502738 | B176: Coeficientes de regresión lineal (OPEX) | D176: =+B169 -> 4488 | E176: =+C169 -> 3734709079 | F176: 265841747.9 | G176: 1177526868
A177: =+(C170-($B$175*B170+$C$175))/C170 -> 0.01202419459 | B177: =+LINEST(F173:F177,D173:D177) -> 47568.46313 | C177: 53470650.31 | D177: =+B170 -> 9900 | E177: 8890161658 | F177: 523614376.9 | G177: 2597485738
A178: =+AVERAGE(A173:A177) -> -0.01710242373 | B178: Coeficientes de regresión lineal (Ingreso anual)
B179: =+LINEST(G173:G177,D173:D177,FALSE) -> 262372.2968 | C179: 0

Sheet Modelo financiero (Biogas) (hidden)
C2: MODELOS FINANCIEROS PARA EVALUAR LA VIABILIDAD DE LA IMPLEMENTACIÓN DE BIODIGESTORES IN SITU EN LAS PLAZAS DE MERCADO DE COLOMBIA SEGÚN EL TAMAÑO DE LA TECNOLOGÍA
B4: El modelo financiero para evaluar la viabilidad de la implementación de biodigestores tiene como objetivo proporcionar un análisis exhaustivo de los aspectos económicos involucrados, considerando tanto los ingresos como los costos anuales durante un período de 15 años. Este análisis abarca el costo de inversión inicial (CAPEX), los costos operativos recurrentes y las diversas fuentes de ingresos, tales como la venta de biogás y digestato, así como los beneficios derivados de la reducción en los costos de gestión de residuos. El estudio se desarrolla mediante cinco modelos financieros, correspondientes a biodigestores de diferentes tamaños: 1 tonelada, 2 toneladas, 5 toneladas, 15 toneladas y 30 toneladas. En cada uno de estos modelos, se detallan aspectos como el consumo anual de energía, agua y personal, así como la generación de biogás, digestato y las tarifas asociadas con la gestión de residuos. Estos valores se calculan para el primer año, y para los años siguientes se aplica el valor del IPC 2025 como variable fija, que ajusta tanto los costos como los ingresos de acuerdo con la inflación proyectada.
B6: 1 TPD | V6: 2 TPD | AP6: 5 TPD
B8: Información | C8: Valor | D8: Unidades | V8: Información | W8: Valor | X8: Unidades | AP8: Información | AQ8: Valor | AR8: Unidades
B9: Residuos orgánicos | C9: 1 | D9: ton/día | V9: Residuos orgánicos | W9: 2 | X9: ton/día | AP9: Residuos orgánicos | AQ9: 5 | AR9: ton/día
B10: Residuos orgánicos | C10: =+C9*330 -> 330 | D10: ton/año | V10: Residuos orgánicos | W10: =+W9*330 -> 660 | X10: ton/año | AP10: Residuos orgánicos | AQ10: =+AQ9*330 -> 1650 | AR10: ton/año
B11: IPC 2025 | C11: 0.052 | D11: % | V11: IPC 2025 | W11: 0.052 | X11: % | AP11: IPC 2025 | AQ11: 0.052 | AR11: %
B12: Incremento del biometano anual | C12: 0.14 | D12: % | V12: Incremento del biometano anual | W12: 0.14 | X12: % | AP12: Incremento del biometano anual | AQ12: 0.14 | AR12: %
B13: Incremento de energía electrica anual | C13: 0.05 | D13: % | V13: Incremento de energía electrica anual | W13: 0.05 | X13: % | AP13: Incremento de energía electrica anual | AQ13: 0.05 | AR13: %
B14: Incremento de agua anual | C14: 0.05 | D14: % | V14: Incremento de agua anual | W14: 0.05 | X14: % | AP14: Incremento de agua anual | AQ14: 0.05 | AR14: %
B15: Tarifas | V15: Tarifas | AP15: Tarifas
B16: Tarifa de tratamiento de residuos orgánicos | C16: =IF('HC_RO_Valorización Ambiental'!$D$16="",'Base de datos'!$P$7,IF('HC_RO_Valorización Ambiental'!$E$16="$/kg",'HC_RO_Valorización Ambiental'!$D$16*1000,'HC_RO_Valorización Ambiental'!$D$16)) -> 257372.2968 | D16: $/ton | V16: Tarifa de tratamiento de residuos orgánicos | W16: =+C16 -> 257372.2968 | X16: $/ton | AP16: Tarifa de tratamiento de residuos orgánicos | AQ16: =+$C$16 -> 257372.2968 | AR16: $/ton
B17: Tarifa del agua - consumo (tarifa variable)- Comercial | C17: =IF(OR('HC_RO_Valorización Ambiental'!$F$12=Dropdown_digestores!$Q$5,'HC_RO_Valorización Ambiental'!$F$12=Dropdown_digestores!$Q$6),IF(_xlfn.XLOOKUP('HC_RO_Valorización Ambiental'!$F$7,'Base de datos'!$B$9:$B$41,'Base de datos'!$E$9:$E$41)="",'Base de datos'!$E$13,_xlfn.XLOOKUP('HC_RO_Valorización Ambiental'!$F$7,'Base de datos'!$B$9:$B$41,'Base de datos'!$E$9:$E$41))) -> FALSE | D17: $/m3 | V17: Tarifa del agua - consumo (tarifa variable)- Comercial | W17: =+C17 -> FALSE | X17: $/m3 | AP17: Tarifa del agua - consumo (tarifa variable)- Comercial | AQ17: =+C17 -> FALSE | AR17: $/m3
B18: Tarifa del agua - consumo (tarifa fija) - Comercial | C18: =IF(OR('HC_RO_Valorización Ambiental'!$F$12=Dropdown_digestores!$Q$5,'HC_RO_Valorización Ambiental'!$F$12=Dropdown_digestores!$Q$6),IF(_xlfn.XLOOKUP('HC_RO_Valorización Ambiental'!$F$7,'Base de datos'!$B$9:$B$41,'Base de datos'!$D$9:$D$41)="",'Base de datos'!$D$13,_xlfn.XLOOKUP('HC_RO_Valorización Ambiental'!$F$7,'Base de datos'!$B$9:$B$41,'Base de datos'!$D$9:$D$41))) -> FALSE | D18: COP/mes | V18: Tarifa del agua - consumo (tarifa fija) - Comercial | W18: =+C18 -> FALSE | X18: COP/mes | AP18: Tarifa del agua - consumo (tarifa fija) - Comercial | AQ18: =+C18 -> FALSE | AR18: COP/mes
B19: Tarifa del agua - consumo (tarifa variable) - Industrial | C19: =IF('HC_RO_Valorización Ambiental'!$F$12=Dropdown_digestores!$Q$4,IF(_xlfn.XLOOKUP('HC_RO_Valorización Ambiental'!$F$7,'Base de datos'!$B$9:$B$41,'Base de datos'!$G$9:$G$41)="",'Base de datos'!$G$13,_xlfn.XLOOKUP('HC_RO_Valorización Ambiental'!$F$7,'Base de datos'!$B$9:$B$41,'Base de datos'!$G$9:$G$41))) -> FALSE | D19: COP/m3 | V19: Tarifa del agua - consumo (tarifa variable) - Industrial | W19: FALSE | X19: COP/m3 | AP19: Tarifa del agua - consumo (tarifa variable) - Industrial | AQ19: FALSE | AR19: COP/m3
B20: Tarifa del agua - consumo (tarifa fija) - Industrial | C20: =IF('HC_RO_Valorización Ambiental'!$F$12=Dropdown_digestores!$Q$4,IF(_xlfn.XLOOKUP('HC_RO_Valorización Ambiental'!$F$7,'Base de datos'!$B$9:$B$41,'Base de datos'!$F$9:$F$41)="",'Base de datos'!$F$13,_xlfn.XLOOKUP('HC_RO_Valorización Ambiental'!$F$7,'Base de datos'!$B$9:$B$41,'Base de datos'!$F$9:$F$41))) -> FALSE | D20: COP/mes | V20: Tarifa del agua - consumo (tarifafija) - Industrial | W20: FALSE | X20: COP/mes | AP20: Tarifa del agua - consumo (tarifafija) - Industrial | AQ20: FALSE | AR20: COP/mes
B21: Tarifa del agua - tratamiento | C21: - | D21: $/m3 | V21: Tarifa del agua - tratamiento | W21: - | X21: $/m3 | AP21: Tarifa del agua - tratamiento | AQ21: - | AR21: $/m3
B22: Tarifa eléctrica compra (comercial) | C22: =IF(OR('HC_RO_Valorización Ambiental'!$F$12=Dropdown_digestores!$Q$5,'HC_RO_Valorización Ambiental'!$F$12=Dropdown_digestores!$Q$6),IF(_xlfn.XLOOKUP('HC_RO_Valorización Ambiental'!$F$7,'Base de datos'!$B$9:$B$41,'Base de datos'!$H$9:$H$41)="",'Base de datos'!$H$13,_xlfn.XLOOKUP('HC_RO_Valorización Ambiental'!$F$7,'Base de datos'!$B$9:$B$41,'Base de datos'!$H$9:$H$41))) -> FALSE | D22: $/kWh | V22: Tarifa eléctrica venta (comercial) | W22: FALSE | X22: $/kWh | AP22: Tarifa eléctrica venta (comercial) | AQ22: FALSE | AR22: $/kWh
B23: Tarifa eléctrica compra (industrial) | C23: =IF('HC_RO_Valorización Ambiental'!$F$12=Dropdown_digestores!$Q$4,IF(_xlfn.XLOOKUP('HC_RO_Valorización Ambiental'!$F$7,'Base de datos'!$B$9:$B$41,'Base de datos'!$I$9:$I$41)="",'Base de datos'!$I$13,_xlfn.XLOOKUP('HC_RO_Valorización Ambiental'!$F$7,'Base de datos'!$B$9:$B$41,'Base de datos'!$I$9:$I$41))) -> FALSE | D23: $/kWh | V23: Tarifa eléctrica venta (industrial) | W23: FALSE | X23: $/kWh | AP23: Tarifa eléctrica venta (industrial) | AQ23: FALSE | AR23: $/kWh
B24: Tarifa eléctrica venta | C24: - | D24: $/kWh | V24: Tarifa eléctrica compra | W24: - | X24: $/kWh | AP24: Tarifa eléctrica compra | AQ24: - | AR24: $/kWh
B25: Tarifa de gas variable | C25: =IF(OR('HC_RO_Valorización Ambiental'!$F$12=Dropdown_digestores!$Q$4,'HC_RO_Valorización Ambiental'!$F$12=Dropdown_digestores!$Q$6,'HC_RO_Valorización Ambiental'!$F$12=Dropdown_digestores!$Q$5),IF(_xlfn.XLOOKUP('HC_RO_Valorización Ambiental'!$F$7,'Base de datos'!$B$9:$B$41,'Base de datos'!$J$9:$J$41)="",'Base de datos'!$J$13,_xlfn.XLOOKUP('HC_RO_Valorización Ambiental'!$F$7,'Base de datos'!$B$9:$B$41,'Base de datos'!$J$9:$J$41))) -> FALSE | D25: $/m3 | V25: Tarifa de gas variable | W25: FALSE | X25: $/m3 | AP25: Tarifa de gas variable | AQ25: FALSE | AR25: $/m3
B26: Tarifa de gas fijo | C26: =IF(OR('HC_RO_Valorización Ambiental'!$F$12=Dropdown_digestores!$Q$4,'HC_RO_Valorización Ambiental'!$F$12=Dropdown_digestores!$Q$6,'HC_RO_Valorización Ambiental'!$F$12=Dropdown_digestores!$Q$5),IF(_xlfn.XLOOKUP('HC_RO_Valorización Ambiental'!$F$7,'Base de datos'!$B$9:$B$41,'Base de datos'!$K$9:$K$41)="",'Base de datos'!$K$13,_xlfn.XLOOKUP('HC_RO_Valorización Ambiental'!$F$7,'Base de datos'!$B$9:$B$41,'Base de datos'!$K$9:$K$41))) -> FALSE | D26: $/factura | V26: Tarifa de gas fijo | W26: FALSE | X26: $/factura | AP26: Tarifa de gas fijo | AQ26: FALSE | AR26: $/factura
B27: Tarifa digestato | C27: 50000 | D27: $/ton | V27: Tarifa digestato | W27: 50000 | X27: $/ton | AP27: Tarifa digestato | AQ27: 50000 | AR27: $/ton
B28: Capex | V28: Capex | AP28: Capex
B29: Valor tecnología | C29: =+Biodigestores!H7 -> 497518399.1 | V29: Valor tecnología | W29: =+Biodigestores!H8 -> 619251624.4 | X29: COP | AP29: Valor tecnología | AQ29: =+Biodigestores!H9 -> 1986700508
B31: Operacional | V31: Operacional | AP31: Operacional
B32: Numero de operadores | C32: 1 | V32: Numero de operadores | W32: =+Biodigestores!M8 -> 1 | AP32: Numero de operadores
B33: Numero de profesionales | C33: 0 | V33: Numero de profesionales | W33: 0 | AP33: Numero de profesionales
B34: % mantenimiento | C34: 0.05 | D34: % | V34: % mantenimiento | W34: 0.05 | X34: % | AP34: % mantenimiento | AQ34: 0.05
B35: Consumos | V35: Consumos | AP35: Consumos
B36: Consumo de energía | C36: 50 | D36: kWh/día | V36: Consumo de energía | W36: =+Biodigestores!I8 -> 70 | X36: kWh/día | AP36: Consumo de energía | AQ36: =+Biodigestores!I9 -> 100 | AR36: kWh/día
B37: Consumo de energía | C37: =+C36*330 -> 16500 | D37: kWh/año | V37: Consumo de energía | W37: =+W36*330 -> 23100 | X37: kWh/año | AP37: Consumo de energía | AQ37: =+AQ36*330 -> 33000 | AR37: kWh/año
B38: Consumo de agua | C38: 0.2 | D38: m3/día | V38: Consumo de agua | W38: =+Biodigestores!J8 -> 0.4 | X38: m3/día | AP38: Consumo de agua | AQ38: =+Biodigestores!J9 -> 1 | AR38: m3/día
B39: Consumo de agua | C39: =+C38*330 -> 66 | D39: m3/año | V39: Consumo de agua | W39: =+W38*330 -> 132 | X39: m3/año | AP39: Consumo de agua | AQ39: =+AQ38*330 -> 330 | AR39: m3/año
B40: Generaciones | V40: Generaciones | AP40: Generaciones
B41: Potencial de biogás por residuo | C41: 70 | D41: m3/ton | V41: Biogas | W41: 70 | X41: m3/ton | AP41: Biogas | AQ41: 70 | AR41: m3/ton
B42: Producción de biogás | C42: =+C41*C10 -> 23100 | D42: m3/año | V42: Biogas | W42: =+W41*W10 -> 46200 | X42: m3/año | AP42: Biogas | AQ42: =+AQ41*AQ10 -> 115500 | AR42: m3/año
B43: Potencial de digestato por residuo orgánico | C43: 0.1 | D43: ton/tonRO | V43: Digestato | W43: 0.1 | X43: ton/tonRO | AP43: Digestato | AQ43: 0.1 | AR43: ton/tonRO
B45: Laboral | C45: Cantidad | F45: Operador | G45: Profesional | H45: Porcentaje por la empresa | V45: Laboral | W45: Cantidad | Z45: Operador | AA45: Profesional | AB45: Porcentaje por la empresa | AP45: Laboral | AQ45: Cantidad | AT45: Operador | AU45: Profesional | AV45: Porcentaje por la empresa
B46: N° de Operadores | C46: =+C32 -> 1 | E46: Salario | F46: =(1423500*1.5) -> 2135250 | G46: =+C50 -> 0 | V46: N° de Operadores | W46: 1 | Y46: Salario | Z46: =(1423500*1.5) -> 2135250 | AA46: =+W50 -> 0 | AP46: N° de Operadores | AQ46: 1 | AS46: Salario | AT46: =(1423500*1.5) -> 2135250 | AU46: =+AQ50 -> -
B47: Salario del Operador (1.5 smmlv) por mes | C47: =+F57 -> 3686649.725 | E47: Auxilio de transporte | F47: 200000 | G47: 0 | V47: Salario del Operador (1.5 smmlv) por mes | W47: =+Z57 -> 3686649.725 | Y47: Auxilio de transporte | Z47: 200000 | AA47: 0 | AP47: Salario del Operador (1.5 smmlv) por mes | AQ47: =+AT57 -> 3686649.725 | AS47: Auxilio de transporte | AT47: 200000 | AU47: 0
B48: Meses requeridos por año | C48: 12 | E48: Salud | F48: =F$46*H48 -> 181496.25 | G48: =$E$79*H48 -> 0 | H48: 0.085 | V48: Meses requeridos por año | W48: 12 | Y48: Salud | Z48: =$Z$46*AB48 -> 181496.25 | AA48: =$E$79*AB48 -> 0 | AB48: 0.085 | AP48: Meses requeridos por año | AQ48: 12 | AS48: Salud | AT48: =$AT$46*AV48 -> 181496.25 | AU48: =$E$79*AV48 -> 0 | AV48: 0.085
B49: N° de Técnicos Especializados | C49: 0 | E49: Pensión | F49: 256230 | G49: 0 | H49: 0.12 | V49: N° de Técnicos Especializados | W49: 0 | Y49: Pensión | Z49: 256230 | AA49: 0 | AB49: 0.12 | AP49: N° de Técnicos Especializados | AQ49: 0 | AS49: Pensión | AT49: 256230 | AU49: 0 | AV49: 0.12
B50: Salario de un Técnico Especializado (2.5 smmlv) | E50: ARL | F50: 148613.4 | G50: 0 | H50: 0.0696 | V50: Salario de un Técnico Especializado (2.5 smmlv) | Y50: ARL | Z50: 148613.4 | AA50: 0 | AB50: 0.0696 | AP50: Salario de un Técnico Especializado (2.5 smmlv) | AQ50: - | AS50: ARL | AT50: 148613.4 | AU50: 0 | AV50: 0.0696
B51: Meses requeridos por año | E51: Impuesto parafiscal | F51: 192172.5 | G51: 0 | H51: 0.09 | V51: Meses requeridos por año | Y51: Impuesto parafiscal | Z51: 192172.5 | AA51: 0 | AB51: 0.09 | AP51: Meses requeridos por año | AQ51: - | AS51: Impuesto parafiscal | AT51: 192172.5 | AU51: 0 | AV51: 0.09
B52: Costo total de mano de obra por año | E52: Bono | F52: 177866.325 | G52: 0 | H52: 0.0833 | V52: Costo total de mano de obra por año | Y52: Bono | Z52: 177866.325 | AA52: 0 | AB52: 0.0833 | AP52: Costo total de mano de obra por año | AQ52: - | AS52: Bono | AT52: 177866.325 | AU52: 0 | AV52: 0.0833
E53: Cesantía | F53: 177866.325 | G53: 0 | H53: 0.0833 | Y53: Cesantía | Z53: 177866.325 | AA53: 0 | AB53: 0.0833 | AS53: Cesantía | AT53: 177866.325 | AU53: 0 | AV53: 0.0833
E54: Intereses de despido | F54: 21352.5 | G54: 0 | H54: 0.01 | Y54: Intereses de despido | Z54: 21352.5 | AA54: 0 | AB54: 0.01 | AS54: Intereses de despido | AT54: 21352.5 | AU54: 0 | AV54: 0.01
E55: Vacaciones | F55: 89039.925 | G55: 0 | H55: 0.0417 | Y55: Vacaciones | Z55: 89039.925 | AA55: 0 | AB55: 0.0417 | AS55: Vacaciones | AT55: 89039.925 | AU55: 0 | AV55: 0.0417
E56: Dotación | F56: 106762.5 | G56: 0 | H56: 0.05 | Y56: Dotación | Z56: 106762.5 | AA56: 0 | AB56: 0.05 | AS56: Dotación | AT56: 106762.5 | AU56: 0 | AV56: 0.05
E57: Costo medio mensual | F57: =SUM(F46:F56) -> 3686649.725 | G57: =SUM(G46:G56) -> 0 | Y57: Costo medio mensual | Z57: =SUM(Z46:Z56) -> 3686649.725 | AA57: =SUM(AA46:AA56) -> 0 | AS57: Costo medio mensual | AT57: =SUM(AT46:AT56) -> 3686649.725 | AU57: =SUM(AU46:AU56) -> 0
B61: Ingresos (anuales) | C61: 0 | D61: 1 | E61: 2 | F61: 3 | G61: 4 | H61: 5 | I61: 6 | J61: 7 | K61: 8 | L61: 9 | M61: 10 | N61: 11 | O61: 12 | P61: 13 | Q61: 14 | R61: 15 | V61: Ingresos (anuales) | W61: 0 | X61: 1 | Y61: 2 | Z61: 3 | AA61: 4 | AB61: 5 | AC61: 6 | AD61: 7 | AE61: 8 | AF61: 9 | AG61: 10 | AH61: 11 | AI61: 12 | AJ61: 13 | AK61: 14 | AL61: 15 | AP61: Ingresos (anuales) | AQ61: 0 | AR61: 1 | AS61: 2 | AT61: 3 | AU61: 4 | AV61: 5 | AW61: 6 | AX61: 7 | AY61: 8 | AZ61: 9 | BA61: 10 | BB61: 11 | BC61: 12 | BD61: 13 | BE61: 14 | BF61: 15
A62: =ROUND(C62/$C$65,2) -> 0 | B62: Venta de biogas | C62: =ROUND(IF('HC_RO_Valorización Ambiental'!$D$19="",(C26*12)+(C25*C42),'HC_RO_Valorización Ambiental'!$D$19*$C$42),0) -> 0 | D62: =+C62*(1+$C$12) -> 0 | E62: =+D62*(1+$C$12) -> 0 | F62: 0 | G62: 0 | H62: 0 | I62: 0 | J62: 0 | K62: 0 | L62: 0 | M62: 0 | N62: 0 | O62: 0 | P62: 0 | Q62: 0 | R62: 0 | U62: =ROUND(W62/$W$65,2) -> 0 | V62: Venta de biogas | W62: =IF('HC_RO_Valorización Ambiental'!$D$19="",(W26*12)+(W25*W42),'HC_RO_Valorización Ambiental'!$D$19*$W$42) -> 0 | X62: =+W62*(1+$W$12) -> 0 | Y62: =+X62*(1+$W$12) -> 0 | Z62: 0 | AA62: 0 | AB62: 0 | AC62: 0 | AD62: 0 | AE62: 0 | AF62: 0 | AG62: 0 | AH62: 0 | AI62: 0 | AJ62: 0 | AK62: 0 | AL62: 0 | AO62: =ROUND(AQ62/$AQ$65,2) -> 0 | AP62: Venta de biogas | AQ62: =IF('HC_RO_Valorización Ambiental'!$D$19="",(AQ26*12)+(AQ25*AQ42),'HC_RO_Valorización Ambiental'!$D$19*$AQ$42) -> 0 | AR62: =+AQ62*(1+$AQ$12) -> 0 | AS62: =+AR62*(1+$AQ$12) -> 0 | AT62: 0 | AU62: 0 | AV62: 0 | AW62: 0 | AX62: 0 | AY62: 0 | AZ62: 0 | BA62: 0 | BB62: 0 | BC62: 0 | BD62: 0 | BE62: 0 | BF62: 0
A63: =ROUND(C63/$C$65,2) -> 0.02 | B63: Venta de digestato | C63: =ROUND((C10*C43)*C27,0) -> 1650000 | D63: =+C63*(1+$C$11) -> 1735800 | E63: 1826061.6 | F63: 1921016.803 | G63: 2020909.677 | H63: 2125996.98 | I63: 2236548.823 | J63: 2352849.362 | K63: 2475197.529 | L63: 2603907.8 | M63: 2739311.006 | N63: 2881755.178 | O63: 3031606.447 | P63: 3189249.983 | Q63: 3355090.982 | R63: 3529555.713 | U63: =ROUND(W63/$W$65,2) -> 0.02 | V63: Venta de digestato | W63: =+W10*W43*W27 -> 3300000 | X63: =+W63*(1+$W$11) -> 3471600 | Y63: 3652123.2 | Z63: 3842033.606 | AA63: 4041819.354 | AB63: 4251993.96 | AC63: 4473097.646 | AD63: 4705698.724 | AE63: 4950395.058 | AF63: 5207815.601 | AG63: 5478622.012 | AH63: 5763510.356 | AI63: 6063212.895 | AJ63: 6378499.965 | AK63: 6710181.964 | AL63: 7059111.426 | AO63: =ROUND(AQ63/$AQ$65,2) -> 0.02 | AP63: Venta de Digestato | AQ63: =+AQ10*AQ43*AQ27 -> 8250000 | AR63: =+AQ63*(1+$AQ$11) -> 8679000 | AS63: =+AR63*(1+$AQ$11) -> 9130308 | AT63: 9605084.016 | AU63: 10104548.38 | AV63: 10629984.9 | AW63: 11182744.12 | AX63: 11764246.81 | AY63: 12375987.64 | AZ63: 13019539 | BA63: 13696555.03 | BB63: 14408775.89 | BC63: 15158032.24 | BD63: 15946249.91 | BE63: 16775454.91 | BF63: 17647778.56
A64: =ROUND(C64/$C$65,2) -> 0.98 | B64: Tarifa de gestión de residuos | C64: =ROUND(C10*C16,0) -> 84932858 | D64: =+C64*(1+$C$11) -> 89349366.62 | E64: 93995533.68 | F64: 98883301.43 | G64: 104025233.1 | H64: 109434545.2 | I64: 115125141.6 | J64: 121111648.9 | K64: 127409454.7 | L64: 134034746.3 | M64: 141004553.1 | N64: 148336789.9 | O64: 156050303 | P64: 164164918.7 | Q64: 172701494.5 | R64: 181681972.2 | U64: =ROUND(W64/$W$65,2) -> 0.98 | V64: Tarifa de gestión de residuos | W64: =+W10*W16 -> 169865715.9 | X64: =+W64*(1+$W$11) -> 178698733.1 | Y64: 187991067.2 | Z64: 197766602.7 | AA64: 208050466.1 | AB64: 218869090.3 | AC64: 230250283 | AD64: 242223297.7 | AE64: 254818909.2 | AF64: 268069492.5 | AG64: 282009106.1 | AH64: 296673579.6 | AI64: 312100605.7 | AJ64: 328329837.2 | AK64: 345402988.8 | AL64: 363363944.2 | AO64: =ROUND(AQ64/$AQ$65,2) -> 0.98 | AP64: Tarifa de gestión de residuos | AQ64: =+AQ10*AQ16 -> 424664289.7 | AR64: =+AQ64*(1+$AQ$11) -> 446746832.7 | AS64: 469977668 | AT64: 494416506.8 | AU64: 520126165.1 | AV64: 547172725.7 | AW64: 575625707.5 | AX64: 605558244.3 | AY64: 637047273 | AZ64: 670173731.1 | BA64: 705022765.2 | BB64: 741683949 | BC64: 780251514.3 | BD64: 820824593 | BE64: 863507471.9 | BF64: 908409860.4
B65: Ingresos anuales previstos | C65: =+SUM(C62:C64) -> 86582858 | D65: 91085166.62 | E65: 95821595.28 | F65: 100804318.2 | G65: 106046142.8 | H65: 111560542.2 | I65: 117361690.4 | J65: 123464498.3 | K65: 129884652.2 | L65: 136638654.1 | M65: 143743864.1 | N65: 151218545.1 | O65: 159081909.4 | P65: 167354168.7 | Q65: 176056585.5 | R65: 185211527.9 | V65: Ingresos anuales previstos | W65: =+SUM(W62:W64) -> 173165715.9 | X65: 182170333.1 | Y65: 191643190.4 | Z65: 201608636.3 | AA65: 212092285.4 | AB65: 223121084.3 | AC65: 234723380.6 | AD65: 246928996.4 | AE65: 259769304.2 | AF65: 273277308.1 | AG65: 287487728.1 | AH65: 302437089.9 | AI65: 318163818.6 | AJ65: 334708337.2 | AK65: 352113170.7 | AL65: 370423055.6 | AP65: Ingresos anuales previstos | AQ65: =+SUM(AQ62:AQ64) -> 432914289.7 | AR65: =+SUM(AR62:AR64) -> 455425832.7 | AS65: 479107976 | AT65: 504021590.8 | AU65: 530230713.5 | AV65: 557802710.6 | AW65: 586808451.6 | AX65: 617322491.1 | AY65: 649423260.6 | AZ65: 683193270.1 | BA65: 718719320.2 | BB65: 756092724.8 | BC65: 795409546.5 | BD65: 836770843 | BE65: 880282926.8 | BF65: 926057639
B68: Costo (anual) | C68: 0 | D68: 1 | E68: 2 | F68: 3 | G68: 4 | H68: 5 | I68: 6 | J68: 7 | K68: 8 | L68: 9 | M68: 10 | N68: 11 | O68: 12 | P68: 13 | Q68: 14 | R68: 15 | V68: Costo (anual) | W68: 0 | X68: 1 | Y68: 2 | Z68: 3 | AA68: 4 | AB68: 5 | AC68: 6 | AD68: 7 | AE68: 8 | AF68: 9 | AG68: 10 | AH68: 11 | AI68: 12 | AJ68: 13 | AK68: 14 | AL68: 15 | AP68: Costo (anual) | AQ68: 0 | AR68: 1 | AS68: 2 | AT68: 3 | AU68: 4 | AV68: 5 | AW68: 6 | AX68: 7 | AY68: 8 | AZ68: 9 | BA68: 10 | BB68: 11 | BC68: 12 | BD68: 13 | BE68: 14 | BF68: 15
A69: =ROUND(C69/$C$74,4) -> 0 | B69: Energía | C69: =ROUND(IF('HC_RO_Valorización Ambiental'!$D$22="",IF('HC_RO_Valorización Ambiental'!$F$12=Dropdown_digestores!$Q$4,$C37*$C23,$C37*$C22),'HC_RO_Valorización Ambiental'!$D$22*$C37),0) -> 0 | D69: =+C69*(1+$C$13) -> 0 | E69: =+D69*(1+$C$13) -> 0 | F69: 0 | G69: 0 | H69: 0 | I69: 0 | J69: 0 | K69: 0 | L69: 0 | M69: 0 | N69: 0 | O69: 0 | P69: 0 | Q69: 0 | R69: 0 | U69: =ROUND(W69/$W$74,4) -> 0 | V69: Energía | W69: =IF('HC_RO_Valorización Ambiental'!$D$22="",IF('HC_RO_Valorización Ambiental'!$F$12=Dropdown_digestores!$Q$4,$W37*$W23,$W37*$W22),'HC_RO_Valorización Ambiental'!$D$22*$W37) -> 0 | X69: =+W69*(1+$W$13) -> 0 | Y69: =+X69*(1+$W$13) -> 0 | Z69: 0 | AA69: 0 | AB69: 0 | AC69: 0 | AD69: 0 | AE69: 0 | AF69: 0 | AG69: 0 | AH69: 0 | AI69: 0 | AJ69: 0 | AK69: 0 | AL69: 0 | AO69: =ROUND(AQ69/$AQ$74,3) -> 0 | AP69: Energía | AQ69: =ROUND(IF('HC_RO_Valorización Ambiental'!$D$22="",IF('HC_RO_Valorización Ambiental'!$F$12=Dropdown_digestores!$Q$4,AQ$37*AQ$23,AQ$37*AQ$22),'HC_RO_Valorización Ambiental'!$D$22*$AQ37),0) -> 0 | AR69: =+AQ69*(1+$AQ$13) -> 0 | AS69: =+AR69*(1+$AQ$13) -> 0 | AT69: 0 | AU69: 0 | AV69: 0 | AW69: 0 | AX69: 0 | AY69: 0 | AZ69: 0 | BA69: 0 | BB69: 0 | BC69: 0 | BD69: 0 | BE69: 0 | BF69: 0
A70: =ROUND(C70/$C$74,4) -> 0 | B70: Agua | C70: =ROUND(IF('HC_RO_Valorización Ambiental'!$F$12=Dropdown_digestores!$Q$4,(12*$C20)+($C39*$C19),(12*$C18)+($C39*$C17)),0) -> 0 | D70: =+C70*(1+$C$14) -> 0 | E70: =+D70*(1+$C$14) -> 0 | F70: 0 | G70: 0 | H70: 0 | I70: 0 | J70: 0 | K70: 0 | L70: 0 | M70: 0 | N70: 0 | O70: 0 | P70: 0 | Q70: 0 | R70: 0 | U70: =ROUND(W70/$W$74,4) -> 0 | V70: Agua | W70: =IF('HC_RO_Valorización Ambiental'!$F$12=Dropdown_digestores!$Q$4,(12*$W20)+($W39*$W19),(12*$W18)+($W39*$W17)) -> 0 | X70: =+W70*(1+$W$14) -> 0 | Y70: =+X70*(1+$W$14) -> 0 | Z70: 0 | AA70: 0 | AB70: 0 | AC70: 0 | AD70: 0 | AE70: 0 | AF70: 0 | AG70: 0 | AH70: 0 | AI70: 0 | AJ70: 0 | AK70: 0 | AL70: 0 | AO70: =ROUND(AQ70/$AQ$74,3) -> 0 | AP70: Agua | AQ70: =ROUND(IF('HC_RO_Valorización Ambiental'!$F$12=Dropdown_digestores!$Q$4,(12*AQ$20)+(AQ$39*AQ$19),(12*AQ$18)+(AQ$39*AQ$17)),0) -> 0 | AR70: =+AQ70*(1+$AQ$14) -> 0 | AS70: =+AR70*(1+$AQ$14) -> 0 | AT70: 0 | AU70: 0 | AV70: 0 | AW70: 0 | AX70: 0 | AY70: 0 | AZ70: 0 | BA70: 0 | BB70: 0 | BC70: 0 | BD70: 0 | BE70: 0 | BF70: 0
A71: =ROUND(C71/$C$74,4) -> 0.6401 | B71: Personal | C71: =ROUND(C47*C48,0) -> 44239797 | D71: =+C71*(1+$C$11) -> 46540266.44 | E71: 48960360.3 | F71: 51506299.03 | G71: 54184626.58 | H71: 57002227.17 | I71: 59966342.98 | J71: 63084592.81 | K71: 66364991.64 | L71: 69815971.21 | M71: 73446401.71 | N71: 77265614.6 | O71: 81283426.56 | P71: 85510164.74 | Q71: 89956693.3 | R71: 94634441.36 | U71: =ROUND(W71/$W$74,4) -> 0.5883 | V71: Personal | W71: =+W47*W48 -> 44239796.7 | X71: =+W71*(1+$W$11) -> 46540266.13 | Y71: 48960359.97 | Z71: 51506298.69 | AA71: 54184626.22 | AB71: 57002226.78 | AC71: 59966342.57 | AD71: 63084592.39 | AE71: 66364991.19 | AF71: 69815970.73 | AG71: 73446401.21 | AH71: 77265614.07 | AI71: 81283426.01 | AJ71: 85510164.16 | AK71: 89956692.69 | AL71: 94634440.71 | AO71: =ROUND(AQ71/$AQ$74,3) -> 0.308 | AP71: Personal | AQ71: =ROUND(AQ47*AQ48,0) -> 44239797 | AR71: =+AQ71*(1+$AQ$11) -> 46540266.44 | AS71: 48960360.3 | AT71: 51506299.03 | AU71: 54184626.58 | AV71: 57002227.17 | AW71: 59966342.98 | AX71: 63084592.81 | AY71: 66364991.64 | AZ71: 69815971.21 | BA71: 73446401.71 | BB71: 77265614.6 | BC71: 81283426.56 | BD71: 85510164.74 | BE71: 89956693.3 | BF71: 94634441.36
A72: =ROUND(C72/$C$74,4) -> 0.3599 | B72: Mantenimiento | C72: =ROUND($C$29*$C$34,0) -> 24875920 | D72: =+$C$29*$C$34 -> 24875919.95 | E72: 24875919.95 | F72: 24875919.95 | G72: 24875919.95 | H72: 24875919.95 | I72: 24875919.95 | J72: 24875919.95 | K72: 24875919.95 | L72: 24875919.95 | M72: 24875919.95 | N72: 24875919.95 | O72: 24875919.95 | P72: 24875919.95 | Q72: 24875919.95 | R72: 24875919.95 | U72: =ROUND(W72/$W$74,4) -> 0.4117 | V72: Mantenimiento | W72: =+$W$29*$W$34 -> 30962581.22 | X72: 30962581.22 | Y72: 30962581.22 | Z72: 30962581.22 | AA72: 30962581.22 | AB72: 30962581.22 | AC72: 30962581.22 | AD72: 30962581.22 | AE72: 30962581.22 | AF72: 30962581.22 | AG72: 30962581.22 | AH72: 30962581.22 | AI72: 30962581.22 | AJ72: 30962581.22 | AK72: 30962581.22 | AL72: 30962581.22 | AO72: =ROUND(AQ72/$AQ$74,3) -> 0.692 | AP72: Mantenimiento | AQ72: =ROUND($AQ$29*$AQ$34,0) -> 99335025 | AR72: =+$AQ$29*$AQ$34 -> 99335025.4 | AS72: 99335025.4 | AT72: 99335025.4 | AU72: 99335025.4 | AV72: 99335025.4 | AW72: 99335025.4 | AX72: 99335025.4 | AY72: 99335025.4 | AZ72: 99335025.4 | BA72: 99335025.4 | BB72: 99335025.4 | BC72: 99335025.4 | BD72: 99335025.4 | BE72: 99335025.4 | BF72: 99335025.4
B73: Aguas residuales | C73: - | D73: - | E73: - | F73: - | G73: - | H73: - | I73: - | J73: - | K73: - | L73: - | M73: - | N73: - | O73: - | P73: - | Q73: - | R73: - | V73: Aguas residuales | AP73: Aguas residuales
B74: Costos operativos anuales | C74: =+SUM(C69:C73) -> 69115717 | D74: 71416186.4 | E74: 73836280.25 | F74: 76382218.99 | G74: 79060546.54 | H74: 81878147.12 | I74: 84842262.93 | J74: 87960512.77 | K74: 91240911.59 | L74: 94691891.16 | M74: 98322321.66 | N74: 102141534.6 | O74: 106159346.5 | P74: 110386084.7 | Q74: 114832613.3 | R74: 119510361.3 | V74: Costos operativos anuales | W74: =+SUM(W69:W73) -> 75202377.92 | X74: 77502847.35 | Y74: 79922941.19 | Z74: 82468879.9 | AA74: 85147207.44 | AB74: 87964808 | AC74: 90928923.79 | AD74: 94047173.61 | AE74: 97327572.41 | AF74: 100778552 | AG74: 104408982.4 | AH74: 108228195.3 | AI74: 112246007.2 | AJ74: 116472745.4 | AK74: 120919273.9 | AL74: 125597021.9 | AP74: Costos operativos anuales | AQ74: =+SUM(AQ69:AQ73) -> 143574822 | AR74: 145875291.8 | AS74: 148295385.7 | AT74: 150841324.4 | AU74: 153519652 | AV74: 156337252.6 | AX74: =+SUM(AX69:AX73) -> 162419618.2 | AY74: 165700017 | AZ74: 169150996.6 | BA74: 172781427.1 | BB74: 176600640 | BC74: 180618452 | BD74: 184845190.1 | BE74: 189291718.7 | BF74: 193969466.8
B75: Capex total | C75: =+C29 -> 497518399.1 | V75: Capex total | W75: =+W29 -> 619251624.4 | AP75: Capex total | AQ75: =+AQ29 -> 1986700508
B77: Año | C77: 0 | D77: 1 | E77: 2 | F77: 3 | G77: 4 | H77: 5 | J77: 6 | K77: 7 | L77: 8 | M77: 9 | N77: 10 | O77: 11 | P77: 12 | Q77: 13 | R77: 14 | V77: Año | W77: 0 | X77: 1 | Y77: 2 | Z77: 3 | AA77: 4 | AB77: 5 | AC77: 6 | AD77: 7 | AE77: 8 | AF77: 9 | AG77: 10 | AH77: 11 | AI77: 12 | AJ77: 13 | AK77: 14 | AL77: 15 | AP77: Año | AQ77: 0 | AR77: 1 | AS77: 2 | AT77: 3 | AU77: 4 | AV77: 5 | AW77: 6 | AX77: 7 | AY77: 8 | AZ77: 9 | BA77: 10 | BB77: 11 | BC77: 12 | BD77: 13 | BE77: 14 | BF77: 15
B78: Ganancias | C78: =+C65-C74 -> 17467141 | D78: 19668980.22 | E78: 21985315.03 | F78: 24422099.25 | G78: 26985596.25 | H78: 29682395.09 | I78: 32519427.47 | J78: 35503985.54 | K78: 38643740.62 | L78: 41946762.97 | M78: 45421542.48 | N78: 49077010.53 | O78: 52922562.91 | P78: 56968084.02 | Q78: 61223972.23 | R78: 65701166.62 | V78: Ganancias | W78: =+W65-W74 -> 97963337.95 | X78: 104667485.8 | Y78: 111720249.2 | Z78: 119139756.4 | AA78: 126945078 | AB78: 135156276.3 | AC78: 143794456.8 | AD78: 152881822.8 | AE78: 162441731.8 | AF78: 172498756.1 | AG78: 183078745.6 | AH78: 194208894.6 | AI78: 205917811.4 | AJ78: 218235591.8 | AK78: 231193896.8 | AL78: 244826033.7 | AP78: Ganancias | AQ78: =+AQ65-AQ74 -> 289339467.7 | AR78: 309550540.9 | AS78: 330812590.3 | AT78: 353180266.4 | AU78: 376711061.5 | AV78: 401465458.1 | AW78: 586808451.6 | AX78: 454902872.8 | AY78: 483723243.6 | AZ78: 514042273.5 | BA78: 545937893.1 | BB78: 579492084.8 | BC78: 614791094.6 | BD78: 651925652.8 | BE78: 690991208.1 | BF78: 732088172.2
B82: 30 TPD | V82: 13,6 TPD
B84: Información | C84: Valor | D84: Unidades | V84: Información | W84: Valor | X84: Unidades
B85: Residuos orgánicos | C85: 30 | D85: ton/día | V85: Residuos orgánicos | W85: 13.6 | X85: ton/día
B86: Residuos orgánicos | C86: =+C85*330 -> 9900 | D86: ton/año | V86: Residuos orgánicos | W86: =+W85*330 -> 4488 | X86: ton/año
B87: IPC 2025 | C87: 0.052 | D87: % | V87: IPC 2025 | W87: 0.052 | X87: %
B88: Incremento del biometano anual | C88: 0.14 | D88: % | V88: Incremento del biometano anual | W88: 0.14 | X88: %
B89: Incremento de energía electrica anual | C89: 0.05 | D89: % | V89: Incremento de energía electrica anual | W89: 0.05 | X89: %
B90: Incremento de agua anual | C90: 0.05 | D90: % | V90: Incremento de agua anual | W90: 0.05 | X90: %
B91: Tarifas | V91: Tarifas
B92: Tarifa de tratamiento de residuos orgánicos | C92: =+$C$16 -> 257372.2968 | D92: $/ton | V92: Tarifa de tratamiento de residuos orgánicos | W92: =+$C$16 -> 257372.2968 | X92: $/ton
B93: Tarifa del agua - consumo (tarifa variable)- Comercial | C93: =+C17 -> FALSE | D93: $/m3 | V93: Tarifa del agua - consumo (tarifa variable)- Comercial | W93: =+C93 -> FALSE | X93: $/m3
B94: Tarifa del agua - consumo (tarifa fija) - Comercial | C94: FALSE | D94: COP/mes | V94: Tarifa del agua - consumo (tarifa fija) - Comercial | W94: =+C94 -> FALSE | X94: COP/mes
B95: Tarifa del agua - consumo (tarifa variable) - Industrial | C95: FALSE | D95: COP/m3 | V95: Tarifa del agua - consumo (tarifa variable) - Industrial | W95: FALSE | X95: COP/m3
B96: Tarifa del agua - consumo (tarifa fija) - Industrial | C96: FALSE | D96: COP/mes | V96: Tarifa del agua - consumo (tarifafija) - Industrial | W96: FALSE | X96: COP/mes
B97: Tarifa del agua - tratamiento | C97: - | D97: $/m3 | V97: Tarifa del agua - tratamiento | W97: - | X97: $/m3
B98: Tarifa eléctrica venta (comercial) | C98: FALSE | D98: $/kWh | V98: Tarifa eléctrica venta (comercial) | W98: FALSE | X98: $/kWh
B99: Tarifa eléctrica venta (industrial) | C99: FALSE | D99: $/kWh | V99: Tarifa eléctrica venta (industrial) | W99: FALSE | X99: $/kWh
B100: Tarifa eléctrica compra | C100: - | D100: $/kWh | V100: Tarifa eléctrica compra | W100: - | X100: $/kWh
B101: Tarifa de gas variable | C101: FALSE | D101: $/m3 | V101: Tarifa de gas variable | W101: FALSE | X101: $/m3
B102: Tarifa de gas fijo | C102: FALSE | D102: $/factura | V102: Tarifa de gas fijo | W102: FALSE | X102: $/factura
B103: Tarifa digestato | C103: 50000 | D103: $/ton | V103: Tarifa digestato | W103: 50000 | X103: $/ton
B104: Capex | V104: Capex
B105: Valor tecnología | C105: =+Biodigestores!H11 -> 8890161658 | V105: Valor tecnología | W105: =+Biodigestores!H10 -> 3734709079 | X105: COP
B107: Operacional | V107: Operacional
B108: Numero de operadores | C108: 1 | V108: Numero de operadores | W108: 1
B109: Numero de profesionales | C109: 0 | V109: Numero de profesionales | W109: 1
B110: % mantenimiento | C110: 0.05 | D110: % | V110: % mantenimiento | W110: 0.05 | X110: %
B111: Consumos | V111: Consumos
B112: Consumo de energía | C112: =+Biodigestores!I11 -> 120 | D112: kWh/día | V112: Consumo de energía | W112: =+Biodigestores!I10 -> 120 | X112: kWh/día
B113: Consumo de energía | C113: =+C112*330 -> 39600 | D113: kWh/año | V113: Consumo de energía | W113: =+W112*330 -> 39600 | X113: kWh/año
B114: Consumo de agua | C114: =+Biodigestores!J11 -> 6 | D114: m3/día | V114: Consumo de agua | W114: =+Biodigestores!J10 -> 2.72 | X114: m3/día
B115: Consumo de agua | C115: =+C114*330 -> 1980 | D115: m3/año | V115: Consumo de agua | W115: =+W114*330 -> 897.6 | X115: m3/año
B116: Generaciones | V116: Generaciones
B117: Biogas | C117: 70 | D117: m3/ton | V117: Biogas | W117: 70 | X117: m3/ton
B118: Biogas | C118: =+C117*C86 -> 693000 | D118: m3/año | V118: Biogas | W118: =+W117*W86 -> 314160 | X118: m3/año
B119: Digestato | C119: 0.1 | D119: ton/tonRO | V119: Digestato | W119: 0.1 | X119: ton/tonRO
B121: Laboral | C121: Cantidad | F121: Operador | G121: Profesional | H121: Porcentaje por la empresa | V121: Laboral | W121: Cantidad | Z121: Operador | AA121: Profesional | AB121: Porcentaje por la empresa
B122: N° de Operadores | C122: 2 | E122: Salario | F122: =(1423500*1.5) -> 2135250 | G122: =(1423500*2.5) -> 3558750 | V122: N° de Operadores | W122: 1 | Y122: Salario | Z122: =(1423500*1.5) -> 2135250 | AA122: =(1423500*2.5) -> 3558750
B123: Salario del Operador (1.5 smmlv) por mes | C123: =+F133 -> 3686649.725 | E123: Auxilio de transporte | F123: 200000 | G123: 0 | V123: Salario del Operador (1.5 smmlv) por mes | W123: =+Z133 -> 3686649.725 | Y123: Auxilio de transporte | Z123: 200000 | AA123: 0
B124: Meses requeridos por año | C124: 12 | E124: Salud | F124: =F$46*H124 -> 181496.25 | G124: =$G$122*H124 -> 302493.75 | H124: 0.085 | V124: Meses requeridos por año | W124: 12 | Y124: Salud | Z124: =$Z$46*AB124 -> 181496.25 | AA124: =$AA$122*AB124 -> 302493.75 | AB124: 0.085
B125: N° de Técnicos Especializados | C125: 1 | E125: Pensión | F125: 256230 | G125: 427050 | H125: 0.12 | V125: N° de Técnicos Especializados | W125: 1 | Y125: Pensión | Z125: 256230 | AA125: 427050 | AB125: 0.12
B126: Salario de un Técnico Especializado (2.5 smmlv) | C126: =+G133 -> 5811082.875 | E126: ARL | F126: 148613.4 | G126: 247689 | H126: 0.0696 | V126: Salario de un Técnico Especializado (2.5 smmlv) | W126: =+AA133 -> 5811082.875 | Y126: ARL | Z126: 148613.4 | AA126: 247689 | AB126: 0.0696
B127: Meses requeridos por año | C127: 6 | E127: Impuesto parafiscal | F127: 192172.5 | G127: 320287.5 | H127: 0.09 | V127: Meses requeridos por año | W127: 6 | Y127: Impuesto parafiscal | Z127: 192172.5 | AA127: 320287.5 | AB127: 0.09
B128: Costo total de mano de obra por año | C128: =+(C123*C124)+(C126*C127) -> 79106293.95 | E128: Bono | F128: 177866.325 | G128: 296443.875 | H128: 0.0833 | V128: Costo total de mano de obra por año | W128: =+(W123*W124)+(AA133*W127) -> 79106293.95 | Y128: Bono | Z128: 177866.325 | AA128: 296443.875 | AB128: 0.0833
E129: Cesantía | F129: 177866.325 | G129: 296443.875 | H129: 0.0833 | Y129: Cesantía | Z129: 177866.325 | AA129: 296443.875 | AB129: 0.0833
E130: Intereses de despido | F130: 21352.5 | G130: 35587.5 | H130: 0.01 | Y130: Intereses de despido | Z130: 21352.5 | AA130: 35587.5 | AB130: 0.01
E131: Vacaciones | F131: 89039.925 | G131: 148399.875 | H131: 0.0417 | Y131: Vacaciones | Z131: 89039.925 | AA131: 148399.875 | AB131: 0.0417
E132: Dotación | F132: 106762.5 | G132: 177937.5 | H132: 0.05 | Y132: Dotación | Z132: 106762.5 | AA132: 177937.5 | AB132: 0.05
E133: Costo medio mensual | F133: =SUM(F122:F132) -> 3686649.725 | G133: =SUM(G122:G132) -> 5811082.875 | Y133: Costo medio mensual | Z133: =SUM(Z122:Z132) -> 3686649.725 | AA133: =SUM(AA122:AA132) -> 5811082.875
B137: Ingresos (anuales) | C137: 0 | D137: 1 | E137: 2 | F137: 3 | G137: 4 | H137: 5 | J137: 6 | K137: 7 | L137: 8 | M137: 9 | N137: 10 | O137: 11 | P137: 12 | Q137: 13 | R137: 14 | V137: Ingresos (anuales) | W137: 0 | X137: 1 | Y137: 2 | Z137: 3 | AA137: 4 | AB137: 5 | AD137: 6 | AE137: 7 | AF137: 8 | AG137: 9 | AH137: 10 | AI137: 11 | AJ137: 12 | AK137: 13 | AL137: 14
A138: =ROUND(C138/$C$141,2) -> 0 | B138: Venta de biogas | C138: =IF('HC_RO_Valorización Ambiental'!$D$19="",(C102*12)+(C118*C101),'HC_RO_Valorización Ambiental'!$D$19*$C$118) -> 0 | D138: =+C138*(1+$C$88) -> 0 | E138: =+D138*(1+$C$88) -> 0 | F138: 0 | G138: 0 | H138: 0 | I138: 0 | J138: 0 | K138: 0 | L138: 0 | M138: 0 | N138: 0 | O138: 0 | P138: 0 | Q138: 0 | R138: 0 | U138: =ROUND(W138/$W$141,2) -> 0 | V138: Venta de biogas | W138: =IF('HC_RO_Valorización Ambiental'!$D$19="",(W102*12)+(W118*W101),'HC_RO_Valorización Ambiental'!$D$19*$W$118) -> 0 | X138: =+W138*(1+$W$88) -> 0 | Y138: =+X138*(1+$W$88) -> 0 | Z138: 0 | AA138: 0 | AB138: 0 | AC138: 0 | AD138: 0 | AE138: 0 | AF138: 0 | AG138: 0 | AH138: 0 | AI138: 0 | AJ138: 0 | AK138: 0 | AL138: 0
A139: =ROUND(C139/$C$141,2) -> 0.02 | B139: Venta de Digestato | C139: =+C86*C119*C103 -> 49500000 | D139: =+C139*(1+$C$87) -> 52074000 | E139: 54781848 | F139: 57630504.1 | G139: 60627290.31 | H139: 63779909.41 | I139: 67096464.69 | J139: 70585480.86 | K139: 74255925.86 | L139: 78117234.01 | M139: 82179330.18 | N139: 86452655.35 | O139: 90948193.42 | P139: 95677499.48 | Q139: 100652729.5 | R139: 105886671.4 | U139: =ROUND(W139/$W$141,2) -> 0.02 | V139: Venta de Digestato | W139: =+W86*W119*W103 -> 22440000 | X139: =+W139*(1+$W$87) -> 23606880 | Y139: 24834437.76 | Z139: 26125828.52 | AA139: 27484371.61 | AB139: 28913558.93 | AC139: 30417063.99 | AD139: 31998751.32 | AE139: 33662686.39 | AF139: 35413146.08 | AG139: 37254629.68 | AH139: 39191870.42 | AI139: 41229847.69 | AJ139: 43373799.76 | AK139: 45629237.35 | AL139: 48001957.69
A140: =ROUND(C140/$C$141,2) -> 0.98 | B140: Tarifa de gestión de residuos | C140: =+C86*C92 -> 2547985738 | D140: =+C140*(1+$C$87) -> 2680480996 | E140: 2819866008 | F140: 2966499041 | G140: 3120756991 | H140: 3283036354 | I140: 3453754245 | J140: 3633349466 | K140: 3822283638 | L140: 4021042387 | M140: 4230136591 | N140: 4450103694 | O140: 4681509086 | P140: 4924947558 | Q140: 5181044831 | R140: 5450459163 | U140: =ROUND(W140/$W$141,2) -> 0.98 | V140: Tarifa de gestión de residuos | W140: =+W86*W92 -> 1155086868 | X140: =+W140*(1+$W$87) -> 1215151385 | Y140: 1278339257 | Z140: 1344812898 | AA140: 1414743169 | AB140: 1488309814 | AC140: 1565701924 | AD140: 1647118424 | AE140: 1732768582 | AF140: 1822872549 | AG140: 1917661921 | AH140: 2017380341 | AI140: 2122284119 | AJ140: 2232642893 | AK140: 2348740324 | AL140: 2470874820
B141: Ingresos anuales previstos | C141: =+SUM(C138:C140) -> 2597485738 | D141: 2732554996 | E141: 2874647856 | F141: 3024129545 | G141: 3181384281 | H141: 3346816264 | I141: 3520850709 | J141: 3703934946 | K141: 3896539564 | L141: 4099159621 | M141: 4312315921 | N141: 4536556349 | O141: 4772457279 | P141: 5020625058 | Q141: 5281697561 | R141: 5556345834 | V141: Ingresos anuales previstos | W141: =+SUM(W138:W140) -> 1177526868 | X141: 1238758265 | Y141: 1303173695 | Z141: 1370938727 | AA141: 1442227541 | AB141: 1517223373 | AC141: 1596118988 | AD141: 1679117176 | AE141: 1766431269 | AF141: 1858285695 | AG141: 1954916551 | AH141: 2056572212 | AI141: 2163513967 | AJ141: 2276016693 | AK141: 2394369561 | AL141: 2518876778
B144: Costo (anual) | C144: 0 | D144: 1 | E144: 2 | F144: 3 | G144: 4 | H144: 5 | J144: 6 | K144: 7 | L144: 8 | M144: 9 | N144: 10 | O144: 11 | P144: 12 | Q144: 13 | R144: 14 | V144: Costo (anual) | W144: 0 | X144: 1 | Y144: 2 | Z144: 3 | AA144: 4 | AB144: 5 | AD144: 6 | AE144: 7 | AF144: 8 | AG144: 9 | AH144: 10 | AI144: 11 | AJ144: 12 | AK144: 13 | AL144: 14
A145: =ROUND(C145/$C$150,4) -> 0 | B145: Energía | C145: =IF('HC_RO_Valorización Ambiental'!$D$22="",IF('HC_RO_Valorización Ambiental'!$F$12=Dropdown_digestores!$Q$4,$C113*$C99,$C113*$C98),'HC_RO_Valorización Ambiental'!$D$22*$C113) -> 0 | D145: =+C145*(1+$C$89) -> 0 | E145: =+D145*(1+$C$89) -> 0 | F145: 0 | G145: 0 | H145: 0 | I145: 0 | J145: 0 | K145: 0 | L145: 0 | M145: 0 | N145: 0 | O145: 0 | P145: 0 | Q145: 0 | R145: 0 | U145: =ROUND(W145/$W$150,3) -> 0 | V145: Energía | W145: =IF('HC_RO_Valorización Ambiental'!$D$22="",IF('HC_RO_Valorización Ambiental'!$F$12=Dropdown_digestores!$Q$4,$W113*$W99,$W113*$W98),'HC_RO_Valorización Ambiental'!$D$22*$W113) -> 0 | X145: =+W145*(1+$W$89) -> 0 | Y145: =+X145*(1+$W$89) -> 0 | Z145: 0 | AA145: 0 | AB145: 0 | AC145: 0 | AD145: 0 | AE145: 0 | AF145: 0 | AG145: 0 | AH145: 0 | AI145: 0 | AJ145: 0 | AK145: 0 | AL145: 0
A146: =ROUND(C146/$C$150,4) -> 0 | B146: Agua | C146: =IF('HC_RO_Valorización Ambiental'!$F$12=Dropdown_digestores!$Q$4,(12*$C96)+($C115*$C95),(12*$C94)+($C115*$C93)) -> 0 | D146: =+C146*(1+$C$90) -> 0 | E146: =+D146*(1+$C$90) -> 0 | F146: 0 | G146: 0 | H146: 0 | I146: 0 | J146: 0 | K146: 0 | L146: 0 | M146: 0 | N146: 0 | O146: 0 | P146: 0 | Q146: 0 | R146: 0 | U146: =ROUND(W146/$W$150,3) -> 0 | V146: Agua | W146: =IF('HC_RO_Valorización Ambiental'!$F$12=Dropdown_digestores!$Q$4,(12*$W96)+($W115*$W95),(12*$W94)+($W115*$W93)) -> 0 | X146: =+W146*(1+$W$90) -> 0 | Y146: =+X146*(1+$W$90) -> 0 | Z146: 0 | AA146: 0 | AB146: 0 | AC146: 0 | AD146: 0 | AE146: 0 | AF146: 0 | AG146: 0 | AH146: 0 | AI146: 0 | AJ146: 0 | AK146: 0 | AL146: 0
A147: =ROUND(C147/$C$150,4) -> 0.1511 | B147: Personal | C147: =+C128 -> 79106293.95 | D147: =+C147*(1+$C$87) -> 83219821.24 | E147: 87547251.94 | F147: 92099709.04 | G147: 96888893.91 | H147: 101927116.4 | I147: 107227326.4 | J147: 112803147.4 | K147: 118668911.1 | L147: 124839694.5 | M147: 131331358.6 | N147: 138160589.2 | O147: 145344939.9 | P147: 152902876.7 | Q147: 160853826.3 | R147: 169218225.3 | U147: =ROUND(W147/$W$150,3) -> 0.298 | V147: Personal | W147: =+W128 -> 79106293.95 | X147: =+W147*(1+$W$87) -> 83219821.24 | Y147: 87547251.94 | Z147: 92099709.04 | AA147: 96888893.91 | AB147: 101927116.4 | AC147: 107227326.4 | AD147: 112803147.4 | AE147: 118668911.1 | AF147: 124839694.5 | AG147: 131331358.6 | AH147: 138160589.2 | AI147: 145344939.9 | AJ147: 152902876.7 | AK147: 160853826.3 | AL147: 169218225.3
A148: =ROUND(C148/$C$150,4) -> 0.8489 | B148: Mantenimiento | C148: =+$C$105*$C$110 -> 444508082.9 | D148: 444508082.9 | E148: 444508082.9 | F148: 444508082.9 | G148: 444508082.9 | H148: 444508082.9 | I148: 444508082.9 | J148: 444508082.9 | K148: 444508082.9 | L148: 444508082.9 | M148: 444508082.9 | N148: 444508082.9 | O148: 444508082.9 | P148: 444508082.9 | Q148: 444508082.9 | R148: 444508082.9 | U148: =ROUND(W148/$W$150,3) -> 0.702 | V148: Mantenimiento | W148: =+$W$105*$W$110 -> 186735453.9 | X148: =+W148*(1+$W$87) -> 196445697.6 | Y148: 206660873.8 | Z148: 217407239.3 | AA148: 228712415.7 | AB148: 240605461.3 | AC148: 253116945.3 | AD148: 266279026.5 | AE148: 280125535.8 | AF148: 294692063.7 | AG148: 310016051 | AH148: 326136885.7 | AI148: 343096003.7 | AJ148: 360936995.9 | AK148: 379705719.7 | AL148: 399450417.1
B149: Aguas residuales | V149: Aguas residuales
B150: Costos operativos anuales | C150: =+SUM(C145:C149) -> 523614376.9 | D150: 527727904.2 | E150: 532055334.9 | F150: 536607792 | G150: 541396976.8 | H150: 546435199.3 | I150: 551735409.4 | J150: 557311230.3 | K150: 563176994 | L150: 569347777.4 | M150: 575839441.5 | N150: 582668672.1 | O150: 589853022.8 | P150: 597410959.7 | Q150: 605361909.2 | R150: 613726308.2 | V150: Costos operativos anuales | W150: =+SUM(W145:W149) -> 265841747.9 | X150: 279665518.8 | Y150: 294208125.8 | Z150: 309506948.3 | AA150: 325601309.6 | AB150: 342532577.7 | AC150: 360344271.8 | AD150: 379082173.9 | AE150: 398794446.9 | AF150: 419531758.2 | AG150: 441347409.6 | AH150: 464297474.9 | AI150: 488440943.6 | AJ150: 513839872.7 | AK150: 540559546 | AL150: 568668642.4
B151: Capex total | C151: =+C105 -> 8890161658 | V151: Capex total | W151: =+W105 -> 3734709079
B153: Año | C153: 0 | D153: 1 | E153: 2 | F153: 3 | G153: 4 | H153: 5 | J153: 6 | K153: 7 | L153: 8 | M153: 9 | N153: 10 | O153: 11 | P153: 12 | Q153: 13 | R153: 14 | V153: Año | W153: 0 | X153: 1 | Y153: 2 | Z153: 3 | AA153: 4 | AB153: 5 | AD153: 6 | AE153: 7 | AF153: 8 | AG153: 9 | AH153: 10 | AI153: 11 | AJ153: 12 | AK153: 13 | AL153: 14
B154: Ganancias | C154: =+C141-C150 -> 2073871361 | D154: 2204827092 | E154: 2342592521 | F154: 2487521753 | G154: 2639987304 | H154: 2800381064 | I154: 2969115300 | J154: 3146623716 | K154: 3333362570 | L154: 3529811844 | M154: 3736476480 | N154: 3953887677 | O154: 4182604256 | P154: 4423214098 | Q154: 4676335652 | R154: 4942619526 | V154: Ganancias | W154: =+W141-W150 -> 911685120 | X154: 959092746.3 | Y154: 1008965569 | Z154: 1061431779 | AA154: 1116626231 | AB154: 1174690795 | AC154: 1235774717 | AD154: 1300035002 | AE154: 1367636822 | AF154: 1438753937 | AG154: 1513569141 | AH154: 1592274737 | AI154: 1675073023 | AJ154: 1762176820 | AK154: 1853810015 | AL154: 1950208136
F160: Costos operativos - Año 0 | J160: Ingresos - Año 0
A161: Capacidad planta (ton/día) | B161: Capacidad planta (ton/año) | C161: CAPEX (COP) | D161: OPEX (COP) - Año 0 | E161: Ingreso anual (COP) - Año 0 | F161: Energia (%) | G161: Agua (%) | H161: Personal (%) | I161: Mantenimiento (%) | J161: Venta de biogas (%) | K161: Venta de digestato (%) | L161: Tarifa de gestión de residuos (%)
A162: =+B162/330 -> 1 | B162: =+C10 -> 330 | C162: =+C75 -> 497518399.1 | D162: =+C74 -> 69115717 | E162: =+C65 -> 86582858 | F162: =+A69 -> 0 | G162: =+A70 -> 0 | H162: =+A71 -> 0.6401 | I162: =+A72 -> 0.3599 | J162: =+$A$62 -> 0 | K162: =+A63 -> 0.02 | L162: =+A64 -> 0.98
A163: =+B163/330 -> 2 | B163: =+W10 -> 660 | C163: =+W75 -> 619251624.4 | D163: =+W74 -> 75202377.92 | E163: =+W65 -> 173165715.9 | F163: =+U69 -> 0 | G163: =+U70 -> 0 | H163: =+U71 -> 0.5883 | I163: =+U72 -> 0.4117 | J163: =+U62 -> 0 | K163: =+U63 -> 0.02 | L163: =+U64 -> 0.98
A164: 5 | B164: =+AQ10 -> 1650 | C164: =+AQ75 -> 1986700508 | D164: =+AQ74 -> 143574822 | E164: =+AQ65 -> 432914289.7 | F164: =+AO69 -> 0 | G164: =+AO70 -> 0 | H164: =+AO71 -> 0.308 | I164: =+AO72 -> 0.692 | J164: =+AO62 -> 0 | K164: =+AO63 -> 0.02 | L164: =+AO64 -> 0.98
A165: 13.6 | B165: =+W86 -> 4488 | C165: =+W151 -> 3734709079 | D165: =+W150 -> 265841747.9 | E165: =+W141 -> 1177526868 | F165: =+U145 -> 0 | G165: =+U146 -> 0 | H165: =+U147 -> 0.298 | I165: =+U148 -> 0.702 | J165: =+U138 -> 0 | K165: =+U139 -> 0.02 | L165: =+U140 -> 0.98
A166: 30 | B166: =+C86 -> 9900 | C166: =+C151 -> 8890161658 | D166: =+C150 -> 523614376.9 | E166: =+C141 -> 2597485738 | F166: =+A145 -> 0 | G166: =+A146 -> 0 | H166: =+A147 -> 0.1511 | I166: =+A148 -> 0.8489 | J166: =+A138 -> 0 | K166: =+A139 -> 0.02 | L166: =+A140 -> 0.98
E167: Promedio ponderado | F167: =ROUND(SUMPRODUCT(F162*B162+F163*B163+F164*B164+F165*B165+F166*B166)/SUM($B$162:$B$163,$B$164,$B$165:$B$166),5) -> 0 | G167: =ROUND(SUMPRODUCT(G162*B162+G163*B163+G164*B164+G165*B165+G166*B166)/SUM($B$162:$B$163,$B$164,$B$165:$B$166),5) -> 0 | H167: =ROUND(SUMPRODUCT(H162*B162+H163*B163+H164*B164+H165*B165+H166*B166)/SUM($B$162:$B$163,$B$164,$B$165:$B$166),5) -> 0.23144 | I167: =ROUND(SUMPRODUCT(I162*B162+I163*B163+I164*B164+I165*B165+I166*B166)/SUM($B$162:$B$163,$B$164,$B$165:$B$166),5) -> 0.76856 | J167: =ROUND(SUMPRODUCT(J162*B162+J163*B163+J164*B164+J165*B165+J166*B166)/SUM($B$162:$B$163,$B$164,$B$165:$B$166),3) -> 0 | K167: =ROUND(SUMPRODUCT(K162*B162+K163*B163+K164*B164+K165*B165+K166*B166)/SUM($B$162:$B$163,$B$164,$B$165:$B$166),3) -> 0.02 | L167: =ROUND(SUMPRODUCT(L162*B162+L163*B163+L164*B164+L165*B165+L166*B166)/SUM($B$162:$B$163,$B$164,$B$165:$B$166),3) -> 0.98
A169: =+(C162-($B$171*B162+$C$171))/C162 -> 0.04359125425 | B169: Coeficientes de regresión lineal (CAPEX) | D169: =+B162 -> 330 | E169: 497518399.1 | F169: 69115717 | G169: 86582858
A170: =+(C163-($B$171*B163+$C$171))/C163 -> -0.230992618 | B170: m | C170: b | D170: 660 | E170: 619251624.4 | F170: 75202377.92 | G170: 173165715.9
A171: =+(C164-($B$171*B164+$C$171))/C164 -> 0.1837300779 | B171: =+LINEST(E169:E173,D169:D173) -> 868070.3946 | C171: 189367717.8 | D171: 1650 | E171: 1986700508 | F171: 143574822 | G171: 432914289.7
A172: =+(C165-($B$171*B165+$C$171))/C165 -> -0.09386502738 | B172: Coeficientes de regresión lineal (OPEX) | D172: =+B165 -> 4488 | E172: =+C165 -> 3734709079 | F172: 265841747.9 | G172: 1177526868
A173: =+(C166-($B$171*B166+$C$171))/C166 -> 0.01202419459 | B173: =+LINEST(F169:F173,D169:D173) -> 47568.46313 | C173: 53470650.31 | D173: =+B166 -> 9900 | E173: =+C166 -> 8890161658 | F173: 523614376.9 | G173: 2597485738
A174: =+AVERAGE(A169:A173) -> -0.01710242373 | B174: Coeficientes de regresión lineal (Ingreso anual)
B175: =+LINEST(G169:G173,D169:D173,FALSE) -> 262372.2968 | C175: 0

Sheet Dropdown_digestores (hidden)
A2: Seleccione un departamento de Colombia | B2: Categorías de clima | C2: Departamento | D2: Municipio | E2: Clima | F2: Si/No | G2: Cantidad de tipos de residuos orgánicos | H2: Tipo de residuos orgánicos | I2: Asignación residuos orgánicos | J2: Filtro de residuos orgánicos disponibles | K2: Volumen de las canecas/bolsas | L2: Porcentaje de llenado | M2: Frecuencia de recolección de residuos | N2: Tipo de combustible de transporte | O2: Tipo de disposición final y/o tratamiento a los residuos orgánicos | P2: Ubicación de la plaza de mercado | Q2: Sector de la plaza de mercado | R2: Indique las unidades | S2: Indique el tipo de combustible empleado | U2: Seleccione un uso
A3: Seleccione un departamento | B3: Seleccione el tipo de clima | C3: Seleccione el departamento | D3: Seleccióne el municipio | E3: Tipos de clima | F3: Indique una respuesta | G3: Seleccione la cantidad de tipos de residuos orgánicos existentes | H3: Seleccione el tipo de residuo orgánico | I3: =+COUNTIFS('HC_RO_Valorización Ambiental'!$D$29:$E$33,H3) -> 0 | J3: =+_xlfn._xlws.FILTER($H$3:$H$8,$I$3:$I$8=0) -> Seleccione el tipo de residuo orgánico | K3: Indique el volumen correspondiente | L3: Indique el porcentaje de llenado | M3: Indique la frecuencia con la que se recolectan los residuos | N3: Indique el tipo de combustible empleado | O3: Indique el tipo de disposición final y/o tratamiento | P3: Indique el área donde se ubica la plaza de mercado | Q3: Indique la zona donde se ubica la plaza de mercado | R3: kg/día | S3: Diésel B2 | T3: galón/viaje | U3: Uso térmico - Biogás
A4: Dpto_Amazonas | B4: Cálido húmedo | C4: Antioquia | D4: Abejorral | E4: Frío | F4: Si | G4: 1 | H4: Verduras | I4: =+COUNTIFS('HC_RO_Valorización Ambiental'!$D$29:$E$33,H4) -> 0 | J4: Verduras | K4: 12 | L4: 25% de llenado | M4: 1 | N4: Diésel B2 | O4: Disposición final en relleno sanitario | P4: Área urbana | Q4: Industrial | R4: kg/semana | S4: Gasolina E10 | T4: galón/viaje | U4: Uso - Energía eléctrica
A5: Dpto_Antioquia | B5: Cálido seco | C5: Norte de Santander | D5: Abrego | E5: Templado | F5: No | G5: 2 | H5: Hortalizas (tubérculo) | I5: =+COUNTIFS('HC_RO_Valorización Ambiental'!$D$29:$E$33,H5) -> 0 | J5: Hortalizas (tubérculo) | K5: 20 | L5: 50% de llenado | M5: 2 | N5: Gasolina E10 | O5: Tratamiento via compostaje | P5: Área rural dispersa | Q5: Comercial | R5: kg/mes | S5: Gas natural comprimido (GNC) | T5: m3/viaje
A6: Dpto_Arauca | B6: Frío | C6: Antioquia | D6: Abriaquí | E6: Templado | G6: 3 | H6: Frutas | I6: =+COUNTIFS('HC_RO_Valorización Ambiental'!$D$29:$E$33,H6) -> 0 | J6: Frutas | K6: 35 | L6: 75% de llenado | M6: 3 | N6: Gas natural comprimido (GNC) | O6: Tratamiento via digestión anaerobica | Q6: Desconozco la Zona | R6: kg/año | S6: Eléctrico | T6: kWh/viaje
A7: Dpto_Archipiélago de San Andrés Providencia y Santa Catalina | B7: Templado | C7: Meta | D7: Acacías | E7: Templado | G7: 4 | H7: Carnicos | I7: =+COUNTIFS('HC_RO_Valorización Ambiental'!$D$29:$E$33,H7) -> 0 | J7: Carnicos | K7: 45 | L7: 100% de llenado | M7: 4 | N7: Eléctrico | R7: t/día
A8: Dpto_Atlántico | C8: Chocó | D8: Acandí | E8: Cálido húmedo | G8: 5 | H8: Orgánicos mixtos | I8: =+COUNTIFS('HC_RO_Valorización Ambiental'!$D$29:$E$33,H8) -> 0 | J8: Orgánicos mixtos | K8: 53 | M8: 5 | R8: t/semana
A9: Bogotá D.C | C9: Huila | D9: Acevedo | E9: Templado | K9: 85 | M9: 6 | R9: t/mes
A10: Dpto_Bolívar | C10: Bolívar | D10: Achí | E10: Cálido húmedo | K10: 120 | M10: 7 | R10: t/año
A11: Dpto_Boyacá | C11: Huila | D11: Agrado | E11: Cálido seco | K11: 360
A12: Dpto_Caldas | C12: Cundinamarca | D12: Agua de Dios | E12: Cálido seco
A13: Dpto_Caquetá | C13: Cesar | D13: Aguachica | E13: Templado
A14: Dpto_Casanare | C14: Santander | D14: Aguada, Santander | E14: Templado
A15: Dpto_Cauca | C15: Caldas | D15: Aguadas | E15: Frío
A16: Dpto_Cesar | C16: Casanare | D16: Aguazul | E16: Cálido húmedo
A17: Dpto_Chocó | C17: Cesar | D17: Agustín Codazzi | E17: Cálido húmedo
A18: Dpto_Córdoba | C18: Nariño | D18: Albán, Nariño | E18: Templado
A19: Dpto_Cundinamarca | C19: Cundinamarca | D19: Albán | E19: Frío
A20: Dpto_Guainía | C20: Guajira | D20: Albania, Guajira | E20: Cálido seco
A21: Dpto_Guaviare | C21: Caquetá | D21: Albania | E21: Cálido húmedo
A22: Dpto_Huila | C22: Santander | D22: Albania, Santander | E22: Templado
A23: Dpto_La Guajira | C23: Valle del Cauca | D23: Alcalá | E23: Templado
A24: Dpto_Magdalena | C24: Nariño | D24: Aldana | E24: Frío
A25: Dpto_Meta | C25: Antioquia | D25: Alejandría | E25: Templado
A26: Dpto_Nariño | C26: Magdalena | D26: Algarrobo | E26: Cálido seco
A27: Dpto_Norte_de_Santander | C27: Huila | D27: Algeciras | E27: Templado
A28: Dpto_Putumayo | C28: Cauca | D28: Almaguer | E28: Frío
A29: Dpto_Quindio | C29: Boyacá | D29: Almeida | E29: Templado
A30: Dpto_Risaralda | C30: Tolima | D30: Alpujarra | E30: Templado
A31: Dpto_Santander | C31: Huila | D31: Altamira | E31: Templado
A32: Dpto_Sucre | C32: Chocó | D32: Alto Baudo | E32: Cálido húmedo
A33: Dpto_Tolima | C33: Bolívar | D33: Altos del Rosario | E33: Cálido húmedo
A34: Dpto_Valle_del_Cauca | C34: Tolima | D34: Alvarado | E34: Cálido seco
A35: Dpto_Vaupés | C35: Antioquia | D35: Amagá | E35: Templado
A36: Dpto_Vichada | C36: Antioquia | D36: Amalfi | E36: Templado
C37: Tolima | D37: Ambalema | E37: Cálido húmedo
C38: Cundinamarca | D38: Anapoima | E38: Templado
C39: Nariño | D39: Ancuyá | E39: Templado
C40: Valle del Cauca | D40: Andalucía | E40: Templado
C41: Antioquia | D41: Andes | E41: Templado
C42: Antioquia | D42: Angelópolis | E42: Templado
C43: Antioquia | D43: Angostura | E43: Templado
C44: Cundinamarca | D44: Anolaima | E44: Templado
C45: Antioquia | D45: Anorí | E45: Templado
C46: Valle del Cauca | D46: Ansermanuevo | E46: Templado
C47: Antioquia | D47: Anza | E47: Cálido húmedo
C48: Tolima | D48: Anzoátegui | E48: Templado
C49: Antioquia | D49: Apartadó | E49: Cálido húmedo
C50: Risaralda | D50: Apía | E50: Cálido húmedo
C51: Cundinamarca | D51: Apulo | E51: Cálido seco
C52: Boyacá | D52: Aquitania | E52: Frío
C53: Magdalena | D53: Aracataca | E53: Cálido seco
C54: Caldas | D54: Aranzazu | E54: Templado
C55: Santander | D55: Aratoca | E55: Templado
C56: Arauca | D56: Arauca | E56: Cálido húmedo
C57: Arauca | D57: Arauquita | E57: Cálido húmedo
C58: Cundinamarca | D58: Arbeláez | E58: Templado
C59: Nariño | D59: Arboleda | E59: Frío
C60: Norte de Santander | D60: Arboledas | E60: Templado
C61: Antioquia | D61: Arboletes | E61: Cálido húmedo
C62: Boyacá | D62: Arcabuco | E62: Frío
C63: Bolívar | D63: Arenal | E63: Cálido húmedo
C64: Cauca | D64: Argelia | E64: Templado
C65: Valle del Cauca | D65: Argelia, VC | E65: Templado
C66: Magdalena | D66: Ariguaní | E66: Cálido seco
C67: Bolívar | D67: Arjona | E67: Cálido húmedo
C68: Quindio | D68: Armenia | E68: Templado
C69: Bolívar | D69: Arroyohondo | E69: Cálido húmedo
C70: Cesar | D70: Astrea | E70: Cálido húmedo
C71: Tolima | D71: Carmen de Apicalá | E71: Templado
C72: Chocó | D72: Bagadó | E72: Cálido húmedo
C73: Chocó | D73: Bahía Solano | E73: Cálido húmedo
C74: Chocó | D74: Bajo Baudó | E74: Cálido húmedo
C75: Cauca | D75: Balboa | E75: Templado
C76: Risaralda | D76: Balboa, Risaralda | E76: Templado
C77: Atlántico | D77: Baranoa | E77: Cálido húmedo
C78: Huila | D78: Baraya | E78: Cálido seco
C79: Nariño | D79: Barbacoas | E79: Cálido húmedo
C80: Antioquia | D80: Barbosa | E80: Templado
C81: Santander | D81: Barbosa, Santander | E81: Templado
C82: Santander | D82: Barichara | E82: Templado
C83: Meta | D83: Barranca de Upía | E83: Cálido húmedo
C84: Santander | D84: Barrancabermeja | E84: Cálido húmedo
C85: Guajira | D85: Barrancas | E85: Cálido seco
C86: Bolívar | D86: Barranco de Loba | E86: Cálido seco
C87: Guainía | D87: Barranco Minas | E87: Cálido húmedo
C88: Atlántico | D88: Barranquilla | E88: Cálido húmedo
C89: Cesar | D89: Becerril | E89: Templado
C90: Caldas | D90: Belalcázar | E90: Templado
C91: Boyacá | D91: Belén | E91: Frío
C92: Nariño | D92: Belén, Nariño | E92: Frío
C93: Caquetá | D93: Belén de los Andaquies | E93: Cálido húmedo
C94: Risaralda | D94: Belén de Umbría | E94: Templado
C95: Antioquia | D95: Bello | E95: Templado
C96: Antioquia | D96: Belmira | E96: Frío
C97: Cundinamarca | D97: Beltrán | E97: Templado
C98: Boyacá | D98: Berbeo | E98: Templado
C99: Antioquia | D99: Betania | E99: Templado
C100: Boyacá | D100: Betéitiva | E100: Frío
C101: Antioquia | D101: Betulia | E101: Templado
C102: Santander | D102: Betulia, Santander | E102: Templado
C103: Cundinamarca | D103: Bituima | E103: Templado
C104: Boyacá | D104: Boavita | E104: Frío
C105: Norte de Santander | D105: Bochalema | E105: Templado
C106: Bogotá | D106: Bogotá | E106: Frío
C107: Cundinamarca | D107: Bojacá | E107: Frío
C108: Chocó | D108: Bojaya | E108: Cálido húmedo
C109: Cauca | D109: Bolívar | E109: Templado
C110: Valle del Cauca | D110: Bolívar, VC | E110: Templado
C111: Santander | D111: Bolívar, Santander | E111: Frío
C112: Cesar | D112: Bosconia | E112: Cálido seco
C113: Boyacá | D113: Boyacá | E113: Frío
C114: Antioquia | D114: Briceño | E114: Templado
C115: Boyacá | D115: Briceño, Boyacá | E115: Templado
C116: Santander | D116: Bucaramanga | E116: Cálido seco
C117: Norte de Santander | D117: Bucarasica | E117: Templado
C118: Valle del Cauca | D118: Buenaventura | E118: Cálido húmedo
C119: Córdoba | D119: Buenavista, Córdoba | E119: Cálido húmedo
C120: Sucre | D120: Buenavista, Sucre | E120: Cálido seco
C121: Boyacá | D121: Buenavista | E121: Frío
C122: Quindio | D122: Buenavista, Quindío | E122: Templado
C123: Cauca | D123: Buenos Aires | E123: Templado
C124: Nariño | D124: Buesaco | E124: Templado
C125: Valle del Cauca | D125: Bugalagrande | E125: Templado
C126: Antioquia | D126: Buriticá | E126: Templado
C127: Boyacá | D127: Busbanzá | E127: Frío
C128: Cundinamarca | D128: Cabrera | E128: Frío
C129: Santander | D129: Cabrera, Santander | E129: Cálido seco
C130: Meta | D130: Cabuyaro | E130: Cálido húmedo
C131: Guainía | D131: Cacahual | E131: Cálido húmedo
C132: Cundinamarca | D132: Cachipay | E132: Templado
C133: Norte de Santander | D133: Cachirá | E133: Frío
C134: Norte de Santander | D134: Cácota | E134: Frío
C135: Antioquia | D135: Caicedo | E135: Templado
C136: Sucre | D136: Caimito | E136: Cálido seco
C137: Cauca | D137: Cajibío | E137: Templado
C138: Cundinamarca | D138: Cajicá | E138: Frío
C139: Bolívar | D139: Calamar | E139: Cálido húmedo
C140: Guaviare | D140: Calamar, Guaviare | E140: Cálido húmedo
C141: Antioquia | D141: Miraflores, Guaviare | E141: Templado
C142: Boyacá | D142: San José del Guaviare | E142: Frío
C143: Cauca | D143: Caldono | E143: Templado
C144: Valle del Cauca | D144: Santiago de Cali | E144: Cálido seco
C145: Santander | D145: California | E145: Frío
C146: Valle del Cauca | D146: Calima | E146: Templado
C147: Cauca | D147: Caloto | E147: Templado
C148: Antioquia | D148: Campamento | E148: Templado
C149: Atlántico | D149: Campo de La Cruz | E149: Cálido húmedo
C150: Huila | D150: Campoalegre | E150: Cálido seco
C151: Córdoba | D151: Canalete | E151: Cálido seco
C152: Valle del Cauca | D152: Candelaria, VC | E152: Templado
C153: Atlántico | D153: Candelaria | E153: Cálido húmedo
C154: Antioquia | D154: Cañasgordas | E154: Templado
C155: Cundinamarca | D155: Caparrapí | E155: Templado
C156: Santander | D156: Capitanejo | E156: Templado
C157: Cundinamarca | D157: Caqueza | E157: Templado
C158: Antioquia | D158: Caracolí | E158: Cálido húmedo
C159: Antioquia | D159: Caramanta | E159: Frío
C160: Santander | D160: Carcasí | E160: Frío
C161: Antioquia | D161: Carepa | E161: Cálido húmedo
C162: Cundinamarca | D162: Carmen de Carupa | E162: Frío
C163: Chocó | D163: Carmen del Darien | E163: Cálido húmedo
C164: Antioquia | D164: Carolina | E164: Templado
C165: Bolívar | D165: Cartagena de Indias | E165: Cálido húmedo
C166: Caquetá | D166: Cartagena del Chairá | E166: Cálido húmedo
C167: Valle del Cauca | D167: Cartago | E167: Templado
C168: Vaupés | D168: Caruru | E168: Cálido húmedo
C169: Tolima | D169: Casabianca | E169: Frío
C170: Meta | D170: Castilla la Nueva | E170: Cálido húmedo
C171: Antioquia | D171: Caucasia | E171: Cálido húmedo
C172: Santander | D172: Cepitá | E172: Cálido seco
C173: Córdoba | D173: Cereté | E173: Cálido seco
C174: Boyacá | D174: Cerinza | E174: Frío
C175: Santander | D175: Cerrito | E175: Frío
C176: Magdalena | D176: Cerro San Antonio | E176: Cálido húmedo
C177: Chocó | D177: Cértegui | E177: Cálido húmedo
C178: Nariño | D178: Chachagüí | E178: Templado
C179: Cundinamarca | D179: Chaguaní | E179: Templado
C180: Casanare | D180: Chameza | E180: Templado
C181: Tolima | D181: Chaparral | E181: Frío
C182: Santander | D182: Charalá | E182: Templado
C183: Santander | D183: Charta | E183: Templado
C184: Cundinamarca | D184: Chía | E184: Frío
C185: Antioquia | D185: Chigorodó | E185: Cálido húmedo
C186: Santander | D186: Chima | E186: Templado
C187: Córdoba | D187: Chimá | E187: Cálido seco
C188: Cesar | D188: Chimichagua | E188: Templado
C189: Norte de Santander | D189: Chinácota | E189: Templado
C190: Boyacá | D190: Chinavita | E190: Templado
C191: Caldas | D191: Chinchiná | E191: Templado
C192: Cundinamarca | D192: Chipaque | E192: Frío
C193: Santander | D193: Chipatá | E193: Templado
C194: Boyacá | D194: Chiquinquirá | E194: Frío
C195: Boyacá | D195: Chíquiza | E195: Frío
C196: Cesar | D196: Chiriguaná | E196: Cálido seco
C197: Boyacá | D197: Chiscas | E197: Frío
C198: Boyacá | D198: Chita | E198: Frío
C199: Norte de Santander | D199: Chitagá | E199: Frío
C200: Boyacá | D200: Chivatá | E200: Frío
C201: Magdalena | D201: Chivolo | E201: Cálido húmedo
... 836 more rows

Sheet Biodigestores (hidden)
C2: VALOR CAPEX PARA EVALUAR LA VIABILIDAD DE LA IMPLEMENTACIÓN DE BIODIGESTORES IN SITU EN LAS PLAZAS DE MERCADO DE COLOMBIA
B4: Se consideran los valores CAPEX de los proyectos de prefactibilidad realizados por Ambire Global, así como las cotizaciones solicitadas. Los valores de CAPEX expresados en dólares son convertidos a COP (pesos colombianos) utilizando la TRM correspondiente al año del proyecto. Además, para ajustar estos valores a valor de tiempo real, se asume la variación del IPC del año correspondiente, lo que permite reflejar de manera precisa el impacto de la inflación en los costos a lo largo del tiempo. Los proyectos de referencia para el cálculo del CAPEX son los siguientes: 1. Cotización empresa GPS - India 2. Cotización empresa GPS - India 5. Prefactibilidad para un proyecto de gestión de residuos orgánicos en el Aeropuerto Internacional El Dorado, GIZ 15.Prefactibilidad: sistema de tratamiento de residuos orgánicos de las plazas de mercadoo en Barranquilla, CATF 30. Prefactibilidad: sistema de tratamiento de residuos orgánicos de la plaza de mercadoo Bazurto en Cartagena, CATF
B6: Biodigestor (ton/día) | C6: CAPEX valor real | D6: Año del proyecto | E6: Valor CAPEX en COP | F6: CAPEX valor presente | G6: Importación | H6: Valor total CAPEX | I6: Consumo de energía día kWh/d | J6: Agua m3/día | K6: Espacio requerido m2 | L6: Digestato t/t | M6: Operador | N6: Técnico | O6: Proyecto o cotización de referencia
B7: 1 | C7: 94000 | D7: 2024 | E7: =+C7*F15 -> 382706460.8 | F7: =+E7 -> 382706460.8 | G7: 0.3 | H7: =+F7*(1+G7) -> 497518399.1 | I7: 50 | J7: 0.2 | K7: 55 | L7: 0.1 | M7: 1 | O7: GPS
B8: 2 | C8: 117000 | D8: 2024 | E8: =+C8*F15 -> 476347403.4 | F8: =+E8 -> 476347403.4 | G8: 0.3 | H8: =+F8*(1+G8) -> 619251624.4 | I8: 70 | J8: 0.4 | K8: 186 | L8: 0.1 | M8: 1 | O8: GPS
B9: 5 | C9: 300000 | D9: 2022 | E9: =+C9*D15 -> 1276631959 | F9: =+E9*(F$14/D$14) -> 1528231160 | G9: 0.3 | H9: =+F9*(1+G9) -> 1986700508 | I9: 100 | J9: =0.2*B9 -> 1 | L9: 0.1 | M9: 1 | O9: Aeropuerto
B10: 13.6 | C10: 620000 | D10: 2023 | E10: =+C10*E15 -> 2681531085 | F10: =+E10*(F$14/E$14) -> 2872853138 | G10: 0.3 | H10: =+F10*(1+G10) -> 3734709079 | I10: 120 | J10: =0.2*B10 -> 2.72 | L10: 0.1 | M10: 1 | N10: 1 | O10: Barranquilla
B11: 30 | C11: 1500000 | D11: 2023 | E11: =+C11*D15 -> 6383159795 | F11: =+E11*(F$14/E$14) -> 6838585891 | G11: 0.3 | H11: =+F11*(1+G11) -> 8890161658 | I11: 120 | J11: =0.2*B11 -> 6 | L11: 0.1 | M11: 2 | N11: 1 | O11: Cartagena
C13: 2021 | D13: 2022 | E13: 2023 | F13: 2024
B14: IPC | C14: 149.5597632 | D14: 164.7808063 | E14: 184.1193244 | F14: 197.2558818
B15: TRM (COP) | D15: 4255.439863 | E15: 4325.050137 | F15: 4071.345328

Sheet Dropdown_Dptos (hidden)
A2: Dpto_Amazonas | B2: Dpto_Antioquia | C2: Dpto_Arauca | D2: Dpto_Atlántico | E2: Bogotá | F2: Dpto_Bolívar | G2: Dpto_Boyacá | H2: Dpto_Caldas | I2: Dpto_Caquetá | J2: Dpto_Casanare | K2: Dpto_Cauca | L2: Dpto_Cesar | M2: Dpto_Chocó | N2: Dpto_Córdoba | O2: Dpto_Cundinamarca | P2: Dpto_Guainía | Q2: Dpto_Guaviare | R2: Dpto_Huila | S2: Dpto_Guajira | T2: Dpto_Magdalena | U2: Dpto_Meta | V2: Dpto_Nariño | W2: Dpto_Norte_de_Santander | X2: Dpto_Putumayo | Y2: Dpto_Quindio | Z2: Dpto_Risaralda | AA2: Dpto_SanAndrés | AB2: Dpto_Santander | AC2: Dpto_Sucre | AD2: Dpto_Tolima | AE2: Dpto_Valle_del_Cauca | AF2: Dpto_Vaupés | AG2: Dpto_Vichada
A3: El Encanto | B3: Abejorral | C3: Arauca | D3: Baranoa | E3: Bogotá | F3: Achí | G3: Almeida | H3: Aguadas | I3: Albania | J3: Aguazul | K3: Almaguer | L3: Aguachica | M3: Acandí | N3: Buenavista, Córdoba | O3: Agua de Dios | P3: Barranco Minas | Q3: Calamar, Guaviare | R3: Acevedo | S3: Albania, Guajira | T3: Algarrobo | U3: Acacías | V3: Albán, Nariño | W3: Abrego | X3: Colón, Putumayo | Y3: Armenia | Z3: Apía | AA3: Providencia | AB3: Aguada, Santander | AC3: Buenavista, Sucre | AD3: Alpujarra | AE3: Alcalá | AF3: Caruru | AG3: Cumaribo
A4: La Chorrera | B4: Abriaquí | C4: Arauquita | D4: Barranquilla | F4: Altos del Rosario | G4: Aquitania | H4: Aranzazu | I4: Belén de los Andaquies | J4: Chameza | K4: Argelia | L4: Agustín Codazzi | M4: Alto Baudó | N4: Canalete | O4: Albán | P4: Cacahual | Q4: El Retorno | R4: Agrado | S4: Barrancas | T4: Aracataca | U4: Barranca de Upía | V4: Aldana | W4: Arboledas | X4: Leguízamo | Y4: Buenavista, Quindío | Z4: Balboa, Risaralda | AA4: San Andrés | AB4: Albania, Santander | AC4: Caimito | AD4: Alvarado | AE4: Andalucía | AF4: Mitú | AG4: La Primavera
A5: La Pedrera | B5: Alejandría | C5: Cravo Norte | D5: Campo de La Cruz | F5: Arenal | G5: Arcabuco | H5: Belalcázar | I5: Cartagena del Chairá | J5: Hato Corozal | K5: Balboa | L5: Astrea | M5: Bagadó | N5: Cereté | O5: Anapoima | P5: Inírida | Q5: Miraflores, Guaviare | R5: Aipe | S5: Dibulla | T5: Ariguaní | U5: Cabuyaro | V5: Ancuyá | W5: Bochalema | X5: Mocoa | Y5: Circasia | Z5: Belén de Umbría | AB5: Aratoca | AC5: Corozal | AD5: Ambalema | AE5: Ansermanuevo | AF5: Pacoa | AG5: Puerto Carreño
A6: La Victoria | B6: Amagá | C6: Fortul | D6: Candelaria | F6: Arjona | G6: Belén | H6: Chinchiná | I6: Curillo | J6: La Salina | K6: Bolívar | L6: Becerril | M6: Bahía Solano | N6: Chimá | O6: Anolaima | P6: La Guadalupe | Q6: San José del Guaviare | R6: Algeciras | S6: Distracción | T6: Cerro San Antonio | U6: Castilla la Nueva | V6: Arboleda | W6: Bucarasica | X6: Orito | Y6: Córdoba, Quindío | Z6: Dosquebradas | AB6: Barbosa, Santander | AC6: Coveñas | AD6: Anzoátegui | AE6: Argelia, VC | AF6: Papunaua | AG6: Santa Rosalía
A7: Leticia | B7: Amalfi | C7: Puerto Rondón | D7: Galapa | F7: Arroyohondo | G7: Berbeo | H7: Filadelfia | I7: El Doncello | J7: Maní | K7: Buenos Aires | L7: Bosconia | M7: Bajo Baudó | N7: Ciénaga de Oro | O7: Apulo | P7: Morichal | R7: Altamira | S7: Fonseca | T7: Chivolo | U7: Cubarral | V7: Barbacoas | W7: Cachirá | X7: Puerto Asís | Y7: Filandia | Z7: Guática | AB7: Barichara | AC7: El Roble | AD7: Carmen de Apicalá | AE7: Bolívar, VC | AF7: Taraira
A8: Miriti - Paraná | B8: Andes | C8: Saravena | D8: Malambo | F8: Barranco de Loba | G8: Betéitiva | H8: La Dorada | I8: El Paujil | J8: Monterrey | K8: Cajibío | L8: Chimichagua | M8: Bojaya | N8: Cotorra | O8: Arbeláez | P8: Pana Pana | R8: Baraya | S8: Hatonuevo | T8: Ciénaga, Magdalena | U8: Cumaral | V8: Belén, Nariño | W8: Cácota | X8: Puerto Caicedo | Y8: Génova | Z8: La Celia | AB8: Barrancabermeja | AC8: Galeras | AD8: Casabianca | AE8: Buenaventura | AF8: Yavaraté
A9: Puerto Alegría | B9: Angelópolis | C9: Tame | D9: Manatí | F9: Calamar | G9: Boavita | H9: La Merced | I9: Florencia | J9: Nunchía | K9: Caldono | L9: Chiriguaná | M9: Carmen del Darién | N9: La Apartada | O9: Beltrán | P9: Puerto Colombia | R9: Campoalegre | S9: Maicao | T9: Concordia, Magdalena | U9: El Calvario | V9: Buesaco | W9: Chinácota | X9: Puerto Guzmán | Y9: La Tebaida | Z9: La Virginia | AB9: Betulia, Santander | AC9: Guaranda | AD9: Chaparral | AE9: Bugalagrande
A10: Puerto Arica | B10: Angostura | D10: Palmar de Varela | F10: Cartagena de Indias | G10: Boyacá | H10: Manizales | I10: La Montañita | J10: Orocué | K10: Caloto | L10: Curumaní | M10: Cértegui | N10: Lorica | O10: Bituima | P10: San Felipe | R10: Colombia | S10: Manaure, Guajira | T10: El Piñon | U10: El Castillo | V10: Chachagüí | W10: Chitagá | X10: San Francisco, Putumayo | Y10: Montenegro | Z10: Marsella | AB10: Bolívar, Santander | AC10: La Unión, Sucre | AD10: Coello | AE10: Calima
A11: Puerto Nariño | B11: Anorí | D11: Polonuevo | F11: Clemencia | G11: Briceño, Boyacá | H11: Marmato | I11: Milán | J11: Paz de Ariporo | K11: Corinto | L11: El Copey | M11: Condoto | N11: Los Córdobas | O11: Bojacá | R11: Elías | S11: Riohacha | T11: El Retén | U11: El Dorado | V11: Colón | W11: Convención | X11: San Miguel | Y11: Pijao | Z11: Mistrató | AB11: Bucaramanga | AC11: Los Palmitos | AD11: Coyaima | AE11: Candelaria, VC
A12: Puerto Santander | B12: Anza | D12: Ponedera | F12: Córdoba | G12: Buenavista | H12: Marquetalia | I12: Morelia | J12: Pore | K12: El Tambo | L12: El Paso | M12: El Cantón del San Pablo | N12: Momil | O12: Cabrera | R12: Garzón | S12: Uribia | T12: Fundación | U12: Fuente de Oro | V12: Consaca | W12: Cúcuta | X12: Santiago, Putumayo | Y12: Quimbaya | Z12: Pereira | AB12: Cabrera, Santander | AC12: Majagual | AD12: Cunday | AE12: Cartago
A13: Tarapacá | B13: Apartadó | D13: Puerto Colombia | F13: El Carmen de Bolívar | G13: Busbanzá | H13: Marulanda | I13: Puerto Rico | J13: Recetor | K13: Florencia, Cauca | L13: Gamarra | M13: El Carmen de Atrato | N13: Montelíbano | O13: Cachipay | R13: Gigante | T13: Nueva Granada | U13: Granada, Meta | V13: Contadero | W13: Cucutilla | X13: Sibundoy | Y13: Salento | Z13: Pueblo Rico, Risaralda | AB13: California | AC13: Morroa | AD13: Dolores | AE13: Dagua
B14: Arboletes | D14: Repelón | F14: El Guamo | G14: Caldas, Boyacá | H14: Neira | I14: San José del Fragua | J14: Sabanalarga, Casanare | K14: Guachené | L14: La Gloria | M14: Litoral de San Juan | N14: Montería | O14: Cajicá | R14: Guadalupe, Huila | T14: Pedraza | U14: Guamal | V14: Cuaspud | W14: Durania | X14: Valle del Guamuez | Z14: Santa Rosa de Cabal | AB14: Capitanejo | AC14: Ovejas | AD14: Espinal | AE14: El Águila
B15: Barbosa | D15: Sabanagrande | F15: El Peñón | G15: Cerinza | H15: Norcasia | I15: San Vicente del Caguán | J15: Sácama | K15: Guapi | L15: La Jagua de Ibirico | M15: Istmina | N15: Moñitos | O15: Caparrapí | R15: Hobo | T15: Pijiño del Carmen | U15: La Macarena | V15: Cumbal | W15: El Carmen | X15: Villagarzón | Z15: Santuario | AB15: Carcasí | AC15: Sampués | AD15: Falan | AE15: El Cairo
B16: Bello | D16: Sabanalarga, Atlántico | F16: Hatillo de Loba | G16: Chinavita | H16: Pácora | I16: Solano | J16: San Luis de Palenque | K16: Inzá | L16: La Paz | M16: Juradó | N16: Planeta Rica | O16: Caqueza | R16: Iquira | T16: Pivijay | U16: Lejanías | V16: Cumbitara | W16: El Tarra | AB16: Cepitá | AC16: San Benito Abad | AD16: Flandes | AE16: El Cerrito
B17: Belmira | D17: Santo Tomás | F17: Mahates | G17: Chiquinquirá | H17: Palestina | I17: Solita | J17: Támara | K17: Jambaló | L17: Manaure | M17: Lloró | N17: Pueblo Nuevo | O17: Carmen de Carupa | R17: Neiva | T17: Plato | U17: Mapiripán | V17: El Charco | W17: El Zulia | AB17: Cerrito | AC17: San Juan de Betulia | AD17: Fresno | AE17: El Dovio
B18: Betania | D18: Soledad | F18: Margarita | G18: Chíquiza | H18: Pensilvania | I18: Valparaíso | J18: Tauramena | K18: La Sierra | L18: Pailitas | M18: Medio Baudó | N18: Puerto Escondido | O18: Chaguaní | R18: Oporapa | T18: Puebloviejo | U18: Mesetas | V18: El Peñol | W18: Gramalote | AB18: Charalá | AC18: San Luis de Sincé | AD18: Guamo | AE18: Florida
B19: Betulia | D19: Suan | F19: Mompós | G19: Chiscas | H19: Riosucio | J19: Trinidad | K19: La Vega | L19: Pelaya | M19: Medio San Juan | N19: Puerto Libertador | O19: Chía | R19: Palermo | T19: Salamina, Magdalena | U19: Puerto Concordia | V19: El Rosario | W19: Hacarí | AB19: Charta | AC19: San Marcos | AD19: Herveo | AE19: Ginebra
B20: Briceño | D20: Usiacurí | F20: Montecristo | G20: Chita | H20: Salamina | J20: Villanueva | K20: López | L20: Pueblo Bello | M20: Nóvita | N20: Purísima | O20: Chipaque | R20: Palestina, Huila | T20: San Sebastián de Buenavista | U20: Puerto Gaitán | V20: El Tablón de Gómez | W20: Herrán | AB20: Chima | AC20: San Onofre | AD20: Honda | AE20: Guacarí
B21: Buriticá | F21: Morales | G21: Chivatá | H21: Samaná | J21: Yopal | K21: Mercaderes | L21: San Martín | M21: Nuquí | N21: Sahagún | O21: Choachí | R21: Pital | T21: San Zenón | U21: Puerto Lleras | V21: El Tambo, Nariño | W21: La Esperanza | AB21: Chipatá | AC21: San Pedro, Sucre | AD21: Ibagué | AE21: Guadalajara de Buga
B22: Cáceres | F22: Pinillos | G22: Chivor | H22: San José | K22: Miranda | L22: Tamalameque | M22: Quibdó | N22: San Andrés Sotavento | O22: Chocontá | R22: Pitalito | T22: Santa Ana | U22: Puerto López | V22: Francisco Pizarro | W22: La Playa | AB22: Cimitarra | AC22: Sincelejo | AD22: Lérida | AE22: Jamundí
B23: Caicedo | F23: Regidor | G23: Ciénega | H23: Supía | K23: Morales | L23: Valledupar | M23: Riosucio, Chocó | N23: San Antero | O23: Cogua | R23: Rivera | T23: Santa Bárbara de Pinto | U23: Puerto Rico, Meta | V23: Funes | W23: Labateca | AB23: Concepción, Santander | AC23: Sucre | AD23: Líbano | AE23: La Cumbre
B24: Caldas | F24: Río Viejo | G24: Cómbita | H24: Victoria | K24: Padilla | M24: San José del Palmar | N24: San Bernardo del Viento | O24: Cota | R24: Saladoblanco | T24: Santa Marta | U24: Restrepo | V24: Guachucal | W24: Los Patios | AB24: Confines | AC24: Tolú | AD24: Mariquita | AE24: La Unión, VC
B25: Campamento | F25: San Cristóbal | G25: Coper | H25: Villamaría | K25: Paez | M25: Sipí | N25: San Carlos, Córdoba | O25: Cucunubá | R25: San Agustín | T25: Sitionuevo | U25: San Carlos de Guaroa | V25: Guaitarilla | W25: Lourdes | AB25: Contratación | AD25: Melgar | AE25: La Victoria, VC
B26: Cañasgordas | F26: San Estanislao | G26: Corrales | K26: Patía | M26: Tadó | N26: San Pelayo | O26: El Colegio | R26: Santa María, Huila | T26: Tenerife | U26: San Juan de Arama | V26: Gualmatán | W26: Mutiscua | AB26: Coromoro | AD26: Murillo | AE26: Obando
B27: Caracolí | F27: San Fernando | G27: Cubará | K27: Piamonte | M27: Unguía | N27: Tierralta | O27: El Peñón, Cundinamarca | R27: Suaza | U27: San Juanito | V27: Iles | W27: Ocaña | AB27: Curití | AD27: Natagaima | AE27: Palmira
B28: Caramanta | F28: San Jacinto | G28: Cucaita | K28: Piendamó | M28: Unión Panamericana | N28: Valencia | O28: El Rosal | R28: Tarqui | U28: San Martín, Meta | V28: Imués | W28: Pamplona | AB28: El Carmen de Chucurí | AD28: Ortega | AE28: Pradera
B29: Carepa | F29: San Jacinto del Cauca | G29: Cuítiva | K29: Popayán | O29: Facatativá | R29: Tello | U29: Villavicencio | V29: Ipiales | W29: Pamplonita | AB29: El Guacamayo | AD29: Palocabildo | AE29: Restrepo, VC
B30: Carolina | F30: San Juan Nepomuceno | G30: Duitama | K30: Puerto Tejada | O30: Fomeque | R30: Teruel | U30: Vistahermosa | V30: La Cruz | W30: Puerto Santander, NS | AB30: El Peñón, Santander | AD30: Piedras | AE30: Riofrío
B31: Caucasia | F31: San Martín de Loba | G31: El Cocuy | K31: Puracé | O31: Fosca | R31: Timaná | V31: La Florida | W31: Ragonvalia | AB31: El Playón | AD31: Planadas | AE31: Roldanillo
B32: Chigorodó | F32: San Pablo | G32: El Espino | K32: Rosas | O32: Funza | R32: Villavieja | V32: La Llanada | W32: Salazar | AB32: Encino | AD32: Prado | AE32: San Pedro, VC
B33: Cisneros | F33: Santa Rosa del Sur | G33: Firavitoba | K33: San Sebastián | O33: Fúquene | R33: Yaguará | V33: La Tola | W33: San Calixto | AB33: Enciso | AD33: Purificación | AE33: Santiago de Cali
B34: Ciudad Bolívar | F34: Simití | G34: Floresta | K34: Santa Rosa | O34: Fusagasugá | V34: La Unión, Nariño | W34: San Cayetano, NS | AB34: Florián | AD34: Rioblanco | AE34: Sevilla
B35: Cocorná | F35: Soplaviento | G35: Gachantivá | K35: Santander de Quilichao | O35: Gachala | V35: Leiva | W35: Santiago | AB35: Floridablanca | AD35: Roncesvalles | AE35: Toro
B36: Concepción | F36: Turbaco | G36: Gameza | K36: Silvia | O36: Gachancipá | V36: Linares | W36: Sardinata | AB36: Galán | AD36: Rovira | AE36: Trujillo
B37: Concordia | G37: Garagoa | K37: Sotara | O37: Gachetá | V37: Magüi | W37: Silos | AB37: Gambita | AD37: Saldaña | AE37: Tuluá
B38: Copacabana | G38: Guacamayas | K38: Suárez | O38: Gama | V38: Mallama | W38: Teorama | AB38: Girón | AD38: San Antonio | AE38: Ulloa
B39: Dabeiba | G39: Guateque | K39: Timbío | O39: Girardot | V39: Mosquera, Nariño | W39: Tibú | AB39: Guaca | AD39: Santa Isabel | AE39: Versalles, VC
B40: Don Matías | G40: Guayatá | K40: Timbiquí | O40: Granada, Cundinamarca | V40: Nariño | W40: Toledo, NS | AB40: Guadalupe, Santander | AD40: Suárez | AE40: Vijes
B41: Ebéjico | G41: Güicán | K41: Toribio | O41: Guachetá | V41: Olaya Herrera | W41: Villa Caro | AB41: Guapotá | AD41: Valle de San Juan | AE41: Yotoco
B42: El Bagre | G42: Iza | K42: Totoró | O42: Guaduas | V42: Ospina | W42: Villa del Rosario | AB42: Guavatá | AD42: Venadillo | AE42: Yumbo
B43: El Carmen de Viboral | G43: Jenesano | K43: Villa Rica | O43: Guasca | V43: Pasto | AB43: Güepsa | AD43: Villahermosa | AE43: Zarzal, VC
B44: El Santuario | G44: Jericó, Boyacá | O44: Guataquí | V44: Policarpa | AB44: Hato | AD44: Villarrica
B45: Entrerrios | G45: La Capilla | O45: Guatavita | V45: Potosí | AB45: Jesús María
B46: Envigado | G46: La Uvita | O46: Guayabal de Siquima | V46: Providencia, Nariño | AB46: Jordán
B47: Fredonia | G47: La Victoria, Boyacá | O47: Guayabetal | V47: Puerres | AB47: La Belleza
B48: Frontino | G48: Labranzagrande | O48: Gutiérrez | V48: Pupiales | AB48: La Paz, Santander
B49: Giraldo | G49: Macanal | O49: Jerusalén | V49: Ricaurte, Nariño | AB49: Landázuri
B50: Girardota | G50: Maripí | O50: Junín | V50: Roberto Payán | AB50: Lebríja
B51: Gómez Plata | G51: Miraflores | O51: La Calera | V51: Samaniego | AB51: Los Santos
B52: Granada | G52: Mongua | O52: La Mesa | V52: San Andres de Tumaco | AB52: Macaravita
B53: Guadalupe | G53: Monguí | O53: La Palma | V53: San Bernardo | AB53: Málaga
B54: Guarne | G54: Moniquirá | O54: La Peña | V54: San Lorenzo | AB54: Matanza
B55: Guatapé | G55: Motavita | O55: La Vega, Cundinamarca | V55: San Pablo, Nariño | AB55: Mogotes
B56: Heliconia | G56: Muzo | O56: Lenguazaque | V56: San Pedro de Cartago | AB56: Molagavita
B57: Hispania | G57: Nobsa | O57: Machetá | V57: Sandoná | AB57: Ocamonte
B58: Itagui | G58: Nuevo Colón | O58: Madrid | V58: Santa Bárbara, Nariño | AB58: Oiba
B59: Ituango | G59: Oicatá | O59: Manta | V59: Sapuyes | AB59: Onzaga
B60: Jardín | G60: Otanche | O60: Medina | V60: Taminango | AB60: Palmar
B61: Jericó | G61: Pachavita | O61: Mosquera | V61: Tangua | AB61: Palmas del Socorro
B62: La Ceja | G62: Páez | O62: Nariño | V62: Túquerres | AB62: Páramo
B63: La Estrella | G63: Paipa | O63: Nemocón | V63: Yacuanquer | AB63: Piedecuesta
B64: La Pintada | G64: Pajarito | O64: Nilo | AB64: Pinchote
B65: La Unión | G65: Panqueba | O65: Nimaima | AB65: Puente Nacional
B66: Liborina | G66: Pauna | O66: Nocaima | AB66: Puerto Parra
B67: Maceo | G67: Paya | O67: Pacho | AB67: Puerto Wilches
B68: Marinilla | G68: Paz del Río | O68: Paime | AB68: Rionegro, Santander
B69: Medellín | G69: Pesca | O69: Pandi | AB69: Sabana de Torres
B70: Montebello | G70: Pisba | O70: Paratebueno | AB70: San Andrés, Santander
B71: Murindó | G71: Puerto Boyacá | O71: Pasca | AB71: San Benito
B72: Mutatá | G72: Quípama | O72: Pulí | AB72: San Gil
B73: Nechí | G73: Ramiriquí | O73: Quebradanegra | AB73: San Joaquín
B74: Necoclí | G74: Ráquira | O74: Quetame | AB74: San José de Miranda
B75: Olaya | G75: Rondón | O75: Quipile | AB75: San Miguel
B76: Peñol | G76: Saboyá | O76: Ricaurte | AB76: San Vicente de Chucurí
B77: Peque | G77: Sáchica | O77: San Antonio del Tequendama | AB77: Santa Bárbara, Santander
B78: Pueblorrico | G78: Samacá | O78: San Bernardo | AB78: Santa Helena del Opón
B79: Puerto Berrío | G79: San Eduardo | O79: San Cayetano | AB79: Simacota
B80: Puerto Nare | G80: San Luis de Gaceno | O80: San Francisco, Cundinamarca | AB80: Socorro
B81: Puerto Triunfo | G81: San Mateo | O81: San Juan de Río Seco | AB81: Suaita
B82: Retiro | G82: San Miguel de Sema | O82: Sasaima | AB82: Sucre, Santander
B83: Rionegro | G83: San Pablo de Borbur | O83: Sesquilé | AB83: Suratá
B84: Sabanalarga | G84: Santa María | O84: Sibaté | AB84: Tona
B85: Sabaneta | G85: Santa Rosa de Viterbo | O85: Silvania | AB85: Valle de San José
B86: Salgar | G86: Santa Sofía | O86: Simijaca | AB86: Vélez
B87: San Andrés de Cuerquía | G87: Sativanorte | O87: Soacha | AB87: Vetas
B88: San Carlos | G88: Sativasur | O88: Sopó | AB88: Villanueva, Santander
B89: San Francisco | G89: Siachoque | O89: Subachoque | AB89: Zapatoca
B90: San Jerónimo | G90: Soatá | O90: Suesca
B91: San José de La Montaña | G91: Socha | O91: Susa
B92: San Juan de Urabá | G92: Socotá | O92: Sutatausa
B93: San Luis | G93: Sogamoso | O93: Tabio
B94: San Pedro | G94: Somondoco | O94: Tausa
B95: San Pedro de Uraba | G95: Sora | O95: Tena
B96: San Rafael | G96: Soracá | O96: Tenjo
B97: San Roque | G97: Sotaquirá | O97: Tibacuy
B98: San Vicente | G98: Susacón | O98: Tibirita
B99: Santa Bárbara | G99: Sutamarchán | O99: Tocaima
B100: Santa Rosa de Osos | G100: Sutatenza | O100: Tocancipá
B101: Santafé de Antioquia | G101: Tasco | O101: Topaipí
B102: Santo Domingo | G102: Tenza | O102: Ubalá
B103: Segovia | G103: Tibaná | O103: Ubaque
B104: Sonson | G104: Tibasosa | O104: Une
B105: Sopetrán | G105: Tinjacá | O105: Útica
B106: Támesis | G106: Tipacoque | O106: Venecia
B107: Tarazá | G107: Toca | O107: Vergara
B108: Tarso | G108: Tópaga | O108: Vianí
B109: Titiribí | G109: Tota | O109: Villagómez
B110: Toledo | G110: Tunja | O110: Villapinzón
B111: Turbo | G111: Tununguá | O111: Villeta
B112: Uramita | G112: Turmequé | O112: Viotá
B113: Urrao | G113: Tuta | O113: Yacopí
B114: Valdivia | G114: Tutazá | O114: Zipacón
B115: Valparaíso | G115: Umbita | O115: Zipaquirá
B116: Vegachí | G116: Ventaquemada
B117: Vigía del Fuerte | G117: Villa de Leyva
B118: Yalí | G118: Viracachá
B119: Yarumal | G119: Zetaquira
B120: Yolombó
B121: Zaragoza

Sheet Base de datos (hidden)
C2: BASE DE DATOS DE TARIFAS PARA LOS SERVICIOS PÚBLICOS, PARA EL FUNCIONAMIENTO DE LOS MODELOS FINANCIEROS QUE EVALUAN LA VIABILIDAD DE LA IMPLEMENTACIÓN DE BIODIGESTORES IN SITU EN LAS PLAZAS DE MERCADO DE COLOMBIA
B4: Para el desarrollo y funcionamiento adecuado de los modelos financieros, se consideraron los siguientes datos relativos a las tarifas de los servicios públicos de energía, agua y gas. Estos datos son esenciales para realizar proyecciones económicas precisas y garantizar la viabilidad financiera de los proyectos. A continuación, se detallan los aspectos clave de la base de datos utilizada: * Para la tarifa de agua, se selecciona la clasificación comercial-industrial, considerando tanto la tarifa fija como la variable, conforme a la estructura tarifaria aplicada en el sistema de suministro. En este caso, la tarifa fija se refiere al monto determinado por el acceso al servicio, independientemente del consumo, mientras que la tarifa variable se ajusta según el volumen de agua utilizado, calculado en metros cúbicos (m³). ** Para la tarifa de energía, se asume la tarifa comercial e industrial de la Tensión 1, dado que es el nivel de tensión en el que se encuentra más del 80% de los usuarios. Esta tarifa se ajusta a las necesidades y características de los usuarios en este rango de tensión, reflejando de manera más precisa los costos asociados a su consumo energético. *** Para la tarifa de gas, se asume el estrato 4, ya que es el estrato que refleja el costo real del servicio, al no recibir subsidios ni realizar contribuciones. De igual manera, se opta por este estrato debido a que no existe una diferencia tarifaria significativa entre los sectores residencial, industrial y comercial. En este caso, se contempla una estructura tarifaria que incluye tanto una tarifa fija, correspondiente al costo de acceso al servicio, como una tarifa variable, que se ajusta según el volumen de gas consumido. **** Se asume una tarifa de tratamiento de residuos orgánicos utilizada en el documento titulado "Conceptualización técnico-económica de tecnologías viables para el tratamiento in situ de residuos orgánicos en las Plazas de Mercado de Bogotá con enfoque en Quirigua" desarrollado por Black Forest Solutions para la GIZ en el año 2022. Este valor se actualiza a valor presente, para ajustarlo a las condiciones económicas actuales y reflejar su impacto en los modelos financieros del proyecto.
B6: Departamento | C6: Capital | D6: Agua* | H6: Energía ** | J6: Gas *** | M6: Tarifa de residuos **** | N6: Año | O6: Valor | P6: Valor tiempo real / 2024
D7: Comercial | F7: Industrial | H7: Compra | J7: Estrato 4 | M7: Plazas de mercado | N7: 2022 | O7: 215000 | P7: =+O7*(Biodigestores!F14/Biodigestores!$D$14) -> 257372.2968
D8: Cargo fijo mes | E8: Cargo variable m3 | F8: Cargo fijo mes | G8: Cargo variable m3 | H8: Comercial | I8: Industrial | J8: Componente variable del costo unitario (CUv = $/m3) | K8: Componente fijo del costo unitario (CF = $/factura)
B9: Dpto_Amazonas | C9: Leticia | D9: 5756.56 | E9: 3919.67 | F9: 5111.78 | G9: 3478
B10: Dpto_Antioquia | C10: Medellín | D10: 12150.98 | E10: 2557 | F10: 10559 | G10: 2216 | H10: 674.72 | I10: 784.83 | J10: 2461.68 | K10: 3823.83
B11: Dpto_Arauca | C11: Arauca | H11: 680 | I11: 640.17
B12: Dpto_Atlántico | C12: Barranquilla | D12: 12150.98 | E12: 4456.7 | F12: 11315.6 | G12: 4150.31 | H12: 536.59 | I12: 766.96 | J12: 2617.8 | K12: 4681.62
B13: Bogotá | C13: Bogotá | D13: 13793.69 | E13: 5278.53 | F13: 11954.53 | G13: 4856.25 | H13: 680 | I13: 640.17 | J13: 2448.32 | K13: 3795.5
B14: Dpto_Bolívar | C14: Cartagena | D14: 39005 | E14: 4461 | F14: 39005 | G14: 3866.2 | H14: 784.11 | I14: 803.42 | J14: 2243.77 | K14: 3436.66
B15: Dpto_Boyacá | C15: Tunja | D15: 27832.17 | E15: 3853.17 | F15: 28364.25 | G15: 3853.17 | J15: 1840.6 | K15: 2784.23
B16: Dpto_Caldas | C16: Manizales | D16: 26000 | E16: 2099 | F16: 26000 | G16: 2099 | H16: 674.72 | I16: 784.83 | J16: 2481.47 | K16: 3600.91
B17: Dpto_Caquetá | C17: Florencia | D17: 11588.52 | E17: 2375.28 | F17: 10043.38 | G17: 2058.57 | H17: 768.23 | I17: 788.44 | J17: 3550.32 | K17: 2855.34
B18: Dpto_Casanare | C18: Yopal | D18: 13416.8 | E18: 3084.53 | F18: 13416.8 | G18: 3084.53 | H18: 768.23 | I18: 788.44 | J18: 743.24 | K18: 5283.11
B19: Dpto_Cauca | C19: Popayán | D19: 12516.56 | E19: 1997.32 | F19: 11097.53 | G19: 1757.08 | H19: 669.41 | I19: 672.68 | J19: 3550.32 | K19: 1854.72
B20: Dpto_Cesar | C20: Valledupar | H20: 784.11 | I20: 803.42 | J20: 2617.8 | K20: 4681.62
B21: Dpto_Chocó | C21: Quibdó | D21: 13339.89 | E21: 2248.84 | F21: 11561.24 | G21: 1949
B22: Dpto_Córdoba | C22: Montería | D22: 8712.82 | E22: 2831 | F22: 8712.82 | G22: 2831 | H22: 784.11 | I22: 803.42 | J22: 2243.77 | K22: 3436.66
B23: Dpto_Cundinamarca | C23: Soacha | D23: 13793.69 | E23: 5761.49 | F23: 11954.53 | G23: 5924.25 | H23: 680 | I23: 640.17 | J23: 2448.32 | K23: 3795.5
B24: Dpto_Guainía | C24: Inirida | D24: 5756.56 | E24: 3919.67 | F24: 5111.78 | G24: 3478 | H24: 768.23 | I24: 788.44
B25: Dpto_Guaviare | C25: San Jose del Guaviare | D25: 5756.56 | E25: 3919.67 | F25: 5111.78 | G25: 3478 | H25: 768.23 | I25: 788.44
B26: Dpto_Guajira | C26: Riohacha | H26: 536.59 | I26: 766.96 | J26: 2564.82 | K26: 3072.96
B27: Dpto_Huila | C27: Neiva | H27: 680 | I27: 640.17 | J27: 3550.32 | K27: 3065.11
B28: Dpto_Magdalena | C28: Santa Marta | D28: 9516.11 | E28: 2528 | F28: 8247.44 | G28: 2191.33 | H28: 536.59 | I28: 766.96 | J28: 2617.8 | K28: 4702.38
B29: Dpto_Meta | C29: Villavicencio | D29: 14024.17 | E29: 2329.83 | F29: 3266 | G29: 743 | H29: 768.23 | I29: 788.44 | J29: 2018.9 | K29: 2599.36
B30: Dpto_Nariño | C30: Pasto | D30: 10208.94 | E30: 3492.47 | F30: 8847.75 | G30: 3026.8 | H30: 669.41 | I30: 672.68 | J30: 3550.32 | K30: 4138.19
B31: Dpto_Norte_de_Santander | C31: Cúcuta | D31: 15797.91 | E31: 3480.73 | F31: 15797.91 | G31: 3480.73 | H31: 674.72 | I31: 784.83 | J31: 3267.13 | K31: 3184.38
B32: Dpto_Putumayo | C32: Mocoa | D32: 18135.29 | F32: 18135.29 | H32: 768.23 | I32: 788.44
B33: Dpto_Quindio | C33: Armenia | D33: 8831.53 | E33: 3192.24 | F33: 7653.99 | G33: 2766.61 | H33: 674.72 | I33: 784.83 | J33: 3388.37 | K33: 2763.31
B34: Dpto_Risaralda | C34: Pereira | D34: 10075 | E34: 1985 | F34: 10075 | G34: 1985 | H34: 674.72 | I34: 784.83 | J34: 2508.45 | K34: 3804.29
B35: Dpto_SanAndrés | C35: San Andrés | E35: 19298 | G35: 19298
B36: Dpto_Santander | C36: Bucaramanga | D36: 4435.41 | E36: 14877.93 | F36: 3844.02 | G36: 12894.21 | H36: 674.72 | I36: 784.83 | J36: 1832.67 | K36: 2465.66
B37: Dpto_Sucre | C37: Sincelejo | D37: 27495.33 | E37: 6508.17 | F37: 27495.33 | G37: 6508.17 | H37: 784.11 | I37: 803.42 | J37: 2243.77 | K37: 3436.66
B38: Dpto_Tolima | C38: Ibagué | D38: 6362 | E38: 730 | F38: 6182 | J38: 3550.32 | K38: 4817.32
B39: Dpto_Valle_del_Cauca | C39: Cali | D39: 20394 | E39: 1995 | F39: 20394 | G39: 1995 | H39: 669.41 | I39: 672.68 | J39: 3072.55 | K39: 2953.4
B40: Dpto_Vaupés | C40: Mitú | D40: 3570 | E40: 1478 | F40: 3094 | G40: 1281
B41: Dpto_Vichada | C41: Puerto Carreño | D41: 7603 | E41: 1188 | F41: 7603 | G41: 1188
B42: NA* Departamento en donde la capital no tiene prestación del servicio de gas natural
